{"text_format":"1","workbook":"xlsx","n_sheets":16,"sheets":["PORTADA","MENU","CFDIE","RPAGOSE","CFDIR","RPAGOSR","IVAC","IVAA","DIVA","OBLIGACION","AYUDA DIOT 2025","ESTRUCTURA 2025","AYUDA DIOT 2024","ESTRUCTURA 2024","PAIS","GENERAL"],"not_rendered":{"charts":0,"images":31,"macros":1,"external_links":0,"defined_names":27,"comments":4,"pivot_tables":0},"unopened":[],"bounds":{"document_bytes":16777216,"sheet_cells":100000,"rows_first":2000,"rows_last":500,"rows_between":2000,"halvings":0,"cell_chars":16384,"cell_head_chars":4096},"cells_cut":0,"cells_raw":0,"read":"whole","date_system":"1900"}

{"sheet":"PORTADA","index":0,"n_rows":14,"n_cols":2,"rows_kept":14,"cut":false,"hidden":false,"merged":[[1,1,12,1],[14,1,26,1]]}
[]
[]
[]
[]
[]
[]
[]
[]
[]
[]
[]
[]
[]
[null,"www.acfmsc.com"]

{"sheet":"MENU","index":1,"n_rows":20,"n_cols":3,"rows_kept":20,"cut":false,"hidden":false,"merged":[]}
[]
[]
[]
[]
[null,"Descripción","Hoja"]
[null,"Importar archivos XML emitidos de tipo ingreso, egreso y traslado","CFDIE"]
[null,"Importar XML emitidos con complemento de pago","RPAGOSE"]
[null,"Importar archivos XML recibidos de tipo ingreso, egreso y traslado","CFDIR"]
[null,"Importar XML emitidos con complemento de pago","RPAGOSR"]
[null,"Determinación del IVA cobrado","IVAC"]
[null,"Determinación del IVA acreditable","IVAC"]
[null,"Determinación del IVA a cargo o a favor","DIVA"]
[null,"Obligación de presentar la DIOT","OBLIGACION"]
[null,"Ayuda para llenar la carga batch DIOT 2025","AYUDA DIOT 2025"]
[null,"Estructura para la carga batch DIOT 2025","ESTRUCTURA 2025"]
[null,"Ayuda para llenar la carga batch DIOT 2024","AYUDA DIOT 2024"]
[null,"Estructura para la carga batch DIOT 2024","ESTRUCTURA 2024"]
[null,"Ayuda DIOT programa DEM","AYUDA DIOT ANT"]
[null,"Estructura DIOT programa DEM","ESTRUCTURA ANT"]
[null,"Relación de páis para la DIOT","PAIS"]

{"sheet":"CFDIE","index":2,"n_rows":758,"n_cols":54,"rows_kept":758,"cut":false,"hidden":false,"merged":[[5,10,5,12]]}
[]
[]
[]
[null,null,null,null,null,null,null,null,null,null,"IR AL MENÚ"]
[]
[null,null,null,null,null,null,null,null,null,null,"Emisor",null,null,null,"Receptor",null,null,null,null,null,null,null,null,null,null,null,null,"Trasladados",null,null,null,null,null,null,null,null,null,"Retenciones",null,null,null,null,null,"Aerolíneas"]
[null,"Fecha ","Tipo de comprobante","Serie y folio","Exportación","Moneda","Tipo de cambio","Método de pago","Forma de pago","Folio fiscal","RFC","NOMBRE","Régimen fiscal","RFC","Nombre ","Régimen fiscal","Domicilio fiscal","USO del CFDI","Clave producto","Unidad de medida","Cantidad","Valor unitario","Descripción","Importe","Descuento","Importe - descuento","Objeto de impuesto","Base IEPS","Tasa o cuota","IEPS","Base no objeto","Base IVA Exento","Base IVA al 0%","Base IVA 8%","Base IVA al 16%","IVA al 8%","IVA al 16%","Tasa","ISR","Tasa","IVA","Tasa o cuota","IEPS","Impuesto sobre hospedaje","TUA","Otros cargos","Total del comprobante","Pedimento","No. de la cuenta predial","Tipo de relación","UUI relacionado","Fecha de cancelación","Total en el tipo de moneda cuando es diferente a MXN","Ruta del archivo"]
[null,null,null,null,null,null,null,null,null,null,null,null,null,null,null,null,null,null,null,null,null,null,null,null,null,null,null,null,null,null,null,null,null,null,null,null,null,null,null,null,null,null,null,null,null,null,null,null,null,null,null,null,null,"C:\\Users\\Usuario\\Downloads\\XML\\VINI\\EMITIDOS\\01C70C1D-1B90-4F42-AB27-5E27B8410062.xml"]
[null,null,null,null,null,null,null,null,null,null,null,null,null,null,null,null,null,null,null,null,null,null,null,null,null,null,null,null,null,null,null,null,null,null,null,null,null,null,null,null,null,null,null,null,null,null,null,null,null,null,null,null,null,"C:\\Users\\Usuario\\Downloads\\XML\\VINI\\EMITIDOS\\02EB5EDD-667D-48EC-8DDD-4FAF09869E18.xml"]
[null,null,null,null,null,null,null,null,null,null,null,null,null,null,null,null,null,null,null,null,null,null,null,null,null,null,null,null,null,null,null,null,null,null,null,null,null,null,null,null,null,null,null,null,null,null,null,null,null,null,null,null,null,"C:\\Users\\Usuario\\Downloads\\XML\\VINI\\EMITIDOS\\032C40E2-EAF6-42BF-9582-6A85EF2A1CB3.xml"]
[]
[]
[]
[null,null,null,null,null,null,null,null,null,null,null,null,null,null,null,null,null,null,null,null,null,null,null,null,null,null,null,null,null,null,null,null,null,null,null,null,null,null,null,null,null,null,null,null,null,null,null,null,null,null,null,null,null,"C:\\Users\\Usuario\\Downloads\\XML\\VINI\\EMITIDOS\\03F381A4-6516-4E20-8201-FF20BEF74CF7.xml"]
[null,null,null,null,null,null,null,null,null,null,null,null,null,null,null,null,null,null,null,null,null,null,null,null,null,null,null,null,null,null,null,null,null,null,null,null,null,null,null,null,null,null,null,null,null,null,null,null,null,null,null,null,null,"C:\\Users\\Usuario\\Downloads\\XML\\VINI\\EMITIDOS\\049C9AC2-F1A0-4A7D-8FB7-364A42F9A038.xml"]
[]
[]
[null,null,null,null,null,null,null,null,null,null,null,null,null,null,null,null,null,null,null,null,null,null,null,null,null,null,null,null,null,null,null,null,null,null,null,null,null,null,null,null,null,null,null,null,null,null,null,null,null,null,null,null,null,"C:\\Users\\Usuario\\Downloads\\XML\\VINI\\EMITIDOS\\072B7447-A669-484B-B5C7-AD48BCB65A87.xml"]
[null,null,null,null,null,null,null,null,null,null,null,null,null,null,null,null,null,null,null,null,null,null,null,null,null,null,null,null,null,null,null,null,null,null,null,null,null,null,null,null,null,null,null,null,null,null,null,null,null,null,null,null,null,"C:\\Users\\Usuario\\Downloads\\XML\\VINI\\EMITIDOS\\083F436E-DCCE-450E-B619-6DAB9A716EB6.xml"]
[]
[null,null,null,null,null,null,null,null,null,null,null,null,null,null,null,null,null,null,null,null,null,null,null,null,null,null,null,null,null,null,null,null,null,null,null,null,null,null,null,null,null,null,null,null,null,null,null,null,null,null,null,null,null,"C:\\Users\\Usuario\\Downloads\\XML\\VINI\\EMITIDOS\\090399C6-581B-4D28-AAD3-233E25CDD443.xml"]
[]
[]
[]
[null,null,null,null,null,null,null,null,null,null,null,null,null,null,null,null,null,null,null,null,null,null,null,null,null,null,null,null,null,null,null,null,null,null,null,null,null,null,null,null,null,null,null,null,null,null,null,null,null,null,null,null,null,"C:\\Users\\Usuario\\Downloads\\XML\\VINI\\EMITIDOS\\098AEBC1-A1DC-4F1D-ADC6-22D2796A6743.xml"]
[]
[]
[null,null,null,null,null,null,null,null,null,null,null,null,null,null,null,null,null,null,null,null,null,null,null,null,null,null,null,null,null,null,null,null,null,null,null,null,null,null,null,null,null,null,null,null,null,null,null,null,null,null,null,null,null,"C:\\Users\\Usuario\\Downloads\\XML\\VINI\\EMITIDOS\\0C3A9596-FF3F-458B-850D-41E040ECBA32.xml"]
[]
[]
[]
[null,null,null,null,null,null,null,null,null,null,null,null,null,null,null,null,null,null,null,null,null,null,null,null,null,null,null,null,null,null,null,null,null,null,null,null,null,null,null,null,null,null,null,null,null,null,null,null,null,null,null,null,null,"C:\\Users\\Usuario\\Downloads\\XML\\VINI\\EMITIDOS\\0DEA5139-0C62-44A8-98CB-D6DA31592350.xml"]
[]
[null,null,null,null,null,null,null,null,null,null,null,null,null,null,null,null,null,null,null,null,null,null,null,null,null,null,null,null,null,null,null,null,null,null,null,null,null,null,null,null,null,null,null,null,null,null,null,null,null,null,null,null,null,"C:\\Users\\Usuario\\Downloads\\XML\\VINI\\EMITIDOS\\10C4900D-431A-47B4-9D51-7E1C4562EE44.xml"]
[]
[]
[null,null,null,null,null,null,null,null,null,null,null,null,null,null,null,null,null,null,null,null,null,null,null,null,null,null,null,null,null,null,null,null,null,null,null,null,null,null,null,null,null,null,null,null,null,null,null,null,null,null,null,null,null,"C:\\Users\\Usuario\\Downloads\\XML\\VINI\\EMITIDOS\\112CFAE6-2731-4F8D-A607-32D2B0F27F76.xml"]
[null,null,null,null,null,null,null,null,null,null,null,null,null,null,null,null,null,null,null,null,null,null,null,null,null,null,null,null,null,null,null,null,null,null,null,null,null,null,null,null,null,null,null,null,null,null,null,null,null,null,null,null,null,"C:\\Users\\Usuario\\Downloads\\XML\\VINI\\EMITIDOS\\127C5D81-27B6-489B-92AB-E57EA217C011.xml"]
[null,null,null,null,null,null,null,null,null,null,null,null,null,null,null,null,null,null,null,null,null,null,null,null,null,null,null,null,null,null,null,null,null,null,null,null,null,null,null,null,null,null,null,null,null,null,null,null,null,null,null,null,null,"C:\\Users\\Usuario\\Downloads\\XML\\VINI\\EMITIDOS\\13AF731E-068E-4823-9B38-56E7C4BE7B87.xml"]
[null,null,null,null,null,null,null,null,null,null,null,null,null,null,null,null,null,null,null,null,null,null,null,null,null,null,null,null,null,null,null,null,null,null,null,null,null,null,null,null,null,null,null,null,null,null,null,null,null,null,null,null,null,"C:\\Users\\Usuario\\Downloads\\XML\\VINI\\EMITIDOS\\15A0763F-FCC3-4772-BFD8-14993E24F9CF.xml"]
[]
[]
[]
[]
[]
[]
[]
[]
[]
[]
[null,null,null,null,null,null,null,null,null,null,null,null,null,null,null,null,null,null,null,null,null,null,null,null,null,null,null,null,null,null,null,null,null,null,null,null,null,null,null,null,null,null,null,null,null,null,null,null,null,null,null,null,null,"C:\\Users\\Usuario\\Downloads\\XML\\VINI\\EMITIDOS\\15A6A5A1-2FB7-4585-B80C-857ABD3B7B91.xml"]
[null,null,null,null,null,null,null,null,null,null,null,null,null,null,null,null,null,null,null,null,null,null,null,null,null,null,null,null,null,null,null,null,null,null,null,null,null,null,null,null,null,null,null,null,null,null,null,null,null,null,null,null,null,"C:\\Users\\Usuario\\Downloads\\XML\\VINI\\EMITIDOS\\15ED6A49-7485-4B2D-92CD-444AF9C392C6.xml"]
[]
[]
[null,null,null,null,null,null,null,null,null,null,null,null,null,null,null,null,null,null,null,null,null,null,null,null,null,null,null,null,null,null,null,null,null,null,null,null,null,null,null,null,null,null,null,null,null,null,null,null,null,null,null,null,null,"C:\\Users\\Usuario\\Downloads\\XML\\VINI\\EMITIDOS\\166EE12C-292B-4D9D-9846-71FE3A2EDC34.xml"]
[]
[null,null,null,null,null,null,null,null,null,null,null,null,null,null,null,null,null,null,null,null,null,null,null,null,null,null,null,null,null,null,null,null,null,null,null,null,null,null,null,null,null,null,null,null,null,null,null,null,null,null,null,null,null,"C:\\Users\\Usuario\\Downloads\\XML\\VINI\\EMITIDOS\\18B37222-BDB4-4FEC-9C11-1F772FDEB81C.xml"]
[null,null,null,null,null,null,null,null,null,null,null,null,null,null,null,null,null,null,null,null,null,null,null,null,null,null,null,null,null,null,null,null,null,null,null,null,null,null,null,null,null,null,null,null,null,null,null,null,null,null,null,null,null,"C:\\Users\\Usuario\\Downloads\\XML\\VINI\\EMITIDOS\\190D2EF3-03A4-4FC1-B6FC-358C005DDE4F.xml"]
[]
[]
[]
[]
[]
[]
[]
[]
[]
[]
[null,null,null,null,null,null,null,null,null,null,null,null,null,null,null,null,null,null,null,null,null,null,null,null,null,null,null,null,null,null,null,null,null,null,null,null,null,null,null,null,null,null,null,null,null,null,null,null,null,null,null,null,null,"C:\\Users\\Usuario\\Downloads\\XML\\VINI\\EMITIDOS\\1B0D9BBC-16E0-4736-9F93-4BA0907188D1.xml"]
[null,null,null,null,null,null,null,null,null,null,null,null,null,null,null,null,null,null,null,null,null,null,null,null,null,null,null,null,null,null,null,null,null,null,null,null,null,null,null,null,null,null,null,null,null,null,null,null,null,null,null,null,null,"C:\\Users\\Usuario\\Downloads\\XML\\VINI\\EMITIDOS\\1B5A4F92-82E0-4605-B7ED-325D21BA2806.xml"]
[]
[]
[]
[null,null,null,null,null,null,null,null,null,null,null,null,null,null,null,null,null,null,null,null,null,null,null,null,null,null,null,null,null,null,null,null,null,null,null,null,null,null,null,null,null,null,null,null,null,null,null,null,null,null,null,null,null,"C:\\Users\\Usuario\\Downloads\\XML\\VINI\\EMITIDOS\\1C9C6853-E1AB-44CF-A4FB-637312A291AD.xml"]
[]
[null,null,null,null,null,null,null,null,null,null,null,null,null,null,null,null,null,null,null,null,null,null,null,null,null,null,null,null,null,null,null,null,null,null,null,null,null,null,null,null,null,null,null,null,null,null,null,null,null,null,null,null,null,"C:\\Users\\Usuario\\Downloads\\XML\\VINI\\EMITIDOS\\1CEA4341-0563-4534-B624-1A5895EF5809.xml"]
[null,null,null,null,null,null,null,null,null,null,null,null,null,null,null,null,null,null,null,null,null,null,null,null,null,null,null,null,null,null,null,null,null,null,null,null,null,null,null,null,null,null,null,null,null,null,null,null,null,null,null,null,null,"C:\\Users\\Usuario\\Downloads\\XML\\VINI\\EMITIDOS\\1D9476B3-9212-4C51-8CEE-EE5AC5A36078.xml"]
[null,null,null,null,null,null,null,null,null,null,null,null,null,null,null,null,null,null,null,null,null,null,null,null,null,null,null,null,null,null,null,null,null,null,null,null,null,null,null,null,null,null,null,null,null,null,null,null,null,null,null,null,null,"C:\\Users\\Usuario\\Downloads\\XML\\VINI\\EMITIDOS\\1DEF0F8D-B3C2-4BEF-B4C7-27FB31CE4C94.xml"]
[null,null,null,null,null,null,null,null,null,null,null,null,null,null,null,null,null,null,null,null,null,null,null,null,null,null,null,null,null,null,null,null,null,null,null,null,null,null,null,null,null,null,null,null,null,null,null,null,null,null,null,null,null,"C:\\Users\\Usuario\\Downloads\\XML\\VINI\\EMITIDOS\\1E8FA8DD-354E-4E1A-AE4F-F8653237C195.xml"]
[]
[null,null,null,null,null,null,null,null,null,null,null,null,null,null,null,null,null,null,null,null,null,null,null,null,null,null,null,null,null,null,null,null,null,null,null,null,null,null,null,null,null,null,null,null,null,null,null,null,null,null,null,null,null,"C:\\Users\\Usuario\\Downloads\\XML\\VINI\\EMITIDOS\\1E9D8857-9F1E-4503-A81C-4FC588A4C39C.xml"]
[null,null,null,null,null,null,null,null,null,null,null,null,null,null,null,null,null,null,null,null,null,null,null,null,null,null,null,null,null,null,null,null,null,null,null,null,null,null,null,null,null,null,null,null,null,null,null,null,null,null,null,null,null,"C:\\Users\\Usuario\\Downloads\\XML\\VINI\\EMITIDOS\\1FA045EA-EBFC-4FA2-9E38-1C6C6CF6D3D7.xml"]
[]
[]
[null,null,null,null,null,null,null,null,null,null,null,null,null,null,null,null,null,null,null,null,null,null,null,null,null,null,null,null,null,null,null,null,null,null,null,null,null,null,null,null,null,null,null,null,null,null,null,null,null,null,null,null,null,"C:\\Users\\Usuario\\Downloads\\XML\\VINI\\EMITIDOS\\229AE145-43CD-44A2-AAFB-F6A80BA416D7.xml"]
[null,null,null,null,null,null,null,null,null,null,null,null,null,null,null,null,null,null,null,null,null,null,null,null,null,null,null,null,null,null,null,null,null,null,null,null,null,null,null,null,null,null,null,null,null,null,null,null,null,null,null,null,null,"C:\\Users\\Usuario\\Downloads\\XML\\VINI\\EMITIDOS\\241A6B7D-3B74-4D52-8E4D-8FC56B9DEC3B.xml"]
[]
[null,null,null,null,null,null,null,null,null,null,null,null,null,null,null,null,null,null,null,null,null,null,null,null,null,null,null,null,null,null,null,null,null,null,null,null,null,null,null,null,null,null,null,null,null,null,null,null,null,null,null,null,null,"C:\\Users\\Usuario\\Downloads\\XML\\VINI\\EMITIDOS\\249F59F0-E83B-4EAA-B876-C17065EC5678.xml"]
[null,null,null,null,null,null,null,null,null,null,null,null,null,null,null,null,null,null,null,null,null,null,null,null,null,null,null,null,null,null,null,null,null,null,null,null,null,null,null,null,null,null,null,null,null,null,null,null,null,null,null,null,null,"C:\\Users\\Usuario\\Downloads\\XML\\VINI\\EMITIDOS\\24DF3D3A-62C5-403C-BCDD-17CAE4496F51.xml"]
[null,null,null,null,null,null,null,null,null,null,null,null,null,null,null,null,null,null,null,null,null,null,null,null,null,null,null,null,null,null,null,null,null,null,null,null,null,null,null,null,null,null,null,null,null,null,null,null,null,null,null,null,null,"C:\\Users\\Usuario\\Downloads\\XML\\VINI\\EMITIDOS\\252D95DC-CFCB-408B-8F0A-CC445E43D2DD.xml"]
[null,null,null,null,null,null,null,null,null,null,null,null,null,null,null,null,null,null,null,null,null,null,null,null,null,null,null,null,null,null,null,null,null,null,null,null,null,null,null,null,null,null,null,null,null,null,null,null,null,null,null,null,null,"C:\\Users\\Usuario\\Downloads\\XML\\VINI\\EMITIDOS\\257A3DD4-5E37-46EC-805E-4BE5BD6B2E45.xml"]
[]
[null,null,null,null,null,null,null,null,null,null,null,null,null,null,null,null,null,null,null,null,null,null,null,null,null,null,null,null,null,null,null,null,null,null,null,null,null,null,null,null,null,null,null,null,null,null,null,null,null,null,null,null,null,"C:\\Users\\Usuario\\Downloads\\XML\\VINI\\EMITIDOS\\26064603-4853-47A1-8BD7-FEA1F918F6B6.xml"]
[]
[null,null,null,null,null,null,null,null,null,null,null,null,null,null,null,null,null,null,null,null,null,null,null,null,null,null,null,null,null,null,null,null,null,null,null,null,null,null,null,null,null,null,null,null,null,null,null,null,null,null,null,null,null,"C:\\Users\\Usuario\\Downloads\\XML\\VINI\\EMITIDOS\\26848427-F46B-4E02-AF70-299274376CB9.xml"]
[null,null,null,null,null,null,null,null,null,null,null,null,null,null,null,null,null,null,null,null,null,null,null,null,null,null,null,null,null,null,null,null,null,null,null,null,null,null,null,null,null,null,null,null,null,null,null,null,null,null,null,null,null,"C:\\Users\\Usuario\\Downloads\\XML\\VINI\\EMITIDOS\\275FD2CE-16C8-48A7-847F-4AEB348E4B1D.xml"]
[]
[]
[]
[]
[]
[null,null,null,null,null,null,null,null,null,null,null,null,null,null,null,null,null,null,null,null,null,null,null,null,null,null,null,null,null,null,null,null,null,null,null,null,null,null,null,null,null,null,null,null,null,null,null,null,null,null,null,null,null,"C:\\Users\\Usuario\\Downloads\\XML\\VINI\\EMITIDOS\\27858ADD-581A-4D2C-BEFC-2C389A609938.xml"]
[null,null,null,null,null,null,null,null,null,null,null,null,null,null,null,null,null,null,null,null,null,null,null,null,null,null,null,null,null,null,null,null,null,null,null,null,null,null,null,null,null,null,null,null,null,null,null,null,null,null,null,null,null,"C:\\Users\\Usuario\\Downloads\\XML\\VINI\\EMITIDOS\\2932C142-AD11-44B8-9333-9F86DC6646E4.xml"]
[]
[]
[null,null,null,null,null,null,null,null,null,null,null,null,null,null,null,null,null,null,null,null,null,null,null,null,null,null,null,null,null,null,null,null,null,null,null,null,null,null,null,null,null,null,null,null,null,null,null,null,null,null,null,null,null,"C:\\Users\\Usuario\\Downloads\\XML\\VINI\\EMITIDOS\\298BEB56-89D9-4BEC-B848-B8B8B2D1DC36.xml"]
[]
[]
[]
[]
[null,null,null,null,null,null,null,null,null,null,null,null,null,null,null,null,null,null,null,null,null,null,null,null,null,null,null,null,null,null,null,null,null,null,null,null,null,null,null,null,null,null,null,null,null,null,null,null,null,null,null,null,null,"C:\\Users\\Usuario\\Downloads\\XML\\VINI\\EMITIDOS\\29FD4E8B-D3E5-46B5-8480-5B7CC13B7212.xml"]
[]
[]
[]
[]
[]
[]
[]
[null,null,null,null,null,null,null,null,null,null,null,null,null,null,null,null,null,null,null,null,null,null,null,null,null,null,null,null,null,null,null,null,null,null,null,null,null,null,null,null,null,null,null,null,null,null,null,null,null,null,null,null,null,"C:\\Users\\Usuario\\Downloads\\XML\\VINI\\EMITIDOS\\2A632DE1-7620-4F68-9F77-A739686C45F3.xml"]
[null,null,null,null,null,null,null,null,null,null,null,null,null,null,null,null,null,null,null,null,null,null,null,null,null,null,null,null,null,null,null,null,null,null,null,null,null,null,null,null,null,null,null,null,null,null,null,null,null,null,null,null,null,"C:\\Users\\Usuario\\Downloads\\XML\\VINI\\EMITIDOS\\2AD8E22A-BC67-495E-BC32-7B9A3B0CDD96.xml"]
[]
[]
[]
[]
[]
[]
[]
[]
[null,null,null,null,null,null,null,null,null,null,null,null,null,null,null,null,null,null,null,null,null,null,null,null,null,null,null,null,null,null,null,null,null,null,null,null,null,null,null,null,null,null,null,null,null,null,null,null,null,null,null,null,null,"C:\\Users\\Usuario\\Downloads\\XML\\VINI\\EMITIDOS\\2C01191A-2DE4-47B2-A86D-D8C027C8F8AB.xml"]
[]
[null,null,null,null,null,null,null,null,null,null,null,null,null,null,null,null,null,null,null,null,null,null,null,null,null,null,null,null,null,null,null,null,null,null,null,null,null,null,null,null,null,null,null,null,null,null,null,null,null,null,null,null,null,"C:\\Users\\Usuario\\Downloads\\XML\\VINI\\EMITIDOS\\2C0973FB-0C49-42ED-BF12-BA02BB90DE62.xml"]
[null,null,null,null,null,null,null,null,null,null,null,null,null,null,null,null,null,null,null,null,null,null,null,null,null,null,null,null,null,null,null,null,null,null,null,null,null,null,null,null,null,null,null,null,null,null,null,null,null,null,null,null,null,"C:\\Users\\Usuario\\Downloads\\XML\\VINI\\EMITIDOS\\2FD87B13-5322-4AAE-B2D6-3362CD0A3895.xml"]
[null,null,null,null,null,null,null,null,null,null,null,null,null,null,null,null,null,null,null,null,null,null,null,null,null,null,null,null,null,null,null,null,null,null,null,null,null,null,null,null,null,null,null,null,null,null,null,null,null,null,null,null,null,"C:\\Users\\Usuario\\Downloads\\XML\\VINI\\EMITIDOS\\2FE39972-43D1-40E9-A9B4-6BF8B78DD892.xml"]
[]
[null,null,null,null,null,null,null,null,null,null,null,null,null,null,null,null,null,null,null,null,null,null,null,null,null,null,null,null,null,null,null,null,null,null,null,null,null,null,null,null,null,null,null,null,null,null,null,null,null,null,null,null,null,"C:\\Users\\Usuario\\Downloads\\XML\\VINI\\EMITIDOS\\313813E7-16CC-4691-AD8D-1F749DB75512.xml"]
[]
[null,null,null,null,null,null,null,null,null,null,null,null,null,null,null,null,null,null,null,null,null,null,null,null,null,null,null,null,null,null,null,null,null,null,null,null,null,null,null,null,null,null,null,null,null,null,null,null,null,null,null,null,null,"C:\\Users\\Usuario\\Downloads\\XML\\VINI\\EMITIDOS\\32076EB2-A3F4-4972-A1A5-DDC9643C6F19.xml"]
[null,null,null,null,null,null,null,null,null,null,null,null,null,null,null,null,null,null,null,null,null,null,null,null,null,null,null,null,null,null,null,null,null,null,null,null,null,null,null,null,null,null,null,null,null,null,null,null,null,null,null,null,null,"C:\\Users\\Usuario\\Downloads\\XML\\VINI\\EMITIDOS\\323269C0-1027-4A92-9FAB-141EB331644A.xml"]
[null,null,null,null,null,null,null,null,null,null,null,null,null,null,null,null,null,null,null,null,null,null,null,null,null,null,null,null,null,null,null,null,null,null,null,null,null,null,null,null,null,null,null,null,null,null,null,null,null,null,null,null,null,"C:\\Users\\Usuario\\Downloads\\XML\\VINI\\EMITIDOS\\343F0A9E-1909-4B90-AABA-9F0D55766755.xml"]
[null,null,null,null,null,null,null,null,null,null,null,null,null,null,null,null,null,null,null,null,null,null,null,null,null,null,null,null,null,null,null,null,null,null,null,null,null,null,null,null,null,null,null,null,null,null,null,null,null,null,null,null,null,"C:\\Users\\Usuario\\Downloads\\XML\\VINI\\EMITIDOS\\347E51C3-5087-4920-8592-C49B6F28E92E.xml"]
[]
[]
[null,null,null,null,null,null,null,null,null,null,null,null,null,null,null,null,null,null,null,null,null,null,null,null,null,null,null,null,null,null,null,null,null,null,null,null,null,null,null,null,null,null,null,null,null,null,null,null,null,null,null,null,null,"C:\\Users\\Usuario\\Downloads\\XML\\VINI\\EMITIDOS\\348E5E83-E772-47AC-9970-269EDE12A96B.xml"]
[null,null,null,null,null,null,null,null,null,null,null,null,null,null,null,null,null,null,null,null,null,null,null,null,null,null,null,null,null,null,null,null,null,null,null,null,null,null,null,null,null,null,null,null,null,null,null,null,null,null,null,null,null,"C:\\Users\\Usuario\\Downloads\\XML\\VINI\\EMITIDOS\\34F0560E-DB65-4002-93F0-392FEA0C8C46.xml"]
[]
[null,null,null,null,null,null,null,null,null,null,null,null,null,null,null,null,null,null,null,null,null,null,null,null,null,null,null,null,null,null,null,null,null,null,null,null,null,null,null,null,null,null,null,null,null,null,null,null,null,null,null,null,null,"C:\\Users\\Usuario\\Downloads\\XML\\VINI\\EMITIDOS\\3541D130-2525-4148-B894-65C2C08B5BE3.xml"]
[null,null,null,null,null,null,null,null,null,null,null,null,null,null,null,null,null,null,null,null,null,null,null,null,null,null,null,null,null,null,null,null,null,null,null,null,null,null,null,null,null,null,null,null,null,null,null,null,null,null,null,null,null,"C:\\Users\\Usuario\\Downloads\\XML\\VINI\\EMITIDOS\\362F1C16-9B2F-4CCE-BE21-6034A8565503.xml"]
[null,null,null,null,null,null,null,null,null,null,null,null,null,null,null,null,null,null,null,null,null,null,null,null,null,null,null,null,null,null,null,null,null,null,null,null,null,null,null,null,null,null,null,null,null,null,null,null,null,null,null,null,null,"C:\\Users\\Usuario\\Downloads\\XML\\VINI\\EMITIDOS\\363E7D29-1ED8-4937-9A20-2453FB2B9806.xml"]
[]
[]
[null,null,null,null,null,null,null,null,null,null,null,null,null,null,null,null,null,null,null,null,null,null,null,null,null,null,null,null,null,null,null,null,null,null,null,null,null,null,null,null,null,null,null,null,null,null,null,null,null,null,null,null,null,"C:\\Users\\Usuario\\Downloads\\XML\\VINI\\EMITIDOS\\36B2FF20-09EE-4036-899C-C6E84E9E8586.xml"]
[null,null,null,null,null,null,null,null,null,null,null,null,null,null,null,null,null,null,null,null,null,null,null,null,null,null,null,null,null,null,null,null,null,null,null,null,null,null,null,null,null,null,null,null,null,null,null,null,null,null,null,null,null,"C:\\Users\\Usuario\\Downloads\\XML\\VINI\\EMITIDOS\\3821B695-9244-472B-88EB-2DC9D7A1C46A.xml"]
[]
[]
[]
[]
[]
[null,null,null,null,null,null,null,null,null,null,null,null,null,null,null,null,null,null,null,null,null,null,null,null,null,null,null,null,null,null,null,null,null,null,null,null,null,null,null,null,null,null,null,null,null,null,null,null,null,null,null,null,null,"C:\\Users\\Usuario\\Downloads\\XML\\VINI\\EMITIDOS\\38735667-D3A9-45ED-A94A-48D4F932B0E8.xml"]
[null,null,null,null,null,null,null,null,null,null,null,null,null,null,null,null,null,null,null,null,null,null,null,null,null,null,null,null,null,null,null,null,null,null,null,null,null,null,null,null,null,null,null,null,null,null,null,null,null,null,null,null,null,"C:\\Users\\Usuario\\Downloads\\XML\\VINI\\EMITIDOS\\3A361A9F-6062-4183-9AF6-83401BAAA757.xml"]
[null,null,null,null,null,null,null,null,null,null,null,null,null,null,null,null,null,null,null,null,null,null,null,null,null,null,null,null,null,null,null,null,null,null,null,null,null,null,null,null,null,null,null,null,null,null,null,null,null,null,null,null,null,"C:\\Users\\Usuario\\Downloads\\XML\\VINI\\EMITIDOS\\3AB18B23-1EF0-4174-9944-1D9B889D89C9.xml"]
[null,null,null,null,null,null,null,null,null,null,null,null,null,null,null,null,null,null,null,null,null,null,null,null,null,null,null,null,null,null,null,null,null,null,null,null,null,null,null,null,null,null,null,null,null,null,null,null,null,null,null,null,null,"C:\\Users\\Usuario\\Downloads\\XML\\VINI\\EMITIDOS\\3C822742-8AB7-447C-890B-F1D63834626E.xml"]
[null,null,null,null,null,null,null,null,null,null,null,null,null,null,null,null,null,null,null,null,null,null,null,null,null,null,null,null,null,null,null,null,null,null,null,null,null,null,null,null,null,null,null,null,null,null,null,null,null,null,null,null,null,"C:\\Users\\Usuario\\Downloads\\XML\\VINI\\EMITIDOS\\3D1F5B3C-9CF1-4984-BA93-7E2C15EF43DD.xml"]
[]
[]
[]
[null,null,null,null,null,null,null,null,null,null,null,null,null,null,null,null,null,null,null,null,null,null,null,null,null,null,null,null,null,null,null,null,null,null,null,null,null,null,null,null,null,null,null,null,null,null,null,null,null,null,null,null,null,"C:\\Users\\Usuario\\Downloads\\XML\\VINI\\EMITIDOS\\3FEF8540-033D-4578-B6BF-0B8EA4C9FC0C.xml"]
[null,null,null,null,null,null,null,null,null,null,null,null,null,null,null,null,null,null,null,null,null,null,null,null,null,null,null,null,null,null,null,null,null,null,null,null,null,null,null,null,null,null,null,null,null,null,null,null,null,null,null,null,null,"C:\\Users\\Usuario\\Downloads\\XML\\VINI\\EMITIDOS\\3FF11787-0B7F-4479-A617-0AA5CBC2E406.xml"]
[]
[null,null,null,null,null,null,null,null,null,null,null,null,null,null,null,null,null,null,null,null,null,null,null,null,null,null,null,null,null,null,null,null,null,null,null,null,null,null,null,null,null,null,null,null,null,null,null,null,null,null,null,null,null,"C:\\Users\\Usuario\\Downloads\\XML\\VINI\\EMITIDOS\\404733CD-3FD8-418E-8D26-2EEAC90C74B1.xml"]
[]
[]
[null,null,null,null,null,null,null,null,null,null,null,null,null,null,null,null,null,null,null,null,null,null,null,null,null,null,null,null,null,null,null,null,null,null,null,null,null,null,null,null,null,null,null,null,null,null,null,null,null,null,null,null,null,"C:\\Users\\Usuario\\Downloads\\XML\\VINI\\EMITIDOS\\4196BAC6-8F52-4501-A78E-02B6D26FCE69.xml"]
[]
[]
[]
[null,null,null,null,null,null,null,null,null,null,null,null,null,null,null,null,null,null,null,null,null,null,null,null,null,null,null,null,null,null,null,null,null,null,null,null,null,null,null,null,null,null,null,null,null,null,null,null,null,null,null,null,null,"C:\\Users\\Usuario\\Downloads\\XML\\VINI\\EMITIDOS\\4376FF57-77E5-4237-8972-58C158A2F166.xml"]
[null,null,null,null,null,null,null,null,null,null,null,null,null,null,null,null,null,null,null,null,null,null,null,null,null,null,null,null,null,null,null,null,null,null,null,null,null,null,null,null,null,null,null,null,null,null,null,null,null,null,null,null,null,"C:\\Users\\Usuario\\Downloads\\XML\\VINI\\EMITIDOS\\446BAFED-B5F7-454F-AAF6-1B0A557B1E41.xml"]
[]
[null,null,null,null,null,null,null,null,null,null,null,null,null,null,null,null,null,null,null,null,null,null,null,null,null,null,null,null,null,null,null,null,null,null,null,null,null,null,null,null,null,null,null,null,null,null,null,null,null,null,null,null,null,"C:\\Users\\Usuario\\Downloads\\XML\\VINI\\EMITIDOS\\48B9E5DE-1B41-454F-96C4-D8B23642D8BA.xml"]
[null,null,null,null,null,null,null,null,null,null,null,null,null,null,null,null,null,null,null,null,null,null,null,null,null,null,null,null,null,null,null,null,null,null,null,null,null,null,null,null,null,null,null,null,null,null,null,null,null,null,null,null,null,"C:\\Users\\Usuario\\Downloads\\XML\\VINI\\EMITIDOS\\49063A76-34B3-4BA1-BF5D-62CDA156B0B7.xml"]
[]
[null,null,null,null,null,null,null,null,null,null,null,null,null,null,null,null,null,null,null,null,null,null,null,null,null,null,null,null,null,null,null,null,null,null,null,null,null,null,null,null,null,null,null,null,null,null,null,null,null,null,null,null,null,"C:\\Users\\Usuario\\Downloads\\XML\\VINI\\EMITIDOS\\49E2E7DB-E8B3-432E-9616-2BB0FF2191B9.xml"]
[]
[]
[]
[]
[null,null,null,null,null,null,null,null,null,null,null,null,null,null,null,null,null,null,null,null,null,null,null,null,null,null,null,null,null,null,null,null,null,null,null,null,null,null,null,null,null,null,null,null,null,null,null,null,null,null,null,null,null,"C:\\Users\\Usuario\\Downloads\\XML\\VINI\\EMITIDOS\\4AD77CA7-651E-4B02-96D4-8258551E9B9F.xml"]
[]
[]
[]
[]
[null,null,null,null,null,null,null,null,null,null,null,null,null,null,null,null,null,null,null,null,null,null,null,null,null,null,null,null,null,null,null,null,null,null,null,null,null,null,null,null,null,null,null,null,null,null,null,null,null,null,null,null,null,"C:\\Users\\Usuario\\Downloads\\XML\\VINI\\EMITIDOS\\4DEF0148-4249-49F7-B6CB-942C1F7718C8.xml"]
[null,null,null,null,null,null,null,null,null,null,null,null,null,null,null,null,null,null,null,null,null,null,null,null,null,null,null,null,null,null,null,null,null,null,null,null,null,null,null,null,null,null,null,null,null,null,null,null,null,null,null,null,null,"C:\\Users\\Usuario\\Downloads\\XML\\VINI\\EMITIDOS\\4E21E104-8304-4C6C-AD11-9EB6C897E109.xml"]
[]
[]
[]
[]
[null,null,null,null,null,null,null,null,null,null,null,null,null,null,null,null,null,null,null,null,null,null,null,null,null,null,null,null,null,null,null,null,null,null,null,null,null,null,null,null,null,null,null,null,null,null,null,null,null,null,null,null,null,"C:\\Users\\Usuario\\Downloads\\XML\\VINI\\EMITIDOS\\4F828B84-9285-41E5-B63A-07F521C7B60B.xml"]
[]
[null,null,null,null,null,null,null,null,null,null,null,null,null,null,null,null,null,null,null,null,null,null,null,null,null,null,null,null,null,null,null,null,null,null,null,null,null,null,null,null,null,null,null,null,null,null,null,null,null,null,null,null,null,"C:\\Users\\Usuario\\Downloads\\XML\\VINI\\EMITIDOS\\4FC331B8-312C-46EA-BDD9-66BF20C7CE8B.xml"]
[]
[null,null,null,null,null,null,null,null,null,null,null,null,null,null,null,null,null,null,null,null,null,null,null,null,null,null,null,null,null,null,null,null,null,null,null,null,null,null,null,null,null,null,null,null,null,null,null,null,null,null,null,null,null,"C:\\Users\\Usuario\\Downloads\\XML\\VINI\\EMITIDOS\\50E36E29-85F3-4F31-BC3C-88BEF92293A2.xml"]
[null,null,null,null,null,null,null,null,null,null,null,null,null,null,null,null,null,null,null,null,null,null,null,null,null,null,null,null,null,null,null,null,null,null,null,null,null,null,null,null,null,null,null,null,null,null,null,null,null,null,null,null,null,"C:\\Users\\Usuario\\Downloads\\XML\\VINI\\EMITIDOS\\510C292B-7FF9-4CBC-B9C2-ED3884444FE4.xml"]
[]
[null,null,null,null,null,null,null,null,null,null,null,null,null,null,null,null,null,null,null,null,null,null,null,null,null,null,null,null,null,null,null,null,null,null,null,null,null,null,null,null,null,null,null,null,null,null,null,null,null,null,null,null,null,"C:\\Users\\Usuario\\Downloads\\XML\\VINI\\EMITIDOS\\55340765-37F7-4F22-BF60-B10305FC5E5B.xml"]
[]
[null,null,null,null,null,null,null,null,null,null,null,null,null,null,null,null,null,null,null,null,null,null,null,null,null,null,null,null,null,null,null,null,null,null,null,null,null,null,null,null,null,null,null,null,null,null,null,null,null,null,null,null,null,"C:\\Users\\Usuario\\Downloads\\XML\\VINI\\EMITIDOS\\55693DEA-00E1-4BC9-95D7-8496EF42F81D.xml"]
[]
[]
[]
[]
[]
[]
[]
[]
[null,null,null,null,null,null,null,null,null,null,null,null,null,null,null,null,null,null,null,null,null,null,null,null,null,null,null,null,null,null,null,null,null,null,null,null,null,null,null,null,null,null,null,null,null,null,null,null,null,null,null,null,null,"C:\\Users\\Usuario\\Downloads\\XML\\VINI\\EMITIDOS\\558A7A0A-1CCE-4346-A4DC-09B6AB7B697A.xml"]
[]
[]
[null,null,null,null,null,null,null,null,null,null,null,null,null,null,null,null,null,null,null,null,null,null,null,null,null,null,null,null,null,null,null,null,null,null,null,null,null,null,null,null,null,null,null,null,null,null,null,null,null,null,null,null,null,"C:\\Users\\Usuario\\Downloads\\XML\\VINI\\EMITIDOS\\5627E3CC-1FA3-4C0D-9ED9-F8A038BBFCC5.xml"]
[null,null,null,null,null,null,null,null,null,null,null,null,null,null,null,null,null,null,null,null,null,null,null,null,null,null,null,null,null,null,null,null,null,null,null,null,null,null,null,null,null,null,null,null,null,null,null,null,null,null,null,null,null,"C:\\Users\\Usuario\\Downloads\\XML\\VINI\\EMITIDOS\\58A19D70-80CD-4EAB-8E25-37B4F1B86955.xml"]
[]
[]
[]
[]
[]
[]
[]
[]
[]
[null,null,null,null,null,null,null,null,null,null,null,null,null,null,null,null,null,null,null,null,null,null,null,null,null,null,null,null,null,null,null,null,null,null,null,null,null,null,null,null,null,null,null,null,null,null,null,null,null,null,null,null,null,"C:\\Users\\Usuario\\Downloads\\XML\\VINI\\EMITIDOS\\5CEE59F5-93DC-45AB-9C80-71B0D2719BF1.xml"]
[]
[null,null,null,null,null,null,null,null,null,null,null,null,null,null,null,null,null,null,null,null,null,null,null,null,null,null,null,null,null,null,null,null,null,null,null,null,null,null,null,null,null,null,null,null,null,null,null,null,null,null,null,null,null,"C:\\Users\\Usuario\\Downloads\\XML\\VINI\\EMITIDOS\\5D7F2679-C5C3-43D1-911B-19513004C503.xml"]
[]
[null,null,null,null,null,null,null,null,null,null,null,null,null,null,null,null,null,null,null,null,null,null,null,null,null,null,null,null,null,null,null,null,null,null,null,null,null,null,null,null,null,null,null,null,null,null,null,null,null,null,null,null,null,"C:\\Users\\Usuario\\Downloads\\XML\\VINI\\EMITIDOS\\5E2F0224-4FA3-465B-9C23-2032E6295F16.xml"]
[null,null,null,null,null,null,null,null,null,null,null,null,null,null,null,null,null,null,null,null,null,null,null,null,null,null,null,null,null,null,null,null,null,null,null,null,null,null,null,null,null,null,null,null,null,null,null,null,null,null,null,null,null,"C:\\Users\\Usuario\\Downloads\\XML\\VINI\\EMITIDOS\\5E50BAD4-CE8A-4155-829C-BA248349E002.xml"]
[null,null,null,null,null,null,null,null,null,null,null,null,null,null,null,null,null,null,null,null,null,null,null,null,null,null,null,null,null,null,null,null,null,null,null,null,null,null,null,null,null,null,null,null,null,null,null,null,null,null,null,null,null,"C:\\Users\\Usuario\\Downloads\\XML\\VINI\\EMITIDOS\\5EA1FCBB-E76C-4E4B-8BAF-48A64F157D6F.xml"]
[]
[]
[null,null,null,null,null,null,null,null,null,null,null,null,null,null,null,null,null,null,null,null,null,null,null,null,null,null,null,null,null,null,null,null,null,null,null,null,null,null,null,null,null,null,null,null,null,null,null,null,null,null,null,null,null,"C:\\Users\\Usuario\\Downloads\\XML\\VINI\\EMITIDOS\\5F7EE7D0-9B0F-49EB-91BB-9851E49172DF.xml"]
[]
[]
[null,null,null,null,null,null,null,null,null,null,null,null,null,null,null,null,null,null,null,null,null,null,null,null,null,null,null,null,null,null,null,null,null,null,null,null,null,null,null,null,null,null,null,null,null,null,null,null,null,null,null,null,null,"C:\\Users\\Usuario\\Downloads\\XML\\VINI\\EMITIDOS\\5FAAC854-89F6-4649-B996-D0ACA8E6DBDA.xml"]
[null,null,null,null,null,null,null,null,null,null,null,null,null,null,null,null,null,null,null,null,null,null,null,null,null,null,null,null,null,null,null,null,null,null,null,null,null,null,null,null,null,null,null,null,null,null,null,null,null,null,null,null,null,"C:\\Users\\Usuario\\Downloads\\XML\\VINI\\EMITIDOS\\600098E3-1B00-4CC8-96F6-99A13E070C56.xml"]
[null,null,null,null,null,null,null,null,null,null,null,null,null,null,null,null,null,null,null,null,null,null,null,null,null,null,null,null,null,null,null,null,null,null,null,null,null,null,null,null,null,null,null,null,null,null,null,null,null,null,null,null,null,"C:\\Users\\Usuario\\Downloads\\XML\\VINI\\EMITIDOS\\618591B0-5FD1-44E0-9CAA-37916C85588B.xml"]
[]
[null,null,null,null,null,null,null,null,null,null,null,null,null,null,null,null,null,null,null,null,null,null,null,null,null,null,null,null,null,null,null,null,null,null,null,null,null,null,null,null,null,null,null,null,null,null,null,null,null,null,null,null,null,"C:\\Users\\Usuario\\Downloads\\XML\\VINI\\EMITIDOS\\6212C956-EE90-485A-AC56-B378A57E3C5A.xml"]
[]
[]
[]
[null,null,null,null,null,null,null,null,null,null,null,null,null,null,null,null,null,null,null,null,null,null,null,null,null,null,null,null,null,null,null,null,null,null,null,null,null,null,null,null,null,null,null,null,null,null,null,null,null,null,null,null,null,"C:\\Users\\Usuario\\Downloads\\XML\\VINI\\EMITIDOS\\6348107E-536F-42DB-B41A-15D073CAB36A.xml"]
[null,null,null,null,null,null,null,null,null,null,null,null,null,null,null,null,null,null,null,null,null,null,null,null,null,null,null,null,null,null,null,null,null,null,null,null,null,null,null,null,null,null,null,null,null,null,null,null,null,null,null,null,null,"C:\\Users\\Usuario\\Downloads\\XML\\VINI\\EMITIDOS\\66DFC3FD-29C3-43D6-9ECD-38E36EF44E6A.xml"]
[]
[]
[]
[]
[null,null,null,null,null,null,null,null,null,null,null,null,null,null,null,null,null,null,null,null,null,null,null,null,null,null,null,null,null,null,null,null,null,null,null,null,null,null,null,null,null,null,null,null,null,null,null,null,null,null,null,null,null,"C:\\Users\\Usuario\\Downloads\\XML\\VINI\\EMITIDOS\\68696CF8-D9C8-4607-9F5D-190911E62FD7.xml"]
[null,null,null,null,null,null,null,null,null,null,null,null,null,null,null,null,null,null,null,null,null,null,null,null,null,null,null,null,null,null,null,null,null,null,null,null,null,null,null,null,null,null,null,null,null,null,null,null,null,null,null,null,null,"C:\\Users\\Usuario\\Downloads\\XML\\VINI\\EMITIDOS\\6A0F1EC5-E9A5-4BBB-A5EA-1AB79AF3452F.xml"]
[null,null,null,null,null,null,null,null,null,null,null,null,null,null,null,null,null,null,null,null,null,null,null,null,null,null,null,null,null,null,null,null,null,null,null,null,null,null,null,null,null,null,null,null,null,null,null,null,null,null,null,null,null,"C:\\Users\\Usuario\\Downloads\\XML\\VINI\\EMITIDOS\\6A1B1D3E-FAE6-492E-85FB-9472F21128A5.xml"]
[null,null,null,null,null,null,null,null,null,null,null,null,null,null,null,null,null,null,null,null,null,null,null,null,null,null,null,null,null,null,null,null,null,null,null,null,null,null,null,null,null,null,null,null,null,null,null,null,null,null,null,null,null,"C:\\Users\\Usuario\\Downloads\\XML\\VINI\\EMITIDOS\\6AD477BB-F1D4-417F-8525-E275CE08104D.xml"]
[null,null,null,null,null,null,null,null,null,null,null,null,null,null,null,null,null,null,null,null,null,null,null,null,null,null,null,null,null,null,null,null,null,null,null,null,null,null,null,null,null,null,null,null,null,null,null,null,null,null,null,null,null,"C:\\Users\\Usuario\\Downloads\\XML\\VINI\\EMITIDOS\\6B49F75D-58F8-4913-9721-D564CBB482F9.xml"]
[]
[null,null,null,null,null,null,null,null,null,null,null,null,null,null,null,null,null,null,null,null,null,null,null,null,null,null,null,null,null,null,null,null,null,null,null,null,null,null,null,null,null,null,null,null,null,null,null,null,null,null,null,null,null,"C:\\Users\\Usuario\\Downloads\\XML\\VINI\\EMITIDOS\\6BA5B7DF-8748-4C28-BF3A-681CB7D7A0B8.xml"]
[null,null,null,null,null,null,null,null,null,null,null,null,null,null,null,null,null,null,null,null,null,null,null,null,null,null,null,null,null,null,null,null,null,null,null,null,null,null,null,null,null,null,null,null,null,null,null,null,null,null,null,null,null,"C:\\Users\\Usuario\\Downloads\\XML\\VINI\\EMITIDOS\\6BAE77F5-E24D-4646-8395-E3F9CA4B2CAA.xml"]
[null,null,null,null,null,null,null,null,null,null,null,null,null,null,null,null,null,null,null,null,null,null,null,null,null,null,null,null,null,null,null,null,null,null,null,null,null,null,null,null,null,null,null,null,null,null,null,null,null,null,null,null,null,"C:\\Users\\Usuario\\Downloads\\XML\\VINI\\EMITIDOS\\6CBC7FD9-A752-49F3-A599-CCC0E73665F4.xml"]
[]
[]
[]
[]
[]
[]
[null,null,null,null,null,null,null,null,null,null,null,null,null,null,null,null,null,null,null,null,null,null,null,null,null,null,null,null,null,null,null,null,null,null,null,null,null,null,null,null,null,null,null,null,null,null,null,null,null,null,null,null,null,"C:\\Users\\Usuario\\Downloads\\XML\\VINI\\EMITIDOS\\6D14BA04-33CE-45BA-8EF2-9B3B50CD9DEB.xml"]
[]
[null,null,null,null,null,null,null,null,null,null,null,null,null,null,null,null,null,null,null,null,null,null,null,null,null,null,null,null,null,null,null,null,null,null,null,null,null,null,null,null,null,null,null,null,null,null,null,null,null,null,null,null,null,"C:\\Users\\Usuario\\Downloads\\XML\\VINI\\EMITIDOS\\6E58C5D6-42A4-471F-ADAE-7BD010AF4869.xml"]
[]
[]
[null,null,null,null,null,null,null,null,null,null,null,null,null,null,null,null,null,null,null,null,null,null,null,null,null,null,null,null,null,null,null,null,null,null,null,null,null,null,null,null,null,null,null,null,null,null,null,null,null,null,null,null,null,"C:\\Users\\Usuario\\Downloads\\XML\\VINI\\EMITIDOS\\6EDAA590-F039-4EFB-921D-B76EF4886DB6.xml"]
[null,null,null,null,null,null,null,null,null,null,null,null,null,null,null,null,null,null,null,null,null,null,null,null,null,null,null,null,null,null,null,null,null,null,null,null,null,null,null,null,null,null,null,null,null,null,null,null,null,null,null,null,null,"C:\\Users\\Usuario\\Downloads\\XML\\VINI\\EMITIDOS\\6F6BE556-597A-4CCE-8B95-C6EE44B8FC86.xml"]
[null,null,null,null,null,null,null,null,null,null,null,null,null,null,null,null,null,null,null,null,null,null,null,null,null,null,null,null,null,null,null,null,null,null,null,null,null,null,null,null,null,null,null,null,null,null,null,null,null,null,null,null,null,"C:\\Users\\Usuario\\Downloads\\XML\\VINI\\EMITIDOS\\70C61C47-C6CD-4876-9A6D-546632D26560.xml"]
[null,null,null,null,null,null,null,null,null,null,null,null,null,null,null,null,null,null,null,null,null,null,null,null,null,null,null,null,null,null,null,null,null,null,null,null,null,null,null,null,null,null,null,null,null,null,null,null,null,null,null,null,null,"C:\\Users\\Usuario\\Downloads\\XML\\VINI\\EMITIDOS\\70D0CBEA-BAA0-4C2F-B974-209F97930FD9.xml"]
[]
[]
[]
[]
[null,null,null,null,null,null,null,null,null,null,null,null,null,null,null,null,null,null,null,null,null,null,null,null,null,null,null,null,null,null,null,null,null,null,null,null,null,null,null,null,null,null,null,null,null,null,null,null,null,null,null,null,null,"C:\\Users\\Usuario\\Downloads\\XML\\VINI\\EMITIDOS\\711C324C-BE1E-421A-9137-1373E7E8E4E6.xml"]
[null,null,null,null,null,null,null,null,null,null,null,null,null,null,null,null,null,null,null,null,null,null,null,null,null,null,null,null,null,null,null,null,null,null,null,null,null,null,null,null,null,null,null,null,null,null,null,null,null,null,null,null,null,"C:\\Users\\Usuario\\Downloads\\XML\\VINI\\EMITIDOS\\72CA2504-DD04-4C5A-AD8D-7AD08B997916.xml"]
[null,null,null,null,null,null,null,null,null,null,null,null,null,null,null,null,null,null,null,null,null,null,null,null,null,null,null,null,null,null,null,null,null,null,null,null,null,null,null,null,null,null,null,null,null,null,null,null,null,null,null,null,null,"C:\\Users\\Usuario\\Downloads\\XML\\VINI\\EMITIDOS\\72D239F3-EBDF-43FA-B01F-8900E434E198.xml"]
[null,null,null,null,null,null,null,null,null,null,null,null,null,null,null,null,null,null,null,null,null,null,null,null,null,null,null,null,null,null,null,null,null,null,null,null,null,null,null,null,null,null,null,null,null,null,null,null,null,null,null,null,null,"C:\\Users\\Usuario\\Downloads\\XML\\VINI\\EMITIDOS\\731F9D5E-9C13-4D5D-BAB9-8BF3CBA2749B.xml"]
[]
[]
[]
[null,null,null,null,null,null,null,null,null,null,null,null,null,null,null,null,null,null,null,null,null,null,null,null,null,null,null,null,null,null,null,null,null,null,null,null,null,null,null,null,null,null,null,null,null,null,null,null,null,null,null,null,null,"C:\\Users\\Usuario\\Downloads\\XML\\VINI\\EMITIDOS\\749D9796-F282-48CC-8241-2088A75791DE.xml"]
[null,null,null,null,null,null,null,null,null,null,null,null,null,null,null,null,null,null,null,null,null,null,null,null,null,null,null,null,null,null,null,null,null,null,null,null,null,null,null,null,null,null,null,null,null,null,null,null,null,null,null,null,null,"C:\\Users\\Usuario\\Downloads\\XML\\VINI\\EMITIDOS\\752FB1B7-8F68-4937-8A63-D8FEE7D743F9.xml"]
[]
[]
[null,null,null,null,null,null,null,null,null,null,null,null,null,null,null,null,null,null,null,null,null,null,null,null,null,null,null,null,null,null,null,null,null,null,null,null,null,null,null,null,null,null,null,null,null,null,null,null,null,null,null,null,null,"C:\\Users\\Usuario\\Downloads\\XML\\VINI\\EMITIDOS\\766850D5-EA33-4077-82A8-37DB4A7DCEBB.xml"]
[null,null,null,null,null,null,null,null,null,null,null,null,null,null,null,null,null,null,null,null,null,null,null,null,null,null,null,null,null,null,null,null,null,null,null,null,null,null,null,null,null,null,null,null,null,null,null,null,null,null,null,null,null,"C:\\Users\\Usuario\\Downloads\\XML\\VINI\\EMITIDOS\\7741727D-4453-471D-B44C-7AC8017B6230.xml"]
[null,null,null,null,null,null,null,null,null,null,null,null,null,null,null,null,null,null,null,null,null,null,null,null,null,null,null,null,null,null,null,null,null,null,null,null,null,null,null,null,null,null,null,null,null,null,null,null,null,null,null,null,null,"C:\\Users\\Usuario\\Downloads\\XML\\VINI\\EMITIDOS\\77920405-F30C-4902-8682-5ABCFA789B54.xml"]
[]
[null,null,null,null,null,null,null,null,null,null,null,null,null,null,null,null,null,null,null,null,null,null,null,null,null,null,null,null,null,null,null,null,null,null,null,null,null,null,null,null,null,null,null,null,null,null,null,null,null,null,null,null,null,"C:\\Users\\Usuario\\Downloads\\XML\\VINI\\EMITIDOS\\77D19878-EF12-4B6D-BA66-3E4B86A2ABC4.xml"]
[]
[]
[null,null,null,null,null,null,null,null,null,null,null,null,null,null,null,null,null,null,null,null,null,null,null,null,null,null,null,null,null,null,null,null,null,null,null,null,null,null,null,null,null,null,null,null,null,null,null,null,null,null,null,null,null,"C:\\Users\\Usuario\\Downloads\\XML\\VINI\\EMITIDOS\\77EE9BC0-81F5-4B35-AAEC-986413932148.xml"]
[null,null,null,null,null,null,null,null,null,null,null,null,null,null,null,null,null,null,null,null,null,null,null,null,null,null,null,null,null,null,null,null,null,null,null,null,null,null,null,null,null,null,null,null,null,null,null,null,null,null,null,null,null,"C:\\Users\\Usuario\\Downloads\\XML\\VINI\\EMITIDOS\\7B75B36C-7EC0-44B6-A58C-9A5CD7EC7BB2.xml"]
[]
[]
[]
[null,null,null,null,null,null,null,null,null,null,null,null,null,null,null,null,null,null,null,null,null,null,null,null,null,null,null,null,null,null,null,null,null,null,null,null,null,null,null,null,null,null,null,null,null,null,null,null,null,null,null,null,null,"C:\\Users\\Usuario\\Downloads\\XML\\VINI\\EMITIDOS\\7BA5E80A-6E2D-4D4F-82FD-F6FB8B30513A.xml"]
[]
[]
[null,null,null,null,null,null,null,null,null,null,null,null,null,null,null,null,null,null,null,null,null,null,null,null,null,null,null,null,null,null,null,null,null,null,null,null,null,null,null,null,null,null,null,null,null,null,null,null,null,null,null,null,null,"C:\\Users\\Usuario\\Downloads\\XML\\VINI\\EMITIDOS\\7BB290EF-D078-443C-8041-04E1A6EA7731.xml"]
[null,null,null,null,null,null,null,null,null,null,null,null,null,null,null,null,null,null,null,null,null,null,null,null,null,null,null,null,null,null,null,null,null,null,null,null,null,null,null,null,null,null,null,null,null,null,null,null,null,null,null,null,null,"C:\\Users\\Usuario\\Downloads\\XML\\VINI\\EMITIDOS\\7CEA54A6-5594-4B10-AFCF-768F205682DD.xml"]
[]
[null,null,null,null,null,null,null,null,null,null,null,null,null,null,null,null,null,null,null,null,null,null,null,null,null,null,null,null,null,null,null,null,null,null,null,null,null,null,null,null,null,null,null,null,null,null,null,null,null,null,null,null,null,"C:\\Users\\Usuario\\Downloads\\XML\\VINI\\EMITIDOS\\7D0E696A-5420-43AC-A9FF-98869786A5E0.xml"]
[null,null,null,null,null,null,null,null,null,null,null,null,null,null,null,null,null,null,null,null,null,null,null,null,null,null,null,null,null,null,null,null,null,null,null,null,null,null,null,null,null,null,null,null,null,null,null,null,null,null,null,null,null,"C:\\Users\\Usuario\\Downloads\\XML\\VINI\\EMITIDOS\\7D4777AC-E859-4B19-9C39-28D5EA48A0DD.xml"]
[null,null,null,null,null,null,null,null,null,null,null,null,null,null,null,null,null,null,null,null,null,null,null,null,null,null,null,null,null,null,null,null,null,null,null,null,null,null,null,null,null,null,null,null,null,null,null,null,null,null,null,null,null,"C:\\Users\\Usuario\\Downloads\\XML\\VINI\\EMITIDOS\\7DE143B0-D42C-4AED-9D1A-C8FC6A38B387.xml"]
[null,null,null,null,null,null,null,null,null,null,null,null,null,null,null,null,null,null,null,null,null,null,null,null,null,null,null,null,null,null,null,null,null,null,null,null,null,null,null,null,null,null,null,null,null,null,null,null,null,null,null,null,null,"C:\\Users\\Usuario\\Downloads\\XML\\VINI\\EMITIDOS\\7EE706B8-5FBB-4094-B553-FFA721BA18ED.xml"]
[]
[null,null,null,null,null,null,null,null,null,null,null,null,null,null,null,null,null,null,null,null,null,null,null,null,null,null,null,null,null,null,null,null,null,null,null,null,null,null,null,null,null,null,null,null,null,null,null,null,null,null,null,null,null,"C:\\Users\\Usuario\\Downloads\\XML\\VINI\\EMITIDOS\\7F8C1BA7-CE60-43F6-ADAB-7E6A4AB98DB9.xml"]
[]
[null,null,null,null,null,null,null,null,null,null,null,null,null,null,null,null,null,null,null,null,null,null,null,null,null,null,null,null,null,null,null,null,null,null,null,null,null,null,null,null,null,null,null,null,null,null,null,null,null,null,null,null,null,"C:\\Users\\Usuario\\Downloads\\XML\\VINI\\EMITIDOS\\80EE57AD-1951-4AE6-869D-8496931ED3FB.xml"]
[null,null,null,null,null,null,null,null,null,null,null,null,null,null,null,null,null,null,null,null,null,null,null,null,null,null,null,null,null,null,null,null,null,null,null,null,null,null,null,null,null,null,null,null,null,null,null,null,null,null,null,null,null,"C:\\Users\\Usuario\\Downloads\\XML\\VINI\\EMITIDOS\\816925A2-64EB-40BD-B13A-42E7BF4B8541.xml"]
[]
[]
[]
[null,null,null,null,null,null,null,null,null,null,null,null,null,null,null,null,null,null,null,null,null,null,null,null,null,null,null,null,null,null,null,null,null,null,null,null,null,null,null,null,null,null,null,null,null,null,null,null,null,null,null,null,null,"C:\\Users\\Usuario\\Downloads\\XML\\VINI\\EMITIDOS\\84112F22-BDB7-4A9F-9791-AF2E043A0EAE.xml"]
[]
[]
[]
[]
[]
[]
[]
[null,null,null,null,null,null,null,null,null,null,null,null,null,null,null,null,null,null,null,null,null,null,null,null,null,null,null,null,null,null,null,null,null,null,null,null,null,null,null,null,null,null,null,null,null,null,null,null,null,null,null,null,null,"C:\\Users\\Usuario\\Downloads\\XML\\VINI\\EMITIDOS\\8473B96F-4267-4F5E-BAC4-481D59691E15.xml"]
[null,null,null,null,null,null,null,null,null,null,null,null,null,null,null,null,null,null,null,null,null,null,null,null,null,null,null,null,null,null,null,null,null,null,null,null,null,null,null,null,null,null,null,null,null,null,null,null,null,null,null,null,null,"C:\\Users\\Usuario\\Downloads\\XML\\VINI\\EMITIDOS\\8478DEA0-7457-4671-9844-C906DD96FB56.xml"]
[]
[]
[]
[]
[]
[]
[]
[]
[]
[null,null,null,null,null,null,null,null,null,null,null,null,null,null,null,null,null,null,null,null,null,null,null,null,null,null,null,null,null,null,null,null,null,null,null,null,null,null,null,null,null,null,null,null,null,null,null,null,null,null,null,null,null,"C:\\Users\\Usuario\\Downloads\\XML\\VINI\\EMITIDOS\\84B5A575-69EC-4512-9A8A-E92C69877A85.xml"]
[]
[null,null,null,null,null,null,null,null,null,null,null,null,null,null,null,null,null,null,null,null,null,null,null,null,null,null,null,null,null,null,null,null,null,null,null,null,null,null,null,null,null,null,null,null,null,null,null,null,null,null,null,null,null,"C:\\Users\\Usuario\\Downloads\\XML\\VINI\\EMITIDOS\\86491EAD-A72D-4153-84E1-489D932E6AA2.xml"]
[null,null,null,null,null,null,null,null,null,null,null,null,null,null,null,null,null,null,null,null,null,null,null,null,null,null,null,null,null,null,null,null,null,null,null,null,null,null,null,null,null,null,null,null,null,null,null,null,null,null,null,null,null,"C:\\Users\\Usuario\\Downloads\\XML\\VINI\\EMITIDOS\\86C0C5EF-791C-43AB-B712-E44E43A80122.xml"]
[]
[]
[]
[null,null,null,null,null,null,null,null,null,null,null,null,null,null,null,null,null,null,null,null,null,null,null,null,null,null,null,null,null,null,null,null,null,null,null,null,null,null,null,null,null,null,null,null,null,null,null,null,null,null,null,null,null,"C:\\Users\\Usuario\\Downloads\\XML\\VINI\\EMITIDOS\\86DBA101-A144-4DD3-9738-D705ABCB46A1.xml"]
[]
[]
[]
[null,null,null,null,null,null,null,null,null,null,null,null,null,null,null,null,null,null,null,null,null,null,null,null,null,null,null,null,null,null,null,null,null,null,null,null,null,null,null,null,null,null,null,null,null,null,null,null,null,null,null,null,null,"C:\\Users\\Usuario\\Downloads\\XML\\VINI\\EMITIDOS\\86F91B13-95D7-4E78-B859-CB5B3E2A756F.xml"]
[]
[]
[]
[]
[]
[]
[]
[]
[]
[]
[null,null,null,null,null,null,null,null,null,null,null,null,null,null,null,null,null,null,null,null,null,null,null,null,null,null,null,null,null,null,null,null,null,null,null,null,null,null,null,null,null,null,null,null,null,null,null,null,null,null,null,null,null,"C:\\Users\\Usuario\\Downloads\\XML\\VINI\\EMITIDOS\\87D68F10-82F6-40D7-8EF9-E0882F08165C.xml"]
[]
[]
[null,null,null,null,null,null,null,null,null,null,null,null,null,null,null,null,null,null,null,null,null,null,null,null,null,null,null,null,null,null,null,null,null,null,null,null,null,null,null,null,null,null,null,null,null,null,null,null,null,null,null,null,null,"C:\\Users\\Usuario\\Downloads\\XML\\VINI\\EMITIDOS\\896B743B-050D-4B52-995B-CD0DE5588103.xml"]
[null,null,null,null,null,null,null,null,null,null,null,null,null,null,null,null,null,null,null,null,null,null,null,null,null,null,null,null,null,null,null,null,null,null,null,null,null,null,null,null,null,null,null,null,null,null,null,null,null,null,null,null,null,"C:\\Users\\Usuario\\Downloads\\XML\\VINI\\EMITIDOS\\89E229A8-773F-4D72-983B-668958214CDA.xml"]
[]
[]
[]
[]
[]
[]
[]
[null,null,null,null,null,null,null,null,null,null,null,null,null,null,null,null,null,null,null,null,null,null,null,null,null,null,null,null,null,null,null,null,null,null,null,null,null,null,null,null,null,null,null,null,null,null,null,null,null,null,null,null,null,"C:\\Users\\Usuario\\Downloads\\XML\\VINI\\EMITIDOS\\8D524852-03B7-4964-AFFC-FB9A6592DAB3.xml"]
[null,null,null,null,null,null,null,null,null,null,null,null,null,null,null,null,null,null,null,null,null,null,null,null,null,null,null,null,null,null,null,null,null,null,null,null,null,null,null,null,null,null,null,null,null,null,null,null,null,null,null,null,null,"C:\\Users\\Usuario\\Downloads\\XML\\VINI\\EMITIDOS\\8E138BEE-8385-42EF-A83A-F3E4BA05BD83.xml"]
[]
[null,null,null,null,null,null,null,null,null,null,null,null,null,null,null,null,null,null,null,null,null,null,null,null,null,null,null,null,null,null,null,null,null,null,null,null,null,null,null,null,null,null,null,null,null,null,null,null,null,null,null,null,null,"C:\\Users\\Usuario\\Downloads\\XML\\VINI\\EMITIDOS\\8F5C0EC2-8F03-47F1-9874-F5E07556F1F7.xml"]
[null,null,null,null,null,null,null,null,null,null,null,null,null,null,null,null,null,null,null,null,null,null,null,null,null,null,null,null,null,null,null,null,null,null,null,null,null,null,null,null,null,null,null,null,null,null,null,null,null,null,null,null,null,"C:\\Users\\Usuario\\Downloads\\XML\\VINI\\EMITIDOS\\9068E43A-6FBE-43E0-8985-BC32B595D4E5.xml"]
[]
[]
[null,null,null,null,null,null,null,null,null,null,null,null,null,null,null,null,null,null,null,null,null,null,null,null,null,null,null,null,null,null,null,null,null,null,null,null,null,null,null,null,null,null,null,null,null,null,null,null,null,null,null,null,null,"C:\\Users\\Usuario\\Downloads\\XML\\VINI\\EMITIDOS\\90B39660-FD58-4BA7-8762-E11CA2D6BB9C.xml"]
[null,null,null,null,null,null,null,null,null,null,null,null,null,null,null,null,null,null,null,null,null,null,null,null,null,null,null,null,null,null,null,null,null,null,null,null,null,null,null,null,null,null,null,null,null,null,null,null,null,null,null,null,null,"C:\\Users\\Usuario\\Downloads\\XML\\VINI\\EMITIDOS\\91101A96-985E-4B19-93DE-8DA0B8CE6FDA.xml"]
[]
[]
[]
[]
[null,null,null,null,null,null,null,null,null,null,null,null,null,null,null,null,null,null,null,null,null,null,null,null,null,null,null,null,null,null,null,null,null,null,null,null,null,null,null,null,null,null,null,null,null,null,null,null,null,null,null,null,null,"C:\\Users\\Usuario\\Downloads\\XML\\VINI\\EMITIDOS\\912F78E4-9715-43AF-97E4-2D8E6AD245AB.xml"]
[]
[]
[]
[]
[]
[]
[]
[]
[]
[]
[]
[]
[null,null,null,null,null,null,null,null,null,null,null,null,null,null,null,null,null,null,null,null,null,null,null,null,null,null,null,null,null,null,null,null,null,null,null,null,null,null,null,null,null,null,null,null,null,null,null,null,null,null,null,null,null,"C:\\Users\\Usuario\\Downloads\\XML\\VINI\\EMITIDOS\\916C4041-57C0-496E-85EC-93DB19C514CE.xml"]
[null,null,null,null,null,null,null,null,null,null,null,null,null,null,null,null,null,null,null,null,null,null,null,null,null,null,null,null,null,null,null,null,null,null,null,null,null,null,null,null,null,null,null,null,null,null,null,null,null,null,null,null,null,"C:\\Users\\Usuario\\Downloads\\XML\\VINI\\EMITIDOS\\93EC033A-1601-4E8E-962F-A2E6667FA0D0.xml"]
[]
[null,null,null,null,null,null,null,null,null,null,null,null,null,null,null,null,null,null,null,null,null,null,null,null,null,null,null,null,null,null,null,null,null,null,null,null,null,null,null,null,null,null,null,null,null,null,null,null,null,null,null,null,null,"C:\\Users\\Usuario\\Downloads\\XML\\VINI\\EMITIDOS\\944CABCE-A57E-4FB6-A873-1112BF417583.xml"]
[]
[]
[]
[null,null,null,null,null,null,null,null,null,null,null,null,null,null,null,null,null,null,null,null,null,null,null,null,null,null,null,null,null,null,null,null,null,null,null,null,null,null,null,null,null,null,null,null,null,null,null,null,null,null,null,null,null,"C:\\Users\\Usuario\\Downloads\\XML\\VINI\\EMITIDOS\\948D7CDC-FDA6-458F-AFAA-DBFCEE95B066.xml"]
[]
[]
[null,null,null,null,null,null,null,null,null,null,null,null,null,null,null,null,null,null,null,null,null,null,null,null,null,null,null,null,null,null,null,null,null,null,null,null,null,null,null,null,null,null,null,null,null,null,null,null,null,null,null,null,null,"C:\\Users\\Usuario\\Downloads\\XML\\VINI\\EMITIDOS\\94997251-F61D-47C3-9BD1-3874316DE654.xml"]
[null,null,null,null,null,null,null,null,null,null,null,null,null,null,null,null,null,null,null,null,null,null,null,null,null,null,null,null,null,null,null,null,null,null,null,null,null,null,null,null,null,null,null,null,null,null,null,null,null,null,null,null,null,"C:\\Users\\Usuario\\Downloads\\XML\\VINI\\EMITIDOS\\95CEDD32-39B1-4758-BC22-93B99B1234B4.xml"]
[]
[]
[]
[null,null,null,null,null,null,null,null,null,null,null,null,null,null,null,null,null,null,null,null,null,null,null,null,null,null,null,null,null,null,null,null,null,null,null,null,null,null,null,null,null,null,null,null,null,null,null,null,null,null,null,null,null,"C:\\Users\\Usuario\\Downloads\\XML\\VINI\\EMITIDOS\\96137737-EDD8-480A-9E74-DCAEDF14DF5B.xml"]
[]
[]
[null,null,null,null,null,null,null,null,null,null,null,null,null,null,null,null,null,null,null,null,null,null,null,null,null,null,null,null,null,null,null,null,null,null,null,null,null,null,null,null,null,null,null,null,null,null,null,null,null,null,null,null,null,"C:\\Users\\Usuario\\Downloads\\XML\\VINI\\EMITIDOS\\967C190D-4EF1-4FED-82A1-5D2203A96B38.xml"]
[]
[null,null,null,null,null,null,null,null,null,null,null,null,null,null,null,null,null,null,null,null,null,null,null,null,null,null,null,null,null,null,null,null,null,null,null,null,null,null,null,null,null,null,null,null,null,null,null,null,null,null,null,null,null,"C:\\Users\\Usuario\\Downloads\\XML\\VINI\\EMITIDOS\\97C14BC3-C2F1-4542-8C3B-00A211346E05.xml"]
[]
[]
[]
[]
[null,null,null,null,null,null,null,null,null,null,null,null,null,null,null,null,null,null,null,null,null,null,null,null,null,null,null,null,null,null,null,null,null,null,null,null,null,null,null,null,null,null,null,null,null,null,null,null,null,null,null,null,null,"C:\\Users\\Usuario\\Downloads\\XML\\VINI\\EMITIDOS\\97D2B19E-9DB1-43D8-82BC-E7A33DC0D6AA.xml"]
[]
[]
[null,null,null,null,null,null,null,null,null,null,null,null,null,null,null,null,null,null,null,null,null,null,null,null,null,null,null,null,null,null,null,null,null,null,null,null,null,null,null,null,null,null,null,null,null,null,null,null,null,null,null,null,null,"C:\\Users\\Usuario\\Downloads\\XML\\VINI\\EMITIDOS\\982C963A-89F6-40BB-A43E-0C84566CF6FF.xml"]
[null,null,null,null,null,null,null,null,null,null,null,null,null,null,null,null,null,null,null,null,null,null,null,null,null,null,null,null,null,null,null,null,null,null,null,null,null,null,null,null,null,null,null,null,null,null,null,null,null,null,null,null,null,"C:\\Users\\Usuario\\Downloads\\XML\\VINI\\EMITIDOS\\99414B6A-72AC-432A-B14B-CE034C8CBAC1.xml"]
[null,null,null,null,null,null,null,null,null,null,null,null,null,null,null,null,null,null,null,null,null,null,null,null,null,null,null,null,null,null,null,null,null,null,null,null,null,null,null,null,null,null,null,null,null,null,null,null,null,null,null,null,null,"C:\\Users\\Usuario\\Downloads\\XML\\VINI\\EMITIDOS\\999E0727-A1D3-4751-803D-5A4F85659482.xml"]
[]
[]
[null,null,null,null,null,null,null,null,null,null,null,null,null,null,null,null,null,null,null,null,null,null,null,null,null,null,null,null,null,null,null,null,null,null,null,null,null,null,null,null,null,null,null,null,null,null,null,null,null,null,null,null,null,"C:\\Users\\Usuario\\Downloads\\XML\\VINI\\EMITIDOS\\99C0540A-E6A8-409E-8121-A46E88F3B869.xml"]
[]
[]
[null,null,null,null,null,null,null,null,null,null,null,null,null,null,null,null,null,null,null,null,null,null,null,null,null,null,null,null,null,null,null,null,null,null,null,null,null,null,null,null,null,null,null,null,null,null,null,null,null,null,null,null,null,"C:\\Users\\Usuario\\Downloads\\XML\\VINI\\EMITIDOS\\9A83235F-2AAB-45A3-96DE-1256545DDFF0.xml"]
[]
[]
[null,null,null,null,null,null,null,null,null,null,null,null,null,null,null,null,null,null,null,null,null,null,null,null,null,null,null,null,null,null,null,null,null,null,null,null,null,null,null,null,null,null,null,null,null,null,null,null,null,null,null,null,null,"C:\\Users\\Usuario\\Downloads\\XML\\VINI\\EMITIDOS\\9AD96535-443B-492D-AE83-F5CDF6A66365.xml"]
[null,null,null,null,null,null,null,null,null,null,null,null,null,null,null,null,null,null,null,null,null,null,null,null,null,null,null,null,null,null,null,null,null,null,null,null,null,null,null,null,null,null,null,null,null,null,null,null,null,null,null,null,null,"C:\\Users\\Usuario\\Downloads\\XML\\VINI\\EMITIDOS\\9BA47BFD-63D3-4444-A104-9A22F4CD904B.xml"]
[]
[null,null,null,null,null,null,null,null,null,null,null,null,null,null,null,null,null,null,null,null,null,null,null,null,null,null,null,null,null,null,null,null,null,null,null,null,null,null,null,null,null,null,null,null,null,null,null,null,null,null,null,null,null,"C:\\Users\\Usuario\\Downloads\\XML\\VINI\\EMITIDOS\\9BBF226B-DDBF-4203-B4DF-F00ADB3E0719.xml"]
[]
[]
[]
[null,null,null,null,null,null,null,null,null,null,null,null,null,null,null,null,null,null,null,null,null,null,null,null,null,null,null,null,null,null,null,null,null,null,null,null,null,null,null,null,null,null,null,null,null,null,null,null,null,null,null,null,null,"C:\\Users\\Usuario\\Downloads\\XML\\VINI\\EMITIDOS\\9CBA3914-6F89-4E3B-A62B-71D1F489FDE5.xml"]
[null,null,null,null,null,null,null,null,null,null,null,null,null,null,null,null,null,null,null,null,null,null,null,null,null,null,null,null,null,null,null,null,null,null,null,null,null,null,null,null,null,null,null,null,null,null,null,null,null,null,null,null,null,"C:\\Users\\Usuario\\Downloads\\XML\\VINI\\EMITIDOS\\9DA92664-A488-456A-8535-39AF34DDD3C8.xml"]
[null,null,null,null,null,null,null,null,null,null,null,null,null,null,null,null,null,null,null,null,null,null,null,null,null,null,null,null,null,null,null,null,null,null,null,null,null,null,null,null,null,null,null,null,null,null,null,null,null,null,null,null,null,"C:\\Users\\Usuario\\Downloads\\XML\\VINI\\EMITIDOS\\9E9156BE-DC16-4CE0-A02C-29EDDE034EE3.xml"]
[]
[null,null,null,null,null,null,null,null,null,null,null,null,null,null,null,null,null,null,null,null,null,null,null,null,null,null,null,null,null,null,null,null,null,null,null,null,null,null,null,null,null,null,null,null,null,null,null,null,null,null,null,null,null,"C:\\Users\\Usuario\\Downloads\\XML\\VINI\\EMITIDOS\\9E9F9363-205C-488C-BCBC-BC4A050A32B3.xml"]
[]
[]
[]
[]
[null,null,null,null,null,null,null,null,null,null,null,null,null,null,null,null,null,null,null,null,null,null,null,null,null,null,null,null,null,null,null,null,null,null,null,null,null,null,null,null,null,null,null,null,null,null,null,null,null,null,null,null,null,"C:\\Users\\Usuario\\Downloads\\XML\\VINI\\EMITIDOS\\A1CA7A59-95CF-4ABB-BA14-8FE06858BFC0.xml"]
[null,null,null,null,null,null,null,null,null,null,null,null,null,null,null,null,null,null,null,null,null,null,null,null,null,null,null,null,null,null,null,null,null,null,null,null,null,null,null,null,null,null,null,null,null,null,null,null,null,null,null,null,null,"C:\\Users\\Usuario\\Downloads\\XML\\VINI\\EMITIDOS\\A2BF52A7-147E-459F-9066-6C5D038CFB33.xml"]
[]
[]
[]
[]
[null,null,null,null,null,null,null,null,null,null,null,null,null,null,null,null,null,null,null,null,null,null,null,null,null,null,null,null,null,null,null,null,null,null,null,null,null,null,null,null,null,null,null,null,null,null,null,null,null,null,null,null,null,"C:\\Users\\Usuario\\Downloads\\XML\\VINI\\EMITIDOS\\A2D007F9-6EF5-403B-BFA3-270C4FD79F30.xml"]
[]
[]
[null,null,null,null,null,null,null,null,null,null,null,null,null,null,null,null,null,null,null,null,null,null,null,null,null,null,null,null,null,null,null,null,null,null,null,null,null,null,null,null,null,null,null,null,null,null,null,null,null,null,null,null,null,"C:\\Users\\Usuario\\Downloads\\XML\\VINI\\EMITIDOS\\A35BA201-6F61-4A4B-A202-989DD940C870.xml"]
[null,null,null,null,null,null,null,null,null,null,null,null,null,null,null,null,null,null,null,null,null,null,null,null,null,null,null,null,null,null,null,null,null,null,null,null,null,null,null,null,null,null,null,null,null,null,null,null,null,null,null,null,null,"C:\\Users\\Usuario\\Downloads\\XML\\VINI\\EMITIDOS\\A49A97D7-51E9-4DB0-B7CE-8F0C61018418.xml"]
[null,null,null,null,null,null,null,null,null,null,null,null,null,null,null,null,null,null,null,null,null,null,null,null,null,null,null,null,null,null,null,null,null,null,null,null,null,null,null,null,null,null,null,null,null,null,null,null,null,null,null,null,null,"C:\\Users\\Usuario\\Downloads\\XML\\VINI\\EMITIDOS\\A568DD8A-8F36-42C0-82F6-7257F5F6B44D.xml"]
[]
[]
[]
[]
[null,null,null,null,null,null,null,null,null,null,null,null,null,null,null,null,null,null,null,null,null,null,null,null,null,null,null,null,null,null,null,null,null,null,null,null,null,null,null,null,null,null,null,null,null,null,null,null,null,null,null,null,null,"C:\\Users\\Usuario\\Downloads\\XML\\VINI\\EMITIDOS\\A59C7D8F-39E0-45F0-BCFA-4744D6F47649.xml"]
[null,null,null,null,null,null,null,null,null,null,null,null,null,null,null,null,null,null,null,null,null,null,null,null,null,null,null,null,null,null,null,null,null,null,null,null,null,null,null,null,null,null,null,null,null,null,null,null,null,null,null,null,null,"C:\\Users\\Usuario\\Downloads\\XML\\VINI\\EMITIDOS\\A5FD726C-676D-4702-B6B6-3F7DD3C6E394.xml"]
[null,null,null,null,null,null,null,null,null,null,null,null,null,null,null,null,null,null,null,null,null,null,null,null,null,null,null,null,null,null,null,null,null,null,null,null,null,null,null,null,null,null,null,null,null,null,null,null,null,null,null,null,null,"C:\\Users\\Usuario\\Downloads\\XML\\VINI\\EMITIDOS\\A632A307-D7F6-42D1-BE44-72A4321D910A.xml"]
[null,null,null,null,null,null,null,null,null,null,null,null,null,null,null,null,null,null,null,null,null,null,null,null,null,null,null,null,null,null,null,null,null,null,null,null,null,null,null,null,null,null,null,null,null,null,null,null,null,null,null,null,null,"C:\\Users\\Usuario\\Downloads\\XML\\VINI\\EMITIDOS\\A9CB419F-F7B8-4983-B69A-115B26E1CE58.xml"]
[null,null,null,null,null,null,null,null,null,null,null,null,null,null,null,null,null,null,null,null,null,null,null,null,null,null,null,null,null,null,null,null,null,null,null,null,null,null,null,null,null,null,null,null,null,null,null,null,null,null,null,null,null,"C:\\Users\\Usuario\\Downloads\\XML\\VINI\\EMITIDOS\\A9F40AC1-6A12-4B46-A66B-0D83330F6650.xml"]
[]
[]
[null,null,null,null,null,null,null,null,null,null,null,null,null,null,null,null,null,null,null,null,null,null,null,null,null,null,null,null,null,null,null,null,null,null,null,null,null,null,null,null,null,null,null,null,null,null,null,null,null,null,null,null,null,"C:\\Users\\Usuario\\Downloads\\XML\\VINI\\EMITIDOS\\ABC8F3EF-A945-4270-9FA1-865EAE3271AE.xml"]
[]
[null,null,null,null,null,null,null,null,null,null,null,null,null,null,null,null,null,null,null,null,null,null,null,null,null,null,null,null,null,null,null,null,null,null,null,null,null,null,null,null,null,null,null,null,null,null,null,null,null,null,null,null,null,"C:\\Users\\Usuario\\Downloads\\XML\\VINI\\EMITIDOS\\AC282C9E-984D-4065-88FD-6399D2205834.xml"]
[]
[]
[]
[null,null,null,null,null,null,null,null,null,null,null,null,null,null,null,null,null,null,null,null,null,null,null,null,null,null,null,null,null,null,null,null,null,null,null,null,null,null,null,null,null,null,null,null,null,null,null,null,null,null,null,null,null,"C:\\Users\\Usuario\\Downloads\\XML\\VINI\\EMITIDOS\\ACE7EBA3-BCAC-4978-ABF1-81A7D52E606D.xml"]
[null,null,null,null,null,null,null,null,null,null,null,null,null,null,null,null,null,null,null,null,null,null,null,null,null,null,null,null,null,null,null,null,null,null,null,null,null,null,null,null,null,null,null,null,null,null,null,null,null,null,null,null,null,"C:\\Users\\Usuario\\Downloads\\XML\\VINI\\EMITIDOS\\AD93C4B3-1300-4864-A44E-B6ED9B7DD0BD.xml"]
[null,null,null,null,null,null,null,null,null,null,null,null,null,null,null,null,null,null,null,null,null,null,null,null,null,null,null,null,null,null,null,null,null,null,null,null,null,null,null,null,null,null,null,null,null,null,null,null,null,null,null,null,null,"C:\\Users\\Usuario\\Downloads\\XML\\VINI\\EMITIDOS\\AE941AD7-3B19-4EE8-9C4C-4C7BCB8526EA.xml"]
[null,null,null,null,null,null,null,null,null,null,null,null,null,null,null,null,null,null,null,null,null,null,null,null,null,null,null,null,null,null,null,null,null,null,null,null,null,null,null,null,null,null,null,null,null,null,null,null,null,null,null,null,null,"C:\\Users\\Usuario\\Downloads\\XML\\VINI\\EMITIDOS\\B044FA9D-048D-472C-A000-79EA6DF4C45A.xml"]
[null,null,null,null,null,null,null,null,null,null,null,null,null,null,null,null,null,null,null,null,null,null,null,null,null,null,null,null,null,null,null,null,null,null,null,null,null,null,null,null,null,null,null,null,null,null,null,null,null,null,null,null,null,"C:\\Users\\Usuario\\Downloads\\XML\\VINI\\EMITIDOS\\B1E981A9-8855-4082-A0F9-391B611DF4D7.xml"]
[null,null,null,null,null,null,null,null,null,null,null,null,null,null,null,null,null,null,null,null,null,null,null,null,null,null,null,null,null,null,null,null,null,null,null,null,null,null,null,null,null,null,null,null,null,null,null,null,null,null,null,null,null,"C:\\Users\\Usuario\\Downloads\\XML\\VINI\\EMITIDOS\\B1F9DAEC-6F26-4A9E-BE48-ABC10221FCEF.xml"]
[]
[]
[]
[]
[]
[null,null,null,null,null,null,null,null,null,null,null,null,null,null,null,null,null,null,null,null,null,null,null,null,null,null,null,null,null,null,null,null,null,null,null,null,null,null,null,null,null,null,null,null,null,null,null,null,null,null,null,null,null,"C:\\Users\\Usuario\\Downloads\\XML\\VINI\\EMITIDOS\\B2459CF3-623C-4DDB-BDC4-6B99F1E8E08A.xml"]
[null,null,null,null,null,null,null,null,null,null,null,null,null,null,null,null,null,null,null,null,null,null,null,null,null,null,null,null,null,null,null,null,null,null,null,null,null,null,null,null,null,null,null,null,null,null,null,null,null,null,null,null,null,"C:\\Users\\Usuario\\Downloads\\XML\\VINI\\EMITIDOS\\B273CE3A-3BAD-4E47-8889-ECAF105D2E09.xml"]
[]
[]
[]
[]
[]
[]
[]
[]
[]
[null,null,null,null,null,null,null,null,null,null,null,null,null,null,null,null,null,null,null,null,null,null,null,null,null,null,null,null,null,null,null,null,null,null,null,null,null,null,null,null,null,null,null,null,null,null,null,null,null,null,null,null,null,"C:\\Users\\Usuario\\Downloads\\XML\\VINI\\EMITIDOS\\B2B55690-C54D-4903-990D-543AB83A1E6C.xml"]
[null,null,null,null,null,null,null,null,null,null,null,null,null,null,null,null,null,null,null,null,null,null,null,null,null,null,null,null,null,null,null,null,null,null,null,null,null,null,null,null,null,null,null,null,null,null,null,null,null,null,null,null,null,"C:\\Users\\Usuario\\Downloads\\XML\\VINI\\EMITIDOS\\B37DB665-CBB2-4685-AD21-DC1759221915.xml"]
[]
[]
[]
[null,null,null,null,null,null,null,null,null,null,null,null,null,null,null,null,null,null,null,null,null,null,null,null,null,null,null,null,null,null,null,null,null,null,null,null,null,null,null,null,null,null,null,null,null,null,null,null,null,null,null,null,null,"C:\\Users\\Usuario\\Downloads\\XML\\VINI\\EMITIDOS\\B49DB195-30C6-435F-9A3D-3BB833F9102A.xml"]
[]
[]
[]
[]
[]
[]
[]
[]
[]
[null,null,null,null,null,null,null,null,null,null,null,null,null,null,null,null,null,null,null,null,null,null,null,null,null,null,null,null,null,null,null,null,null,null,null,null,null,null,null,null,null,null,null,null,null,null,null,null,null,null,null,null,null,"C:\\Users\\Usuario\\Downloads\\XML\\VINI\\EMITIDOS\\B66C2655-D01A-49F9-ACD6-3354738AE08B.xml"]
[]
[]
[]
[]
[]
[]
[null,null,null,null,null,null,null,null,null,null,null,null,null,null,null,null,null,null,null,null,null,null,null,null,null,null,null,null,null,null,null,null,null,null,null,null,null,null,null,null,null,null,null,null,null,null,null,null,null,null,null,null,null,"C:\\Users\\Usuario\\Downloads\\XML\\VINI\\EMITIDOS\\B673C8B2-0AF7-49DE-8B71-64B19A01B6B2.xml"]
[]
[]
[]
[]
[]
[]
[]
[]
[]
[]
[]
[null,null,null,null,null,null,null,null,null,null,null,null,null,null,null,null,null,null,null,null,null,null,null,null,null,null,null,null,null,null,null,null,null,null,null,null,null,null,null,null,null,null,null,null,null,null,null,null,null,null,null,null,null,"C:\\Users\\Usuario\\Downloads\\XML\\VINI\\EMITIDOS\\B6C85DA6-B6D3-408F-BB44-777E8EFC22E9.xml"]
[]
[]
[]
[]
[null,null,null,null,null,null,null,null,null,null,null,null,null,null,null,null,null,null,null,null,null,null,null,null,null,null,null,null,null,null,null,null,null,null,null,null,null,null,null,null,null,null,null,null,null,null,null,null,null,null,null,null,null,"C:\\Users\\Usuario\\Downloads\\XML\\VINI\\EMITIDOS\\B6E58734-9C25-48D8-BB2D-91287027DBBD.xml"]
[null,null,null,null,null,null,null,null,null,null,null,null,null,null,null,null,null,null,null,null,null,null,null,null,null,null,null,null,null,null,null,null,null,null,null,null,null,null,null,null,null,null,null,null,null,null,null,null,null,null,null,null,null,"C:\\Users\\Usuario\\Downloads\\XML\\VINI\\EMITIDOS\\B710BB8F-8DD1-4BE8-A7E1-51557D2DD211.xml"]
[null,null,null,null,null,null,null,null,null,null,null,null,null,null,null,null,null,null,null,null,null,null,null,null,null,null,null,null,null,null,null,null,null,null,null,null,null,null,null,null,null,null,null,null,null,null,null,null,null,null,null,null,null,"C:\\Users\\Usuario\\Downloads\\XML\\VINI\\EMITIDOS\\B7A78E19-E183-404B-AC9D-A8560649A304.xml"]
[]
[]
[null,null,null,null,null,null,null,null,null,null,null,null,null,null,null,null,null,null,null,null,null,null,null,null,null,null,null,null,null,null,null,null,null,null,null,null,null,null,null,null,null,null,null,null,null,null,null,null,null,null,null,null,null,"C:\\Users\\Usuario\\Downloads\\XML\\VINI\\EMITIDOS\\B94A9EFB-30A0-4468-A329-E9B93D7C560D.xml"]
[null,null,null,null,null,null,null,null,null,null,null,null,null,null,null,null,null,null,null,null,null,null,null,null,null,null,null,null,null,null,null,null,null,null,null,null,null,null,null,null,null,null,null,null,null,null,null,null,null,null,null,null,null,"C:\\Users\\Usuario\\Downloads\\XML\\VINI\\EMITIDOS\\BA26EBCF-9F87-4783-824F-D5A566B5A29B.xml"]
[]
[]
[]
[]
[]
[]
[]
[]
[null,null,null,null,null,null,null,null,null,null,null,null,null,null,null,null,null,null,null,null,null,null,null,null,null,null,null,null,null,null,null,null,null,null,null,null,null,null,null,null,null,null,null,null,null,null,null,null,null,null,null,null,null,"C:\\Users\\Usuario\\Downloads\\XML\\VINI\\EMITIDOS\\BAC8F623-04BB-42E7-836C-C17981FF8E16.xml"]
[]
[null,null,null,null,null,null,null,null,null,null,null,null,null,null,null,null,null,null,null,null,null,null,null,null,null,null,null,null,null,null,null,null,null,null,null,null,null,null,null,null,null,null,null,null,null,null,null,null,null,null,null,null,null,"C:\\Users\\Usuario\\Downloads\\XML\\VINI\\EMITIDOS\\BBC12624-9DAD-4EED-9BAB-C32E5CB73F11.xml"]
[null,null,null,null,null,null,null,null,null,null,null,null,null,null,null,null,null,null,null,null,null,null,null,null,null,null,null,null,null,null,null,null,null,null,null,null,null,null,null,null,null,null,null,null,null,null,null,null,null,null,null,null,null,"C:\\Users\\Usuario\\Downloads\\XML\\VINI\\EMITIDOS\\BBCD88F4-3F2F-4AF6-9E7E-3BDB033D31F3.xml"]
[null,null,null,null,null,null,null,null,null,null,null,null,null,null,null,null,null,null,null,null,null,null,null,null,null,null,null,null,null,null,null,null,null,null,null,null,null,null,null,null,null,null,null,null,null,null,null,null,null,null,null,null,null,"C:\\Users\\Usuario\\Downloads\\XML\\VINI\\EMITIDOS\\BBCF9940-DAE9-4A77-86C5-ED9714538F08.xml"]
[]
[]
[null,null,null,null,null,null,null,null,null,null,null,null,null,null,null,null,null,null,null,null,null,null,null,null,null,null,null,null,null,null,null,null,null,null,null,null,null,null,null,null,null,null,null,null,null,null,null,null,null,null,null,null,null,"C:\\Users\\Usuario\\Downloads\\XML\\VINI\\EMITIDOS\\BC541240-DC7B-4EC8-81A7-6F8208E8E2C2.xml"]
[]
[null,null,null,null,null,null,null,null,null,null,null,null,null,null,null,null,null,null,null,null,null,null,null,null,null,null,null,null,null,null,null,null,null,null,null,null,null,null,null,null,null,null,null,null,null,null,null,null,null,null,null,null,null,"C:\\Users\\Usuario\\Downloads\\XML\\VINI\\EMITIDOS\\BC9E01E4-0FDB-4EF1-909C-D7642608B471.xml"]
[null,null,null,null,null,null,null,null,null,null,null,null,null,null,null,null,null,null,null,null,null,null,null,null,null,null,null,null,null,null,null,null,null,null,null,null,null,null,null,null,null,null,null,null,null,null,null,null,null,null,null,null,null,"C:\\Users\\Usuario\\Downloads\\XML\\VINI\\EMITIDOS\\BCE94699-5669-4D2F-A28A-83F19C455CB3.xml"]
[]
[]
[null,null,null,null,null,null,null,null,null,null,null,null,null,null,null,null,null,null,null,null,null,null,null,null,null,null,null,null,null,null,null,null,null,null,null,null,null,null,null,null,null,null,null,null,null,null,null,null,null,null,null,null,null,"C:\\Users\\Usuario\\Downloads\\XML\\VINI\\EMITIDOS\\BF40D9AA-7F5C-493D-8C20-15D07A630AF0.xml"]
[null,null,null,null,null,null,null,null,null,null,null,null,null,null,null,null,null,null,null,null,null,null,null,null,null,null,null,null,null,null,null,null,null,null,null,null,null,null,null,null,null,null,null,null,null,null,null,null,null,null,null,null,null,"C:\\Users\\Usuario\\Downloads\\XML\\VINI\\EMITIDOS\\BF56A5CD-7C1C-4F59-9262-8574A2A14216.xml"]
[]
[]
[]
[null,null,null,null,null,null,null,null,null,null,null,null,null,null,null,null,null,null,null,null,null,null,null,null,null,null,null,null,null,null,null,null,null,null,null,null,null,null,null,null,null,null,null,null,null,null,null,null,null,null,null,null,null,"C:\\Users\\Usuario\\Downloads\\XML\\VINI\\EMITIDOS\\C15D5FCB-F0CA-47F3-B205-971FFBAB9E2D.xml"]
[]
[]
[null,null,null,null,null,null,null,null,null,null,null,null,null,null,null,null,null,null,null,null,null,null,null,null,null,null,null,null,null,null,null,null,null,null,null,null,null,null,null,null,null,null,null,null,null,null,null,null,null,null,null,null,null,"C:\\Users\\Usuario\\Downloads\\XML\\VINI\\EMITIDOS\\C1710DA1-9F7C-4FD3-9458-AF491F44890B.xml"]
[]
[]
[null,null,null,null,null,null,null,null,null,null,null,null,null,null,null,null,null,null,null,null,null,null,null,null,null,null,null,null,null,null,null,null,null,null,null,null,null,null,null,null,null,null,null,null,null,null,null,null,null,null,null,null,null,"C:\\Users\\Usuario\\Downloads\\XML\\VINI\\EMITIDOS\\C1BE482A-6758-425E-8D1F-95E745D342C2.xml"]
[]
[]
[null,null,null,null,null,null,null,null,null,null,null,null,null,null,null,null,null,null,null,null,null,null,null,null,null,null,null,null,null,null,null,null,null,null,null,null,null,null,null,null,null,null,null,null,null,null,null,null,null,null,null,null,null,"C:\\Users\\Usuario\\Downloads\\XML\\VINI\\EMITIDOS\\C203F70D-63D8-4F55-A760-D0D31348D246.xml"]
[]
[]
[null,null,null,null,null,null,null,null,null,null,null,null,null,null,null,null,null,null,null,null,null,null,null,null,null,null,null,null,null,null,null,null,null,null,null,null,null,null,null,null,null,null,null,null,null,null,null,null,null,null,null,null,null,"C:\\Users\\Usuario\\Downloads\\XML\\VINI\\EMITIDOS\\C3459F69-D839-4987-9124-C57796113912.xml"]
[null,null,null,null,null,null,null,null,null,null,null,null,null,null,null,null,null,null,null,null,null,null,null,null,null,null,null,null,null,null,null,null,null,null,null,null,null,null,null,null,null,null,null,null,null,null,null,null,null,null,null,null,null,"C:\\Users\\Usuario\\Downloads\\XML\\VINI\\EMITIDOS\\C37D2CEA-3488-4BE8-AA5B-00C0C0BF665F.xml"]
[]
[null,null,null,null,null,null,null,null,null,null,null,null,null,null,null,null,null,null,null,null,null,null,null,null,null,null,null,null,null,null,null,null,null,null,null,null,null,null,null,null,null,null,null,null,null,null,null,null,null,null,null,null,null,"C:\\Users\\Usuario\\Downloads\\XML\\VINI\\EMITIDOS\\C4009962-75F6-445E-BE4E-6CF0BFFB8623.xml"]
[null,null,null,null,null,null,null,null,null,null,null,null,null,null,null,null,null,null,null,null,null,null,null,null,null,null,null,null,null,null,null,null,null,null,null,null,null,null,null,null,null,null,null,null,null,null,null,null,null,null,null,null,null,"C:\\Users\\Usuario\\Downloads\\XML\\VINI\\EMITIDOS\\C41E94F7-A9DA-4B82-8455-74355F275563.xml"]
[null,null,null,null,null,null,null,null,null,null,null,null,null,null,null,null,null,null,null,null,null,null,null,null,null,null,null,null,null,null,null,null,null,null,null,null,null,null,null,null,null,null,null,null,null,null,null,null,null,null,null,null,null,"C:\\Users\\Usuario\\Downloads\\XML\\VINI\\EMITIDOS\\C4C86888-35AB-4853-9013-20D8C4539AA4.xml"]
[null,null,null,null,null,null,null,null,null,null,null,null,null,null,null,null,null,null,null,null,null,null,null,null,null,null,null,null,null,null,null,null,null,null,null,null,null,null,null,null,null,null,null,null,null,null,null,null,null,null,null,null,null,"C:\\Users\\Usuario\\Downloads\\XML\\VINI\\EMITIDOS\\C4EBB41B-F500-471A-90DC-4F11B8CE8C43.xml"]
[null,null,null,null,null,null,null,null,null,null,null,null,null,null,null,null,null,null,null,null,null,null,null,null,null,null,null,null,null,null,null,null,null,null,null,null,null,null,null,null,null,null,null,null,null,null,null,null,null,null,null,null,null,"C:\\Users\\Usuario\\Downloads\\XML\\VINI\\EMITIDOS\\C538305D-3542-4621-A362-5F9D86A4D800.xml"]
[]
[]
[null,null,null,null,null,null,null,null,null,null,null,null,null,null,null,null,null,null,null,null,null,null,null,null,null,null,null,null,null,null,null,null,null,null,null,null,null,null,null,null,null,null,null,null,null,null,null,null,null,null,null,null,null,"C:\\Users\\Usuario\\Downloads\\XML\\VINI\\EMITIDOS\\C5D2BC05-21D3-4334-A789-9A5894E3FE13.xml"]
[null,null,null,null,null,null,null,null,null,null,null,null,null,null,null,null,null,null,null,null,null,null,null,null,null,null,null,null,null,null,null,null,null,null,null,null,null,null,null,null,null,null,null,null,null,null,null,null,null,null,null,null,null,"C:\\Users\\Usuario\\Downloads\\XML\\VINI\\EMITIDOS\\C6C1F43F-3D34-4184-B9D1-6A83D005F614.xml"]
[null,null,null,null,null,null,null,null,null,null,null,null,null,null,null,null,null,null,null,null,null,null,null,null,null,null,null,null,null,null,null,null,null,null,null,null,null,null,null,null,null,null,null,null,null,null,null,null,null,null,null,null,null,"C:\\Users\\Usuario\\Downloads\\XML\\VINI\\EMITIDOS\\C79B5640-D42B-45B2-BD8D-1B79AF186BCC.xml"]
[]
[]
[]
[]
[]
[null,null,null,null,null,null,null,null,null,null,null,null,null,null,null,null,null,null,null,null,null,null,null,null,null,null,null,null,null,null,null,null,null,null,null,null,null,null,null,null,null,null,null,null,null,null,null,null,null,null,null,null,null,"C:\\Users\\Usuario\\Downloads\\XML\\VINI\\EMITIDOS\\C7D09511-89F3-42D1-AEDF-F70B257000C3.xml"]
[null,null,null,null,null,null,null,null,null,null,null,null,null,null,null,null,null,null,null,null,null,null,null,null,null,null,null,null,null,null,null,null,null,null,null,null,null,null,null,null,null,null,null,null,null,null,null,null,null,null,null,null,null,"C:\\Users\\Usuario\\Downloads\\XML\\VINI\\EMITIDOS\\C7D90CFA-95B6-4A66-8234-4C2490A4086C.xml"]
[null,null,null,null,null,null,null,null,null,null,null,null,null,null,null,null,null,null,null,null,null,null,null,null,null,null,null,null,null,null,null,null,null,null,null,null,null,null,null,null,null,null,null,null,null,null,null,null,null,null,null,null,null,"C:\\Users\\Usuario\\Downloads\\XML\\VINI\\EMITIDOS\\C867F503-59A3-454C-99DC-FF2B34C1E8FF.xml"]
[]
[null,null,null,null,null,null,null,null,null,null,null,null,null,null,null,null,null,null,null,null,null,null,null,null,null,null,null,null,null,null,null,null,null,null,null,null,null,null,null,null,null,null,null,null,null,null,null,null,null,null,null,null,null,"C:\\Users\\Usuario\\Downloads\\XML\\VINI\\EMITIDOS\\C86B1AF1-8698-4EC2-8DE3-44DABED467ED.xml"]
[null,null,null,null,null,null,null,null,null,null,null,null,null,null,null,null,null,null,null,null,null,null,null,null,null,null,null,null,null,null,null,null,null,null,null,null,null,null,null,null,null,null,null,null,null,null,null,null,null,null,null,null,null,"C:\\Users\\Usuario\\Downloads\\XML\\VINI\\EMITIDOS\\C8D60741-5A77-42E8-8D55-4663B4D32D40.xml"]
[]
[]
[]
[]
[null,null,null,null,null,null,null,null,null,null,null,null,null,null,null,null,null,null,null,null,null,null,null,null,null,null,null,null,null,null,null,null,null,null,null,null,null,null,null,null,null,null,null,null,null,null,null,null,null,null,null,null,null,"C:\\Users\\Usuario\\Downloads\\XML\\VINI\\EMITIDOS\\C8F1833C-55E0-45D3-9543-213BD2891AE9.xml"]
[]
[]
[]
[]
[]
[]
[]
[]
[]
[null,null,null,null,null,null,null,null,null,null,null,null,null,null,null,null,null,null,null,null,null,null,null,null,null,null,null,null,null,null,null,null,null,null,null,null,null,null,null,null,null,null,null,null,null,null,null,null,null,null,null,null,null,"C:\\Users\\Usuario\\Downloads\\XML\\VINI\\EMITIDOS\\C9E82C2D-D4C3-414A-A641-A16B082458E2.xml"]
[null,null,null,null,null,null,null,null,null,null,null,null,null,null,null,null,null,null,null,null,null,null,null,null,null,null,null,null,null,null,null,null,null,null,null,null,null,null,null,null,null,null,null,null,null,null,null,null,null,null,null,null,null,"C:\\Users\\Usuario\\Downloads\\XML\\VINI\\EMITIDOS\\CACBB3E1-0807-4F18-BBF6-B0C0F2F3CCD5.xml"]
[null,null,null,null,null,null,null,null,null,null,null,null,null,null,null,null,null,null,null,null,null,null,null,null,null,null,null,null,null,null,null,null,null,null,null,null,null,null,null,null,null,null,null,null,null,null,null,null,null,null,null,null,null,"C:\\Users\\Usuario\\Downloads\\XML\\VINI\\EMITIDOS\\CC540D41-CD92-4460-A888-12FDA259AC0B.xml"]
[null,null,null,null,null,null,null,null,null,null,null,null,null,null,null,null,null,null,null,null,null,null,null,null,null,null,null,null,null,null,null,null,null,null,null,null,null,null,null,null,null,null,null,null,null,null,null,null,null,null,null,null,null,"C:\\Users\\Usuario\\Downloads\\XML\\VINI\\EMITIDOS\\CCE14C6C-6DB9-49F3-B9D9-64A49341E515.xml"]
[]
[null,null,null,null,null,null,null,null,null,null,null,null,null,null,null,null,null,null,null,null,null,null,null,null,null,null,null,null,null,null,null,null,null,null,null,null,null,null,null,null,null,null,null,null,null,null,null,null,null,null,null,null,null,"C:\\Users\\Usuario\\Downloads\\XML\\VINI\\EMITIDOS\\CCF5D4A8-6888-45E0-8166-E12C310D95BE.xml"]
[]
[]
[]
[]
[]
[]
[null,null,null,null,null,null,null,null,null,null,null,null,null,null,null,null,null,null,null,null,null,null,null,null,null,null,null,null,null,null,null,null,null,null,null,null,null,null,null,null,null,null,null,null,null,null,null,null,null,null,null,null,null,"C:\\Users\\Usuario\\Downloads\\XML\\VINI\\EMITIDOS\\CDF5D1D9-6F35-402B-8E63-BFBF2EFEF61B.xml"]
[]
[]
[]
[]
[]
[null,null,null,null,null,null,null,null,null,null,null,null,null,null,null,null,null,null,null,null,null,null,null,null,null,null,null,null,null,null,null,null,null,null,null,null,null,null,null,null,null,null,null,null,null,null,null,null,null,null,null,null,null,"C:\\Users\\Usuario\\Downloads\\XML\\VINI\\EMITIDOS\\D0AF406E-1A97-41A3-912D-FA68302AF1FC.xml"]
[null,null,null,null,null,null,null,null,null,null,null,null,null,null,null,null,null,null,null,null,null,null,null,null,null,null,null,null,null,null,null,null,null,null,null,null,null,null,null,null,null,null,null,null,null,null,null,null,null,null,null,null,null,"C:\\Users\\Usuario\\Downloads\\XML\\VINI\\EMITIDOS\\D22D8FF0-E70B-48B2-983C-409FDCC1089F.xml"]
[null,null,null,null,null,null,null,null,null,null,null,null,null,null,null,null,null,null,null,null,null,null,null,null,null,null,null,null,null,null,null,null,null,null,null,null,null,null,null,null,null,null,null,null,null,null,null,null,null,null,null,null,null,"C:\\Users\\Usuario\\Downloads\\XML\\VINI\\EMITIDOS\\D331B7B6-A145-4FF9-A5FE-AC7739A1B2FB.xml"]
[null,null,null,null,null,null,null,null,null,null,null,null,null,null,null,null,null,null,null,null,null,null,null,null,null,null,null,null,null,null,null,null,null,null,null,null,null,null,null,null,null,null,null,null,null,null,null,null,null,null,null,null,null,"C:\\Users\\Usuario\\Downloads\\XML\\VINI\\EMITIDOS\\D5B50799-6BDA-48F3-ADCB-E2A8034DD4B3.xml"]
[null,null,null,null,null,null,null,null,null,null,null,null,null,null,null,null,null,null,null,null,null,null,null,null,null,null,null,null,null,null,null,null,null,null,null,null,null,null,null,null,null,null,null,null,null,null,null,null,null,null,null,null,null,"C:\\Users\\Usuario\\Downloads\\XML\\VINI\\EMITIDOS\\D73A5E75-0999-48D1-9948-26F0311FA198.xml"]
[]
[]
[null,null,null,null,null,null,null,null,null,null,null,null,null,null,null,null,null,null,null,null,null,null,null,null,null,null,null,null,null,null,null,null,null,null,null,null,null,null,null,null,null,null,null,null,null,null,null,null,null,null,null,null,null,"C:\\Users\\Usuario\\Downloads\\XML\\VINI\\EMITIDOS\\D8CCF1C4-239B-4CB4-B339-8E7CB4152B21.xml"]
[null,null,null,null,null,null,null,null,null,null,null,null,null,null,null,null,null,null,null,null,null,null,null,null,null,null,null,null,null,null,null,null,null,null,null,null,null,null,null,null,null,null,null,null,null,null,null,null,null,null,null,null,null,"C:\\Users\\Usuario\\Downloads\\XML\\VINI\\EMITIDOS\\D94E4137-3DE7-41E5-B189-21A43FF3F30F.xml"]
[]
[]
[]
[]
[]
[null,null,null,null,null,null,null,null,null,null,null,null,null,null,null,null,null,null,null,null,null,null,null,null,null,null,null,null,null,null,null,null,null,null,null,null,null,null,null,null,null,null,null,null,null,null,null,null,null,null,null,null,null,"C:\\Users\\Usuario\\Downloads\\XML\\VINI\\EMITIDOS\\DA52BACB-7B8B-46D9-A09D-D8A84897379F.xml"]
[null,null,null,null,null,null,null,null,null,null,null,null,null,null,null,null,null,null,null,null,null,null,null,null,null,null,null,null,null,null,null,null,null,null,null,null,null,null,null,null,null,null,null,null,null,null,null,null,null,null,null,null,null,"C:\\Users\\Usuario\\Downloads\\XML\\VINI\\EMITIDOS\\DAA5179E-C27A-4706-BAEB-CD9DCF322C76.xml"]
[null,null,null,null,null,null,null,null,null,null,null,null,null,null,null,null,null,null,null,null,null,null,null,null,null,null,null,null,null,null,null,null,null,null,null,null,null,null,null,null,null,null,null,null,null,null,null,null,null,null,null,null,null,"C:\\Users\\Usuario\\Downloads\\XML\\VINI\\EMITIDOS\\DB0B7331-0A11-46CD-989D-A2E7505D1E4E.xml"]
[]
[]
[null,null,null,null,null,null,null,null,null,null,null,null,null,null,null,null,null,null,null,null,null,null,null,null,null,null,null,null,null,null,null,null,null,null,null,null,null,null,null,null,null,null,null,null,null,null,null,null,null,null,null,null,null,"C:\\Users\\Usuario\\Downloads\\XML\\VINI\\EMITIDOS\\DB40102A-DD57-4702-BEA2-EC82E4DFC204.xml"]
[]
[null,null,null,null,null,null,null,null,null,null,null,null,null,null,null,null,null,null,null,null,null,null,null,null,null,null,null,null,null,null,null,null,null,null,null,null,null,null,null,null,null,null,null,null,null,null,null,null,null,null,null,null,null,"C:\\Users\\Usuario\\Downloads\\XML\\VINI\\EMITIDOS\\DC02150B-1CCF-4319-9564-0B8F4F3F7283.xml"]
[null,null,null,null,null,null,null,null,null,null,null,null,null,null,null,null,null,null,null,null,null,null,null,null,null,null,null,null,null,null,null,null,null,null,null,null,null,null,null,null,null,null,null,null,null,null,null,null,null,null,null,null,null,"C:\\Users\\Usuario\\Downloads\\XML\\VINI\\EMITIDOS\\DDE8AA62-EAE0-4168-8901-D59189FD784A.xml"]
[]
[]
[null,null,null,null,null,null,null,null,null,null,null,null,null,null,null,null,null,null,null,null,null,null,null,null,null,null,null,null,null,null,null,null,null,null,null,null,null,null,null,null,null,null,null,null,null,null,null,null,null,null,null,null,null,"C:\\Users\\Usuario\\Downloads\\XML\\VINI\\EMITIDOS\\DDF12D4A-F2C5-43A5-BE47-F48B1FC26594.xml"]
[]
[]
[]
[null,null,null,null,null,null,null,null,null,null,null,null,null,null,null,null,null,null,null,null,null,null,null,null,null,null,null,null,null,null,null,null,null,null,null,null,null,null,null,null,null,null,null,null,null,null,null,null,null,null,null,null,null,"C:\\Users\\Usuario\\Downloads\\XML\\VINI\\EMITIDOS\\DE9AABC5-74A2-4177-A057-859ADA1156AA.xml"]
[null,null,null,null,null,null,null,null,null,null,null,null,null,null,null,null,null,null,null,null,null,null,null,null,null,null,null,null,null,null,null,null,null,null,null,null,null,null,null,null,null,null,null,null,null,null,null,null,null,null,null,null,null,"C:\\Users\\Usuario\\Downloads\\XML\\VINI\\EMITIDOS\\DEF9D6DE-6BBB-45B1-8A64-28865B60E755.xml"]
[null,null,null,null,null,null,null,null,null,null,null,null,null,null,null,null,null,null,null,null,null,null,null,null,null,null,null,null,null,null,null,null,null,null,null,null,null,null,null,null,null,null,null,null,null,null,null,null,null,null,null,null,null,"C:\\Users\\Usuario\\Downloads\\XML\\VINI\\EMITIDOS\\DF3AE993-E862-4F9F-B4C8-31B61372CB43.xml"]
[null,null,null,null,null,null,null,null,null,null,null,null,null,null,null,null,null,null,null,null,null,null,null,null,null,null,null,null,null,null,null,null,null,null,null,null,null,null,null,null,null,null,null,null,null,null,null,null,null,null,null,null,null,"C:\\Users\\Usuario\\Downloads\\XML\\VINI\\EMITIDOS\\DFE63AF2-91BB-4D87-98B3-A292A669AB08.xml"]
[null,null,null,null,null,null,null,null,null,null,null,null,null,null,null,null,null,null,null,null,null,null,null,null,null,null,null,null,null,null,null,null,null,null,null,null,null,null,null,null,null,null,null,null,null,null,null,null,null,null,null,null,null,"C:\\Users\\Usuario\\Downloads\\XML\\VINI\\EMITIDOS\\E10DC5DF-32FA-43AF-9D04-D067828DDF2E.xml"]
[null,null,null,null,null,null,null,null,null,null,null,null,null,null,null,null,null,null,null,null,null,null,null,null,null,null,null,null,null,null,null,null,null,null,null,null,null,null,null,null,null,null,null,null,null,null,null,null,null,null,null,null,null,"C:\\Users\\Usuario\\Downloads\\XML\\VINI\\EMITIDOS\\E1ADFBAB-43F8-4627-9EEA-105010870291.xml"]
[]
[null,null,null,null,null,null,null,null,null,null,null,null,null,null,null,null,null,null,null,null,null,null,null,null,null,null,null,null,null,null,null,null,null,null,null,null,null,null,null,null,null,null,null,null,null,null,null,null,null,null,null,null,null,"C:\\Users\\Usuario\\Downloads\\XML\\VINI\\EMITIDOS\\E245A8A1-48CA-4E17-8390-DD9E0AE9B934.xml"]
[]
[]
[]
[]
[]
[null,null,null,null,null,null,null,null,null,null,null,null,null,null,null,null,null,null,null,null,null,null,null,null,null,null,null,null,null,null,null,null,null,null,null,null,null,null,null,null,null,null,null,null,null,null,null,null,null,null,null,null,null,"C:\\Users\\Usuario\\Downloads\\XML\\VINI\\EMITIDOS\\E304B860-CA4E-424A-A13C-708B362EB5FD.xml"]
[null,null,null,null,null,null,null,null,null,null,null,null,null,null,null,null,null,null,null,null,null,null,null,null,null,null,null,null,null,null,null,null,null,null,null,null,null,null,null,null,null,null,null,null,null,null,null,null,null,null,null,null,null,"C:\\Users\\Usuario\\Downloads\\XML\\VINI\\EMITIDOS\\E359BC0E-1D43-42A8-BFB9-3E8034D87D73.xml"]
[null,null,null,null,null,null,null,null,null,null,null,null,null,null,null,null,null,null,null,null,null,null,null,null,null,null,null,null,null,null,null,null,null,null,null,null,null,null,null,null,null,null,null,null,null,null,null,null,null,null,null,null,null,"C:\\Users\\Usuario\\Downloads\\XML\\VINI\\EMITIDOS\\E3800160-9B71-49BC-904C-87DAD3F8CBDE.xml"]
[null,null,null,null,null,null,null,null,null,null,null,null,null,null,null,null,null,null,null,null,null,null,null,null,null,null,null,null,null,null,null,null,null,null,null,null,null,null,null,null,null,null,null,null,null,null,null,null,null,null,null,null,null,"C:\\Users\\Usuario\\Downloads\\XML\\VINI\\EMITIDOS\\E43E7D51-1ACF-4007-B4F0-5207BA27140E.xml"]
[]
[null,null,null,null,null,null,null,null,null,null,null,null,null,null,null,null,null,null,null,null,null,null,null,null,null,null,null,null,null,null,null,null,null,null,null,null,null,null,null,null,null,null,null,null,null,null,null,null,null,null,null,null,null,"C:\\Users\\Usuario\\Downloads\\XML\\VINI\\EMITIDOS\\E4452CF0-0FCC-493F-B9DB-BFA4F03FCEB8.xml"]
[]
[null,null,null,null,null,null,null,null,null,null,null,null,null,null,null,null,null,null,null,null,null,null,null,null,null,null,null,null,null,null,null,null,null,null,null,null,null,null,null,null,null,null,null,null,null,null,null,null,null,null,null,null,null,"C:\\Users\\Usuario\\Downloads\\XML\\VINI\\EMITIDOS\\E4671ECF-F806-4EB3-890D-49227C53CB56.xml"]
[null,null,null,null,null,null,null,null,null,null,null,null,null,null,null,null,null,null,null,null,null,null,null,null,null,null,null,null,null,null,null,null,null,null,null,null,null,null,null,null,null,null,null,null,null,null,null,null,null,null,null,null,null,"C:\\Users\\Usuario\\Downloads\\XML\\VINI\\EMITIDOS\\E4D59F36-5A77-44EA-9B76-78B396E930D0.xml"]
[null,null,null,null,null,null,null,null,null,null,null,null,null,null,null,null,null,null,null,null,null,null,null,null,null,null,null,null,null,null,null,null,null,null,null,null,null,null,null,null,null,null,null,null,null,null,null,null,null,null,null,null,null,"C:\\Users\\Usuario\\Downloads\\XML\\VINI\\EMITIDOS\\E52F948F-8B7B-419A-AB9B-4F7C26EEC502.xml"]
[]
[null,null,null,null,null,null,null,null,null,null,null,null,null,null,null,null,null,null,null,null,null,null,null,null,null,null,null,null,null,null,null,null,null,null,null,null,null,null,null,null,null,null,null,null,null,null,null,null,null,null,null,null,null,"C:\\Users\\Usuario\\Downloads\\XML\\VINI\\EMITIDOS\\E598786D-FA88-4E71-BD47-1B0F86BA5FD2.xml"]
[null,null,null,null,null,null,null,null,null,null,null,null,null,null,null,null,null,null,null,null,null,null,null,null,null,null,null,null,null,null,null,null,null,null,null,null,null,null,null,null,null,null,null,null,null,null,null,null,null,null,null,null,null,"C:\\Users\\Usuario\\Downloads\\XML\\VINI\\EMITIDOS\\E7452F85-906A-4C17-AD9A-4D2432F0CA22.xml"]
[null,null,null,null,null,null,null,null,null,null,null,null,null,null,null,null,null,null,null,null,null,null,null,null,null,null,null,null,null,null,null,null,null,null,null,null,null,null,null,null,null,null,null,null,null,null,null,null,null,null,null,null,null,"C:\\Users\\Usuario\\Downloads\\XML\\VINI\\EMITIDOS\\E7F5510C-ADAD-471B-A19D-E83BAFC6F908.xml"]
[null,null,null,null,null,null,null,null,null,null,null,null,null,null,null,null,null,null,null,null,null,null,null,null,null,null,null,null,null,null,null,null,null,null,null,null,null,null,null,null,null,null,null,null,null,null,null,null,null,null,null,null,null,"C:\\Users\\Usuario\\Downloads\\XML\\VINI\\EMITIDOS\\E89DFC9C-2752-43BC-A1E5-70E43387185D.xml"]
[null,null,null,null,null,null,null,null,null,null,null,null,null,null,null,null,null,null,null,null,null,null,null,null,null,null,null,null,null,null,null,null,null,null,null,null,null,null,null,null,null,null,null,null,null,null,null,null,null,null,null,null,null,"C:\\Users\\Usuario\\Downloads\\XML\\VINI\\EMITIDOS\\E9555EFE-3E4B-4257-A03C-1A5C73B30E5B.xml"]
[null,null,null,null,null,null,null,null,null,null,null,null,null,null,null,null,null,null,null,null,null,null,null,null,null,null,null,null,null,null,null,null,null,null,null,null,null,null,null,null,null,null,null,null,null,null,null,null,null,null,null,null,null,"C:\\Users\\Usuario\\Downloads\\XML\\VINI\\EMITIDOS\\E9D3BAF5-F96E-4D53-B2B9-13F4D6D52CE4.xml"]
[]
[]
[null,null,null,null,null,null,null,null,null,null,null,null,null,null,null,null,null,null,null,null,null,null,null,null,null,null,null,null,null,null,null,null,null,null,null,null,null,null,null,null,null,null,null,null,null,null,null,null,null,null,null,null,null,"C:\\Users\\Usuario\\Downloads\\XML\\VINI\\EMITIDOS\\EA3F1049-DD41-471B-BF3E-46188F95E5EF.xml"]
[]
[]
[null,null,null,null,null,null,null,null,null,null,null,null,null,null,null,null,null,null,null,null,null,null,null,null,null,null,null,null,null,null,null,null,null,null,null,null,null,null,null,null,null,null,null,null,null,null,null,null,null,null,null,null,null,"C:\\Users\\Usuario\\Downloads\\XML\\VINI\\EMITIDOS\\EB64F09E-81B3-4A5E-96D5-49C22423E32E.xml"]
[null,null,null,null,null,null,null,null,null,null,null,null,null,null,null,null,null,null,null,null,null,null,null,null,null,null,null,null,null,null,null,null,null,null,null,null,null,null,null,null,null,null,null,null,null,null,null,null,null,null,null,null,null,"C:\\Users\\Usuario\\Downloads\\XML\\VINI\\EMITIDOS\\ED38D6F3-0FB7-470A-BF3D-7A5669979DFB.xml"]
[null,null,null,null,null,null,null,null,null,null,null,null,null,null,null,null,null,null,null,null,null,null,null,null,null,null,null,null,null,null,null,null,null,null,null,null,null,null,null,null,null,null,null,null,null,null,null,null,null,null,null,null,null,"C:\\Users\\Usuario\\Downloads\\XML\\VINI\\EMITIDOS\\ED56DD37-3DC2-4A50-89B9-4F350DEED15A.xml"]
[null,null,null,null,null,null,null,null,null,null,null,null,null,null,null,null,null,null,null,null,null,null,null,null,null,null,null,null,null,null,null,null,null,null,null,null,null,null,null,null,null,null,null,null,null,null,null,null,null,null,null,null,null,"C:\\Users\\Usuario\\Downloads\\XML\\VINI\\EMITIDOS\\EDF04534-A5A0-49F1-9DDF-99FAE0D25196.xml"]
[]
[null,null,null,null,null,null,null,null,null,null,null,null,null,null,null,null,null,null,null,null,null,null,null,null,null,null,null,null,null,null,null,null,null,null,null,null,null,null,null,null,null,null,null,null,null,null,null,null,null,null,null,null,null,"C:\\Users\\Usuario\\Downloads\\XML\\VINI\\EMITIDOS\\EEB6EB62-6901-45EE-BCE3-101E994BC9C1.xml"]
[null,null,null,null,null,null,null,null,null,null,null,null,null,null,null,null,null,null,null,null,null,null,null,null,null,null,null,null,null,null,null,null,null,null,null,null,null,null,null,null,null,null,null,null,null,null,null,null,null,null,null,null,null,"C:\\Users\\Usuario\\Downloads\\XML\\VINI\\EMITIDOS\\EEC01352-B891-47D3-8918-6C68B7DD0CE7.xml"]
[]
[]
[null,null,null,null,null,null,null,null,null,null,null,null,null,null,null,null,null,null,null,null,null,null,null,null,null,null,null,null,null,null,null,null,null,null,null,null,null,null,null,null,null,null,null,null,null,null,null,null,null,null,null,null,null,"C:\\Users\\Usuario\\Downloads\\XML\\VINI\\EMITIDOS\\F012F7A4-F94C-4BD4-B10C-A0FFB538980D.xml"]
[null,null,null,null,null,null,null,null,null,null,null,null,null,null,null,null,null,null,null,null,null,null,null,null,null,null,null,null,null,null,null,null,null,null,null,null,null,null,null,null,null,null,null,null,null,null,null,null,null,null,null,null,null,"C:\\Users\\Usuario\\Downloads\\XML\\VINI\\EMITIDOS\\F049D634-CBC8-484D-9E97-3E463FC5CE7F.xml"]
[null,null,null,null,null,null,null,null,null,null,null,null,null,null,null,null,null,null,null,null,null,null,null,null,null,null,null,null,null,null,null,null,null,null,null,null,null,null,null,null,null,null,null,null,null,null,null,null,null,null,null,null,null,"C:\\Users\\Usuario\\Downloads\\XML\\VINI\\EMITIDOS\\F08DBB8B-570E-4B2E-B30B-8CED35290E1F.xml"]
[null,null,null,null,null,null,null,null,null,null,null,null,null,null,null,null,null,null,null,null,null,null,null,null,null,null,null,null,null,null,null,null,null,null,null,null,null,null,null,null,null,null,null,null,null,null,null,null,null,null,null,null,null,"C:\\Users\\Usuario\\Downloads\\XML\\VINI\\EMITIDOS\\F111D090-C967-4AFB-8050-CFDD123F171C.xml"]
[null,null,null,null,null,null,null,null,null,null,null,null,null,null,null,null,null,null,null,null,null,null,null,null,null,null,null,null,null,null,null,null,null,null,null,null,null,null,null,null,null,null,null,null,null,null,null,null,null,null,null,null,null,"C:\\Users\\Usuario\\Downloads\\XML\\VINI\\EMITIDOS\\F198BCD6-120D-453D-AD04-D224B9E66BAA.xml"]
[null,null,null,null,null,null,null,null,null,null,null,null,null,null,null,null,null,null,null,null,null,null,null,null,null,null,null,null,null,null,null,null,null,null,null,null,null,null,null,null,null,null,null,null,null,null,null,null,null,null,null,null,null,"C:\\Users\\Usuario\\Downloads\\XML\\VINI\\EMITIDOS\\F21B992B-8244-4DE3-8146-97D7B741F528.xml"]
[]
[null,null,null,null,null,null,null,null,null,null,null,null,null,null,null,null,null,null,null,null,null,null,null,null,null,null,null,null,null,null,null,null,null,null,null,null,null,null,null,null,null,null,null,null,null,null,null,null,null,null,null,null,null,"C:\\Users\\Usuario\\Downloads\\XML\\VINI\\EMITIDOS\\F36654DC-3613-411C-B642-6A47D0CF7FCD.xml"]
[]
[null,null,null,null,null,null,null,null,null,null,null,null,null,null,null,null,null,null,null,null,null,null,null,null,null,null,null,null,null,null,null,null,null,null,null,null,null,null,null,null,null,null,null,null,null,null,null,null,null,null,null,null,null,"C:\\Users\\Usuario\\Downloads\\XML\\VINI\\EMITIDOS\\F486A5F5-A5D1-428E-8673-EA6887FF512A.xml"]
[]
[null,null,null,null,null,null,null,null,null,null,null,null,null,null,null,null,null,null,null,null,null,null,null,null,null,null,null,null,null,null,null,null,null,null,null,null,null,null,null,null,null,null,null,null,null,null,null,null,null,null,null,null,null,"C:\\Users\\Usuario\\Downloads\\XML\\VINI\\EMITIDOS\\F5492FD9-85A0-46CF-8A4C-C790929B303F.xml"]
[]
[]
[]
[null,null,null,null,null,null,null,null,null,null,null,null,null,null,null,null,null,null,null,null,null,null,null,null,null,null,null,null,null,null,null,null,null,null,null,null,null,null,null,null,null,null,null,null,null,null,null,null,null,null,null,null,null,"C:\\Users\\Usuario\\Downloads\\XML\\VINI\\EMITIDOS\\F697F36E-2C83-47C9-934C-0BE01407AB09.xml"]
[null,null,null,null,null,null,null,null,null,null,null,null,null,null,null,null,null,null,null,null,null,null,null,null,null,null,null,null,null,null,null,null,null,null,null,null,null,null,null,null,null,null,null,null,null,null,null,null,null,null,null,null,null,"C:\\Users\\Usuario\\Downloads\\XML\\VINI\\EMITIDOS\\F6A3FB83-5513-4120-8B05-A5EC70959E4F.xml"]
[null,null,null,null,null,null,null,null,null,null,null,null,null,null,null,null,null,null,null,null,null,null,null,null,null,null,null,null,null,null,null,null,null,null,null,null,null,null,null,null,null,null,null,null,null,null,null,null,null,null,null,null,null,"C:\\Users\\Usuario\\Downloads\\XML\\VINI\\EMITIDOS\\F79D56FD-0FA2-4903-8EEB-D936DDA10879.xml"]
[]
[null,null,null,null,null,null,null,null,null,null,null,null,null,null,null,null,null,null,null,null,null,null,null,null,null,null,null,null,null,null,null,null,null,null,null,null,null,null,null,null,null,null,null,null,null,null,null,null,null,null,null,null,null,"C:\\Users\\Usuario\\Downloads\\XML\\VINI\\EMITIDOS\\F81CA498-7B6B-43CE-B143-508FDEFCC29D.xml"]
[]
[]
[]
[]
[]
[]
[null,null,null,null,null,null,null,null,null,null,null,null,null,null,null,null,null,null,null,null,null,null,null,null,null,null,null,null,null,null,null,null,null,null,null,null,null,null,null,null,null,null,null,null,null,null,null,null,null,null,null,null,null,"C:\\Users\\Usuario\\Downloads\\XML\\VINI\\EMITIDOS\\F8888476-C7B3-4A9F-BA4B-9FE33E27AA77.xml"]
[null,null,null,null,null,null,null,null,null,null,null,null,null,null,null,null,null,null,null,null,null,null,null,null,null,null,null,null,null,null,null,null,null,null,null,null,null,null,null,null,null,null,null,null,null,null,null,null,null,null,null,null,null,"C:\\Users\\Usuario\\Downloads\\XML\\VINI\\EMITIDOS\\F945248F-0E8F-4296-AD73-A317BE83BC1F.xml"]
[null,null,null,null,null,null,null,null,null,null,null,null,null,null,null,null,null,null,null,null,null,null,null,null,null,null,null,null,null,null,null,null,null,null,null,null,null,null,null,null,null,null,null,null,null,null,null,null,null,null,null,null,null,"C:\\Users\\Usuario\\Downloads\\XML\\VINI\\EMITIDOS\\FBB9B166-D38B-4CE9-B08D-380263DCAC4F.xml"]
[]
[null,null,null,null,null,null,null,null,null,null,null,null,null,null,null,null,null,null,null,null,null,null,null,null,null,null,null,null,null,null,null,null,null,null,null,null,null,null,null,null,null,null,null,null,null,null,null,null,null,null,null,null,null,"C:\\Users\\Usuario\\Downloads\\XML\\VINI\\EMITIDOS\\FBCBA304-8717-49E3-A823-50D6B0F80144.xml"]
[]
[]
[null,null,null,null,null,null,null,null,null,null,null,null,null,null,null,null,null,null,null,null,null,null,null,null,null,null,null,null,null,null,null,null,null,null,null,null,null,null,null,null,null,null,null,null,null,null,null,null,null,null,null,null,null,"C:\\Users\\Usuario\\Downloads\\XML\\VINI\\EMITIDOS\\FBE06813-B0A3-4405-AFE5-1A0A1F3CD336.xml"]
[]
[null,null,null,null,null,null,null,null,null,null,null,null,null,null,null,null,null,null,null,null,null,null,null,null,null,null,null,null,null,null,null,null,null,null,null,null,null,null,null,null,null,null,null,null,null,null,null,null,null,null,null,null,null,"C:\\Users\\Usuario\\Downloads\\XML\\VINI\\EMITIDOS\\FF6A3872-0F03-4C58-9E99-667F01F3BE59.xml"]

{"sheet":"RPAGOSE","index":3,"n_rows":7,"n_cols":57,"rows_kept":7,"cut":false,"hidden":false,"merged":[[5,45,5,48],[4,11,4,35],[5,5,5,6],[5,8,5,10],[5,22,5,25],[5,26,5,35],[5,37,5,44]]}
[]
[null,"Hoja para importar los XML emitidos con el complemento de recepción de pagos",null,null,null,null,null,null,null,null,null,null,null,null,null,null,null,null,null,null,null,null,null,null,null,null,null,null,null,null,null,null,null,null,null,null,null,null,null,null,null,null,null,null,null,null,null,null,null,null,null,""]
[null,null,null,null,null,null,null,null,"IR AL MENÚ",null,null,null,null,null,null,null,null,null,null,null,null,null,null,null,null,null,null,null,null,null,null,null,null,null,null,null,null,null,null,null,null,null,null,null,null,null,null,null,null,null,null,""]
[null,null,null,null,null,null,null,null,null,null,null,null,null,null,null,null,null,null,null,null,null,null,null,null,null,null,null,null,null,null,null,null,null,null,null,null,null,null,null,null,null,null,null,null,null,null,null,null,null,null,null,""]
[null,null,null,null,null,null,null,null,null,null,null,"Complemento de recepción de pagos",null,null,null,null,null,null,null,null,null,null,null,null,null,null,null,null,null,null,null,null,null,null,null,null,null,null,null,null,null,null,null,null,null,null,null,null,null,null,null,""]
[null,null,null,null,null,"Emisor",null,null,"Receptor",null,null,null,null,null,null,null,null,null,null,null,null,null,"Solo que el pago se reciba en SPEI",null,null,null,"Documentos que se cobran",null,null,null,null,null,null,null,null,null,null,"Impuestos trasladados",null,null,null,null,null,null,null,null,null,null,null,null,null,""]
[null,"Fecha de emisión","Serie y folio","Tipo de comprobante","Lugar Expedicion","Rfc","Nombre","Régimen fiscal","RFC receptor","Nombre","Régimen fiscal","Fecha de pago","Forma de pago","MonedaP","TipoCambioP","Monto","NumOperacion","RfcEmisorCtaOrd ","NomBancoOrdExt ","CtaOrdenante","RfcEmisorCtaBen ","CtaBeneficiario","TipoCadPago ","CertPago","CadPago","SelloPago","IdDocumento ","Serie","Folio","MonedaDR ","Equivalencia","MetodoDePagoDR","NumParcialidad ","ImpSaldoAnt ","ImpPagado ","ImpSaldoInsoluto","Objeto de impuestos DR","Base para IEPS","Tipo factor","Tasa o cuota","Total IEPS trasladado del comprobante","Base para IVA","Tipo  factor","Tasa o cuota","Total IVA trasladado del comprobante","Tasa o cuota","Retención de ISR","Tasa o cuota","Retención IVA","Tasa o cuota","Retención IEPS","USO DEL CFDI","BASE DE ISR (VERIFIQUE LOS DATOS)","IVA con base en el CFDI","Ruta del archivo","Fecha de cancelación","Folio fiscal"]

{"sheet":"CFDIR","index":4,"n_rows":366,"n_cols":54,"rows_kept":366,"cut":false,"hidden":false,"merged":[[5,10,5,12],[5,14,5,17]]}
[]
[]
[]
[null,null,null,null,null,null,null,null,null,null,"IR AL MENÚ"]
[]
[null,null,null,null,null,null,null,null,null,null,"Emisor",null,null,null,"Receptor",null,null,null,null,null,null,null,null,null,null,null,null,"Trasladados",null,null,null,null,null,null,null,null,null,"Retenciones",null,null,null,null,null,"Aerolíneas"]
[null,"Fecha ","Tipo de comprobante","Serie y folio","Exportación","Moneda","Tipo de cambio","Método de pago","Forma de pago","Folio fiscal","RFC","NOMBRE","Régimen fiscal","RFC","Nombre ","Régimen fiscal","Domicilio fiscal","USO del CFDI","Clave producto","Unidad de medida","Cantidad","Valor unitario","Descripción","Importe","Descuento","Importe - descuento","Objeto de impuesto","Base IEPS","Tasa o cuota","IEPS","Base no objeto","Base IVA Exento","Base IVA al 0%","Base IVA 8%","Base IVA al 16%","IVA al 8%","IVA al 16%","Tasa","ISR","Tasa","IVA","Tasa o cuota","IEPS","Impuesto sobre hospedaje","TUA","Otros cargos","Total del comprobante","Pedimento","No. de la cuenta predial","Tipo de relación","UUI relacionado","Fecha de cancelación","Total en el tipo de moneda cuando es diferente a MXN","Ruta del archivo"]
[null,null,null,null,null,null,null,null,null,null,null,null,null,null,null,null,null,null,null,null,null,null,null,null,null,null,null,null,null,null,null,null,null,null,null,null,null,null,null,null,null,null,null,null,null,null,null,null,null,null,null,null,null,"C:\\Users\\Usuario\\Downloads\\XML\\VINI\\RECIBIDOS\\00C06E3D-F822-4193-B302-D06156B360D3.xml"]
[]
[]
[null,null,null,null,null,null,null,null,null,null,null,null,null,null,null,null,null,null,null,null,null,null,null,null,null,null,null,null,null,null,null,null,null,null,null,null,null,null,null,null,null,null,null,null,null,null,null,null,null,null,null,null,null,"C:\\Users\\Usuario\\Downloads\\XML\\VINI\\RECIBIDOS\\00E39379-68D6-45C3-A05E-07E4856ABAFD.xml"]
[null,null,null,null,null,null,null,null,null,null,null,null,null,null,null,null,null,null,null,null,null,null,null,null,null,null,null,null,null,null,null,null,null,null,null,null,null,null,null,null,null,null,null,null,null,null,null,null,null,null,null,null,null,"C:\\Users\\Usuario\\Downloads\\XML\\VINI\\RECIBIDOS\\0263998D-0E40-4E66-BD23-6BD37A441CFB.xml"]
[]
[]
[]
[]
[null,null,null,null,null,null,null,null,null,null,null,null,null,null,null,null,null,null,null,null,null,null,null,null,null,null,null,null,null,null,null,null,null,null,null,null,null,null,null,null,null,null,null,null,null,null,null,null,null,null,null,null,null,"C:\\Users\\Usuario\\Downloads\\XML\\VINI\\RECIBIDOS\\02EC72E3-09B4-4EE5-8734-76EC44FC6618.xml"]
[null,null,null,null,null,null,null,null,null,null,null,null,null,null,null,null,null,null,null,null,null,null,null,null,null,null,null,null,null,null,null,null,null,null,null,null,null,null,null,null,null,null,null,null,null,null,null,null,null,null,null,null,null,"C:\\Users\\Usuario\\Downloads\\XML\\VINI\\RECIBIDOS\\04010FD9-5675-47A8-8FED-EB1A61AEB3FB.xml"]
[]
[]
[null,null,null,null,null,null,null,null,null,null,null,null,null,null,null,null,null,null,null,null,null,null,null,null,null,null,null,null,null,null,null,null,null,null,null,null,null,null,null,null,null,null,null,null,null,null,null,null,null,null,null,null,null,"C:\\Users\\Usuario\\Downloads\\XML\\VINI\\RECIBIDOS\\04AAFF8F-87DF-45D0-8FE8-BFBBE84ECA65.xml"]
[null,null,null,null,null,null,null,null,null,null,null,null,null,null,null,null,null,null,null,null,null,null,null,null,null,null,null,null,null,null,null,null,null,null,null,null,null,null,null,null,null,null,null,null,null,null,null,null,null,null,null,null,null,"C:\\Users\\Usuario\\Downloads\\XML\\VINI\\RECIBIDOS\\050F8417-838B-4E64-9A8B-C2E3A9AB85CE.xml"]
[null,null,null,null,null,null,null,null,null,null,null,null,null,null,null,null,null,null,null,null,null,null,null,null,null,null,null,null,null,null,null,null,null,null,null,null,null,null,null,null,null,null,null,null,null,null,null,null,null,null,null,null,null,"C:\\Users\\Usuario\\Downloads\\XML\\VINI\\RECIBIDOS\\0745AC7A-476C-4F4B-858A-09A76D1DF783.xml"]
[null,null,null,null,null,null,null,null,null,null,null,null,null,null,null,null,null,null,null,null,null,null,null,null,null,null,null,null,null,null,null,null,null,null,null,null,null,null,null,null,null,null,null,null,null,null,null,null,null,null,null,null,null,"C:\\Users\\Usuario\\Downloads\\XML\\VINI\\RECIBIDOS\\09820964-14E8-4B38-B4B0-67EC62D03BFA.xml"]
[]
[null,null,null,null,null,null,null,null,null,null,null,null,null,null,null,null,null,null,null,null,null,null,null,null,null,null,null,null,null,null,null,null,null,null,null,null,null,null,null,null,null,null,null,null,null,null,null,null,null,null,null,null,null,"C:\\Users\\Usuario\\Downloads\\XML\\VINI\\RECIBIDOS\\09D89072-A61A-49B5-BDFC-F23980D77971.xml"]
[null,null,null,null,null,null,null,null,null,null,null,null,null,null,null,null,null,null,null,null,null,null,null,null,null,null,null,null,null,null,null,null,null,null,null,null,null,null,null,null,null,null,null,null,null,null,null,null,null,null,null,null,null,"C:\\Users\\Usuario\\Downloads\\XML\\VINI\\RECIBIDOS\\0A1511B0-DFD8-48DC-93F0-A18515EB6BBD.xml"]
[null,null,null,null,null,null,null,null,null,null,null,null,null,null,null,null,null,null,null,null,null,null,null,null,null,null,null,null,null,null,null,null,null,null,null,null,null,null,null,null,null,null,null,null,null,null,null,null,null,null,null,null,null,"C:\\Users\\Usuario\\Downloads\\XML\\VINI\\RECIBIDOS\\0A415AA9-AD9C-42DA-BB77-4EFD3C13BD12.xml"]
[null,null,null,null,null,null,null,null,null,null,null,null,null,null,null,null,null,null,null,null,null,null,null,null,null,null,null,null,null,null,null,null,null,null,null,null,null,null,null,null,null,null,null,null,null,null,null,null,null,null,null,null,null,"C:\\Users\\Usuario\\Downloads\\XML\\VINI\\RECIBIDOS\\0AB17B96-FA18-440D-8AAD-86D76FEE754F.xml"]
[null,null,null,null,null,null,null,null,null,null,null,null,null,null,null,null,null,null,null,null,null,null,null,null,null,null,null,null,null,null,null,null,null,null,null,null,null,null,null,null,null,null,null,null,null,null,null,null,null,null,null,null,null,"C:\\Users\\Usuario\\Downloads\\XML\\VINI\\RECIBIDOS\\0ABFF88A-3784-4428-9ED4-12857F4078D3.xml"]
[null,null,null,null,null,null,null,null,null,null,null,null,null,null,null,null,null,null,null,null,null,null,null,null,null,null,null,null,null,null,null,null,null,null,null,null,null,null,null,null,null,null,null,null,null,null,null,null,null,null,null,null,null,"C:\\Users\\Usuario\\Downloads\\XML\\VINI\\RECIBIDOS\\0BF4C7A0-1CBB-48FD-96E2-F7A637D985BD.xml"]
[null,null,null,null,null,null,null,null,null,null,null,null,null,null,null,null,null,null,null,null,null,null,null,null,null,null,null,null,null,null,null,null,null,null,null,null,null,null,null,null,null,null,null,null,null,null,null,null,null,null,null,null,null,"C:\\Users\\Usuario\\Downloads\\XML\\VINI\\RECIBIDOS\\10ED667A-A897-459D-86E6-D0D026EC7CCC.xml"]
[null,null,null,null,null,null,null,null,null,null,null,null,null,null,null,null,null,null,null,null,null,null,null,null,null,null,null,null,null,null,null,null,null,null,null,null,null,null,null,null,null,null,null,null,null,null,null,null,null,null,null,null,null,"C:\\Users\\Usuario\\Downloads\\XML\\VINI\\RECIBIDOS\\13D8A9BD-F059-4A24-8323-071774B288FB.xml"]
[null,null,null,null,null,null,null,null,null,null,null,null,null,null,null,null,null,null,null,null,null,null,null,null,null,null,null,null,null,null,null,null,null,null,null,null,null,null,null,null,null,null,null,null,null,null,null,null,null,null,null,null,null,"C:\\Users\\Usuario\\Downloads\\XML\\VINI\\RECIBIDOS\\15E584F3-4118-4128-88E6-373D0534BBE2.xml"]
[null,null,null,null,null,null,null,null,null,null,null,null,null,null,null,null,null,null,null,null,null,null,null,null,null,null,null,null,null,null,null,null,null,null,null,null,null,null,null,null,null,null,null,null,null,null,null,null,null,null,null,null,null,"C:\\Users\\Usuario\\Downloads\\XML\\VINI\\RECIBIDOS\\17232B42-3716-4EF6-AD1B-121A939A9082.xml"]
[null,null,null,null,null,null,null,null,null,null,null,null,null,null,null,null,null,null,null,null,null,null,null,null,null,null,null,null,null,null,null,null,null,null,null,null,null,null,null,null,null,null,null,null,null,null,null,null,null,null,null,null,null,"C:\\Users\\Usuario\\Downloads\\XML\\VINI\\RECIBIDOS\\173F3613-05F6-41E9-9376-22DBF8771095.xml"]
[null,null,null,null,null,null,null,null,null,null,null,null,null,null,null,null,null,null,null,null,null,null,null,null,null,null,null,null,null,null,null,null,null,null,null,null,null,null,null,null,null,null,null,null,null,null,null,null,null,null,null,null,null,"C:\\Users\\Usuario\\Downloads\\XML\\VINI\\RECIBIDOS\\1B06DF26-87CB-4700-A2F6-E24EB264E925.xml"]
[]
[null,null,null,null,null,null,null,null,null,null,null,null,null,null,null,null,null,null,null,null,null,null,null,null,null,null,null,null,null,null,null,null,null,null,null,null,null,null,null,null,null,null,null,null,null,null,null,null,null,null,null,null,null,"C:\\Users\\Usuario\\Downloads\\XML\\VINI\\RECIBIDOS\\1D60270F-22A1-4F5F-938B-6C2647A9B461.xml"]
[null,null,null,null,null,null,null,null,null,null,null,null,null,null,null,null,null,null,null,null,null,null,null,null,null,null,null,null,null,null,null,null,null,null,null,null,null,null,null,null,null,null,null,null,null,null,null,null,null,null,null,null,null,"C:\\Users\\Usuario\\Downloads\\XML\\VINI\\RECIBIDOS\\1E7631CD-6861-4C30-BCBD-50705BDBB78F.xml"]
[null,null,null,null,null,null,null,null,null,null,null,null,null,null,null,null,null,null,null,null,null,null,null,null,null,null,null,null,null,null,null,null,null,null,null,null,null,null,null,null,null,null,null,null,null,null,null,null,null,null,null,null,null,"C:\\Users\\Usuario\\Downloads\\XML\\VINI\\RECIBIDOS\\1FB81ADC-C4FD-421F-B304-7C39E1DA38D1.xml"]
[]
[null,null,null,null,null,null,null,null,null,null,null,null,null,null,null,null,null,null,null,null,null,null,null,null,null,null,null,null,null,null,null,null,null,null,null,null,null,null,null,null,null,null,null,null,null,null,null,null,null,null,null,null,null,"C:\\Users\\Usuario\\Downloads\\XML\\VINI\\RECIBIDOS\\21B4C5AB-4C17-4241-9FDB-3081113D0A35.xml"]
[null,null,null,null,null,null,null,null,null,null,null,null,null,null,null,null,null,null,null,null,null,null,null,null,null,null,null,null,null,null,null,null,null,null,null,null,null,null,null,null,null,null,null,null,null,null,null,null,null,null,null,null,null,"C:\\Users\\Usuario\\Downloads\\XML\\VINI\\RECIBIDOS\\2311A0AD-F553-4CFA-ADA1-165918D20AAC.xml"]
[null,null,null,null,null,null,null,null,null,null,null,null,null,null,null,null,null,null,null,null,null,null,null,null,null,null,null,null,null,null,null,null,null,null,null,null,null,null,null,null,null,null,null,null,null,null,null,null,null,null,null,null,null,"C:\\Users\\Usuario\\Downloads\\XML\\VINI\\RECIBIDOS\\2433682B-902A-4752-BDAB-FFA234B025B8.xml"]
[]
[null,null,null,null,null,null,null,null,null,null,null,null,null,null,null,null,null,null,null,null,null,null,null,null,null,null,null,null,null,null,null,null,null,null,null,null,null,null,null,null,null,null,null,null,null,null,null,null,null,null,null,null,null,"C:\\Users\\Usuario\\Downloads\\XML\\VINI\\RECIBIDOS\\24FEA842-1989-4513-946F-C2DC53BD1AE6.xml"]
[null,null,null,null,null,null,null,null,null,null,null,null,null,null,null,null,null,null,null,null,null,null,null,null,null,null,null,null,null,null,null,null,null,null,null,null,null,null,null,null,null,null,null,null,null,null,null,null,null,null,null,null,null,"C:\\Users\\Usuario\\Downloads\\XML\\VINI\\RECIBIDOS\\269A5D49-8E01-461B-9E84-79630E1DFEB7.xml"]
[]
[]
[]
[]
[null,null,null,null,null,null,null,null,null,null,null,null,null,null,null,null,null,null,null,null,null,null,null,null,null,null,null,null,null,null,null,null,null,null,null,null,null,null,null,null,null,null,null,null,null,null,null,null,null,null,null,null,null,"C:\\Users\\Usuario\\Downloads\\XML\\VINI\\RECIBIDOS\\270BA902-1A29-4295-B8AA-501E43C226D7.xml"]
[null,null,null,null,null,null,null,null,null,null,null,null,null,null,null,null,null,null,null,null,null,null,null,null,null,null,null,null,null,null,null,null,null,null,null,null,null,null,null,null,null,null,null,null,null,null,null,null,null,null,null,null,null,"C:\\Users\\Usuario\\Downloads\\XML\\VINI\\RECIBIDOS\\274451D3-973B-444F-9989-CE1E1C031070.xml"]
[null,null,null,null,null,null,null,null,null,null,null,null,null,null,null,null,null,null,null,null,null,null,null,null,null,null,null,null,null,null,null,null,null,null,null,null,null,null,null,null,null,null,null,null,null,null,null,null,null,null,null,null,null,"C:\\Users\\Usuario\\Downloads\\XML\\VINI\\RECIBIDOS\\29BF298E-23AC-4DE7-A401-D2C2F0A5A082.xml"]
[]
[null,null,null,null,null,null,null,null,null,null,null,null,null,null,null,null,null,null,null,null,null,null,null,null,null,null,null,null,null,null,null,null,null,null,null,null,null,null,null,null,null,null,null,null,null,null,null,null,null,null,null,null,null,"C:\\Users\\Usuario\\Downloads\\XML\\VINI\\RECIBIDOS\\29FC09DB-B446-4259-9D1F-4434B8A9F744.xml"]
[null,null,null,null,null,null,null,null,null,null,null,null,null,null,null,null,null,null,null,null,null,null,null,null,null,null,null,null,null,null,null,null,null,null,null,null,null,null,null,null,null,null,null,null,null,null,null,null,null,null,null,null,null,"C:\\Users\\Usuario\\Downloads\\XML\\VINI\\RECIBIDOS\\2CE31AC5-8C1F-4814-A342-83EDD6B54404.xml"]
[null,null,null,null,null,null,null,null,null,null,null,null,null,null,null,null,null,null,null,null,null,null,null,null,null,null,null,null,null,null,null,null,null,null,null,null,null,null,null,null,null,null,null,null,null,null,null,null,null,null,null,null,null,"C:\\Users\\Usuario\\Downloads\\XML\\VINI\\RECIBIDOS\\2D6703A2-9F86-4391-965A-DB3574B271C0.xml"]
[]
[]
[null,null,null,null,null,null,null,null,null,null,null,null,null,null,null,null,null,null,null,null,null,null,null,null,null,null,null,null,null,null,null,null,null,null,null,null,null,null,null,null,null,null,null,null,null,null,null,null,null,null,null,null,null,"C:\\Users\\Usuario\\Downloads\\XML\\VINI\\RECIBIDOS\\2DBEF3FA-FAC1-40CA-A5F9-5A7CD285E162.xml"]
[]
[null,null,null,null,null,null,null,null,null,null,null,null,null,null,null,null,null,null,null,null,null,null,null,null,null,null,null,null,null,null,null,null,null,null,null,null,null,null,null,null,null,null,null,null,null,null,null,null,null,null,null,null,null,"C:\\Users\\Usuario\\Downloads\\XML\\VINI\\RECIBIDOS\\2FA9EDC8-C555-414F-96CD-1673ED3860A7.xml"]
[null,null,null,null,null,null,null,null,null,null,null,null,null,null,null,null,null,null,null,null,null,null,null,null,null,null,null,null,null,null,null,null,null,null,null,null,null,null,null,null,null,null,null,null,null,null,null,null,null,null,null,null,null,"C:\\Users\\Usuario\\Downloads\\XML\\VINI\\RECIBIDOS\\30CBF6BD-3559-4362-953D-A0A376F74ADA.xml"]
[null,null,null,null,null,null,null,null,null,null,null,null,null,null,null,null,null,null,null,null,null,null,null,null,null,null,null,null,null,null,null,null,null,null,null,null,null,null,null,null,null,null,null,null,null,null,null,null,null,null,null,null,null,"C:\\Users\\Usuario\\Downloads\\XML\\VINI\\RECIBIDOS\\31AD3F61-636C-4DFE-B6DC-0F29B5D98C8C.xml"]
[]
[]
[]
[null,null,null,null,null,null,null,null,null,null,null,null,null,null,null,null,null,null,null,null,null,null,null,null,null,null,null,null,null,null,null,null,null,null,null,null,null,null,null,null,null,null,null,null,null,null,null,null,null,null,null,null,null,"C:\\Users\\Usuario\\Downloads\\XML\\VINI\\RECIBIDOS\\31B3E056-4798-4C34-92BF-381125DA613E.xml"]
[]
[null,null,null,null,null,null,null,null,null,null,null,null,null,null,null,null,null,null,null,null,null,null,null,null,null,null,null,null,null,null,null,null,null,null,null,null,null,null,null,null,null,null,null,null,null,null,null,null,null,null,null,null,null,"C:\\Users\\Usuario\\Downloads\\XML\\VINI\\RECIBIDOS\\33FE8C33-4013-4B51-801A-03CD56B686E7.xml"]
[null,null,null,null,null,null,null,null,null,null,null,null,null,null,null,null,null,null,null,null,null,null,null,null,null,null,null,null,null,null,null,null,null,null,null,null,null,null,null,null,null,null,null,null,null,null,null,null,null,null,null,null,null,"C:\\Users\\Usuario\\Downloads\\XML\\VINI\\RECIBIDOS\\342F01B1-F942-458E-8C56-7FE323D1A1D4.xml"]
[null,null,null,null,null,null,null,null,null,null,null,null,null,null,null,null,null,null,null,null,null,null,null,null,null,null,null,null,null,null,null,null,null,null,null,null,null,null,null,null,null,null,null,null,null,null,null,null,null,null,null,null,null,"C:\\Users\\Usuario\\Downloads\\XML\\VINI\\RECIBIDOS\\34EF2B4A-2B93-4BE7-AFBC-960598BA5993.xml"]
[null,null,null,null,null,null,null,null,null,null,null,null,null,null,null,null,null,null,null,null,null,null,null,null,null,null,null,null,null,null,null,null,null,null,null,null,null,null,null,null,null,null,null,null,null,null,null,null,null,null,null,null,null,"C:\\Users\\Usuario\\Downloads\\XML\\VINI\\RECIBIDOS\\3641D912-AA39-4FF2-A7A1-A5EBC746BFBD.xml"]
[]
[]
[]
[]
[null,null,null,null,null,null,null,null,null,null,null,null,null,null,null,null,null,null,null,null,null,null,null,null,null,null,null,null,null,null,null,null,null,null,null,null,null,null,null,null,null,null,null,null,null,null,null,null,null,null,null,null,null,"C:\\Users\\Usuario\\Downloads\\XML\\VINI\\RECIBIDOS\\37C7DE48-3169-4B25-84AF-777122FE4E47.xml"]
[]
[null,null,null,null,null,null,null,null,null,null,null,null,null,null,null,null,null,null,null,null,null,null,null,null,null,null,null,null,null,null,null,null,null,null,null,null,null,null,null,null,null,null,null,null,null,null,null,null,null,null,null,null,null,"C:\\Users\\Usuario\\Downloads\\XML\\VINI\\RECIBIDOS\\3B13A647-C24D-4AB7-8969-261B2CABDAFE.xml"]
[null,null,null,null,null,null,null,null,null,null,null,null,null,null,null,null,null,null,null,null,null,null,null,null,null,null,null,null,null,null,null,null,null,null,null,null,null,null,null,null,null,null,null,null,null,null,null,null,null,null,null,null,null,"C:\\Users\\Usuario\\Downloads\\XML\\VINI\\RECIBIDOS\\3C364C65-C3F9-425C-9D12-6EB3B0D7D4F6.xml"]
[]
[null,null,null,null,null,null,null,null,null,null,null,null,null,null,null,null,null,null,null,null,null,null,null,null,null,null,null,null,null,null,null,null,null,null,null,null,null,null,null,null,null,null,null,null,null,null,null,null,null,null,null,null,null,"C:\\Users\\Usuario\\Downloads\\XML\\VINI\\RECIBIDOS\\3CB0B8BC-A36B-44D2-970E-9D88BDCA1BE6.xml"]
[null,null,null,null,null,null,null,null,null,null,null,null,null,null,null,null,null,null,null,null,null,null,null,null,null,null,null,null,null,null,null,null,null,null,null,null,null,null,null,null,null,null,null,null,null,null,null,null,null,null,null,null,null,"C:\\Users\\Usuario\\Downloads\\XML\\VINI\\RECIBIDOS\\3CEC1083-17E8-472F-9CB1-99C04975B74C.xml"]
[]
[]
[]
[null,null,null,null,null,null,null,null,null,null,null,null,null,null,null,null,null,null,null,null,null,null,null,null,null,null,null,null,null,null,null,null,null,null,null,null,null,null,null,null,null,null,null,null,null,null,null,null,null,null,null,null,null,"C:\\Users\\Usuario\\Downloads\\XML\\VINI\\RECIBIDOS\\3F3E943C-7590-47F6-8E59-FDA97F672E65.xml"]
[null,null,null,null,null,null,null,null,null,null,null,null,null,null,null,null,null,null,null,null,null,null,null,null,null,null,null,null,null,null,null,null,null,null,null,null,null,null,null,null,null,null,null,null,null,null,null,null,null,null,null,null,null,"C:\\Users\\Usuario\\Downloads\\XML\\VINI\\RECIBIDOS\\3FF13C1E-7AC8-475A-8762-AFD646C0DB30.xml"]
[null,null,null,null,null,null,null,null,null,null,null,null,null,null,null,null,null,null,null,null,null,null,null,null,null,null,null,null,null,null,null,null,null,null,null,null,null,null,null,null,null,null,null,null,null,null,null,null,null,null,null,null,null,"C:\\Users\\Usuario\\Downloads\\XML\\VINI\\RECIBIDOS\\4178562D-588C-4671-AB76-9A1C51F090D5.xml"]
[null,null,null,null,null,null,null,null,null,null,null,null,null,null,null,null,null,null,null,null,null,null,null,null,null,null,null,null,null,null,null,null,null,null,null,null,null,null,null,null,null,null,null,null,null,null,null,null,null,null,null,null,null,"C:\\Users\\Usuario\\Downloads\\XML\\VINI\\RECIBIDOS\\44ACD216-7740-48AC-B8F1-8FF86BB4585F.xml"]
[null,null,null,null,null,null,null,null,null,null,null,null,null,null,null,null,null,null,null,null,null,null,null,null,null,null,null,null,null,null,null,null,null,null,null,null,null,null,null,null,null,null,null,null,null,null,null,null,null,null,null,null,null,"C:\\Users\\Usuario\\Downloads\\XML\\VINI\\RECIBIDOS\\45B58A9B-953B-43A9-AEEB-B5C3646F17A2.xml"]
[]
[null,null,null,null,null,null,null,null,null,null,null,null,null,null,null,null,null,null,null,null,null,null,null,null,null,null,null,null,null,null,null,null,null,null,null,null,null,null,null,null,null,null,null,null,null,null,null,null,null,null,null,null,null,"C:\\Users\\Usuario\\Downloads\\XML\\VINI\\RECIBIDOS\\46340981-58F5-4260-8FE0-D255F01D7E77.xml"]
[null,null,null,null,null,null,null,null,null,null,null,null,null,null,null,null,null,null,null,null,null,null,null,null,null,null,null,null,null,null,null,null,null,null,null,null,null,null,null,null,null,null,null,null,null,null,null,null,null,null,null,null,null,"C:\\Users\\Usuario\\Downloads\\XML\\VINI\\RECIBIDOS\\464B502C-DDB3-11EF-9937-2F330F1C2E82.xml"]
[null,null,null,null,null,null,null,null,null,null,null,null,null,null,null,null,null,null,null,null,null,null,null,null,null,null,null,null,null,null,null,null,null,null,null,null,null,null,null,null,null,null,null,null,null,null,null,null,null,null,null,null,null,"C:\\Users\\Usuario\\Downloads\\XML\\VINI\\RECIBIDOS\\4743D393-F7B2-47B5-BF23-ACB9E8840663.xml"]
[null,null,null,null,null,null,null,null,null,null,null,null,null,null,null,null,null,null,null,null,null,null,null,null,null,null,null,null,null,null,null,null,null,null,null,null,null,null,null,null,null,null,null,null,null,null,null,null,null,null,null,null,null,"C:\\Users\\Usuario\\Downloads\\XML\\VINI\\RECIBIDOS\\4789055C-D3AF-CB4D-9819-8083C7FFA198.xml"]
[null,null,null,null,null,null,null,null,null,null,null,null,null,null,null,null,null,null,null,null,null,null,null,null,null,null,null,null,null,null,null,null,null,null,null,null,null,null,null,null,null,null,null,null,null,null,null,null,null,null,null,null,null,"C:\\Users\\Usuario\\Downloads\\XML\\VINI\\RECIBIDOS\\47A17D9D-CCAD-5E91-9774-50426D6DEDC5.xml"]
[null,null,null,null,null,null,null,null,null,null,null,null,null,null,null,null,null,null,null,null,null,null,null,null,null,null,null,null,null,null,null,null,null,null,null,null,null,null,null,null,null,null,null,null,null,null,null,null,null,null,null,null,null,"C:\\Users\\Usuario\\Downloads\\XML\\VINI\\RECIBIDOS\\486CF5E6-1486-4490-953B-E9543EBF724B.xml"]
[]
[]
[null,null,null,null,null,null,null,null,null,null,null,null,null,null,null,null,null,null,null,null,null,null,null,null,null,null,null,null,null,null,null,null,null,null,null,null,null,null,null,null,null,null,null,null,null,null,null,null,null,null,null,null,null,"C:\\Users\\Usuario\\Downloads\\XML\\VINI\\RECIBIDOS\\494D1CC1-D886-4440-8DE8-B6690977DD06.xml"]
[]
[]
[null,null,null,null,null,null,null,null,null,null,null,null,null,null,null,null,null,null,null,null,null,null,null,null,null,null,null,null,null,null,null,null,null,null,null,null,null,null,null,null,null,null,null,null,null,null,null,null,null,null,null,null,null,"C:\\Users\\Usuario\\Downloads\\XML\\VINI\\RECIBIDOS\\4A4B3C00-9C51-417F-A2EA-B6832269C879.xml"]
[null,null,null,null,null,null,null,null,null,null,null,null,null,null,null,null,null,null,null,null,null,null,null,null,null,null,null,null,null,null,null,null,null,null,null,null,null,null,null,null,null,null,null,null,null,null,null,null,null,null,null,null,null,"C:\\Users\\Usuario\\Downloads\\XML\\VINI\\RECIBIDOS\\4BBD8786-3155-47E0-B459-DFA7DEE0FDED.xml"]
[null,null,null,null,null,null,null,null,null,null,null,null,null,null,null,null,null,null,null,null,null,null,null,null,null,null,null,null,null,null,null,null,null,null,null,null,null,null,null,null,null,null,null,null,null,null,null,null,null,null,null,null,null,"C:\\Users\\Usuario\\Downloads\\XML\\VINI\\RECIBIDOS\\4BFEFF5D-AC3E-444B-9FBE-77AEF29A7FB4.xml"]
[]
[]
[]
[]
[]
[null,null,null,null,null,null,null,null,null,null,null,null,null,null,null,null,null,null,null,null,null,null,null,null,null,null,null,null,null,null,null,null,null,null,null,null,null,null,null,null,null,null,null,null,null,null,null,null,null,null,null,null,null,"C:\\Users\\Usuario\\Downloads\\XML\\VINI\\RECIBIDOS\\4E532344-A7F6-410D-92C8-DDF970746A52.xml"]
[null,null,null,null,null,null,null,null,null,null,null,null,null,null,null,null,null,null,null,null,null,null,null,null,null,null,null,null,null,null,null,null,null,null,null,null,null,null,null,null,null,null,null,null,null,null,null,null,null,null,null,null,null,"C:\\Users\\Usuario\\Downloads\\XML\\VINI\\RECIBIDOS\\514DC76D-6135-4EC1-ACD3-4687188EAE9C.xml"]
[null,null,null,null,null,null,null,null,null,null,null,null,null,null,null,null,null,null,null,null,null,null,null,null,null,null,null,null,null,null,null,null,null,null,null,null,null,null,null,null,null,null,null,null,null,null,null,null,null,null,null,null,null,"C:\\Users\\Usuario\\Downloads\\XML\\VINI\\RECIBIDOS\\515E4DA9-9475-4BFF-824B-B6C8D86C5AE6.xml"]
[null,null,null,null,null,null,null,null,null,null,null,null,null,null,null,null,null,null,null,null,null,null,null,null,null,null,null,null,null,null,null,null,null,null,null,null,null,null,null,null,null,null,null,null,null,null,null,null,null,null,null,null,null,"C:\\Users\\Usuario\\Downloads\\XML\\VINI\\RECIBIDOS\\51AA63DB-E768-4667-A13E-10A427233E52.xml"]
[]
[]
[null,null,null,null,null,null,null,null,null,null,null,null,null,null,null,null,null,null,null,null,null,null,null,null,null,null,null,null,null,null,null,null,null,null,null,null,null,null,null,null,null,null,null,null,null,null,null,null,null,null,null,null,null,"C:\\Users\\Usuario\\Downloads\\XML\\VINI\\RECIBIDOS\\532BB374-1575-4773-9CF7-A1AE81374098.xml"]
[null,null,null,null,null,null,null,null,null,null,null,null,null,null,null,null,null,null,null,null,null,null,null,null,null,null,null,null,null,null,null,null,null,null,null,null,null,null,null,null,null,null,null,null,null,null,null,null,null,null,null,null,null,"C:\\Users\\Usuario\\Downloads\\XML\\VINI\\RECIBIDOS\\549695B9-C6B2-4C5E-935D-EB8D8B87EDBD.xml"]
[null,null,null,null,null,null,null,null,null,null,null,null,null,null,null,null,null,null,null,null,null,null,null,null,null,null,null,null,null,null,null,null,null,null,null,null,null,null,null,null,null,null,null,null,null,null,null,null,null,null,null,null,null,"C:\\Users\\Usuario\\Downloads\\XML\\VINI\\RECIBIDOS\\56B3469E-6B1D-4DEC-BDD9-0113673F5DC9.xml"]
[]
[]
[]
[]
[]
[null,null,null,null,null,null,null,null,null,null,null,null,null,null,null,null,null,null,null,null,null,null,null,null,null,null,null,null,null,null,null,null,null,null,null,null,null,null,null,null,null,null,null,null,null,null,null,null,null,null,null,null,null,"C:\\Users\\Usuario\\Downloads\\XML\\VINI\\RECIBIDOS\\57682CA2-FA05-11EF-A601-731C822E6F03.xml"]
[null,null,null,null,null,null,null,null,null,null,null,null,null,null,null,null,null,null,null,null,null,null,null,null,null,null,null,null,null,null,null,null,null,null,null,null,null,null,null,null,null,null,null,null,null,null,null,null,null,null,null,null,null,"C:\\Users\\Usuario\\Downloads\\XML\\VINI\\RECIBIDOS\\580E558F-3C56-4AD3-B33E-CD8BCC4A1D10.xml"]
[null,null,null,null,null,null,null,null,null,null,null,null,null,null,null,null,null,null,null,null,null,null,null,null,null,null,null,null,null,null,null,null,null,null,null,null,null,null,null,null,null,null,null,null,null,null,null,null,null,null,null,null,null,"C:\\Users\\Usuario\\Downloads\\XML\\VINI\\RECIBIDOS\\58DA1E15-6E6C-4979-9861-65C6C8C42450.xml"]
[null,null,null,null,null,null,null,null,null,null,null,null,null,null,null,null,null,null,null,null,null,null,null,null,null,null,null,null,null,null,null,null,null,null,null,null,null,null,null,null,null,null,null,null,null,null,null,null,null,null,null,null,null,"C:\\Users\\Usuario\\Downloads\\XML\\VINI\\RECIBIDOS\\59809393-04DF-4541-8A33-E2AB1DFAB9F6.xml"]
[null,null,null,null,null,null,null,null,null,null,null,null,null,null,null,null,null,null,null,null,null,null,null,null,null,null,null,null,null,null,null,null,null,null,null,null,null,null,null,null,null,null,null,null,null,null,null,null,null,null,null,null,null,"C:\\Users\\Usuario\\Downloads\\XML\\VINI\\RECIBIDOS\\5C112D29-C8F7-4D58-883A-181DA63565CC.xml"]
[]
[null,null,null,null,null,null,null,null,null,null,null,null,null,null,null,null,null,null,null,null,null,null,null,null,null,null,null,null,null,null,null,null,null,null,null,null,null,null,null,null,null,null,null,null,null,null,null,null,null,null,null,null,null,"C:\\Users\\Usuario\\Downloads\\XML\\VINI\\RECIBIDOS\\5C33ED3E-4580-4AD4-8C3E-EA988A212DEF.xml"]
[null,null,null,null,null,null,null,null,null,null,null,null,null,null,null,null,null,null,null,null,null,null,null,null,null,null,null,null,null,null,null,null,null,null,null,null,null,null,null,null,null,null,null,null,null,null,null,null,null,null,null,null,null,"C:\\Users\\Usuario\\Downloads\\XML\\VINI\\RECIBIDOS\\5C512B3E-1686-405F-8D79-A0E52F7E43FC.xml"]
[null,null,null,null,null,null,null,null,null,null,null,null,null,null,null,null,null,null,null,null,null,null,null,null,null,null,null,null,null,null,null,null,null,null,null,null,null,null,null,null,null,null,null,null,null,null,null,null,null,null,null,null,null,"C:\\Users\\Usuario\\Downloads\\XML\\VINI\\RECIBIDOS\\5DABF54A-E350-416F-AB29-93A02896AAFA.xml"]
[null,null,null,null,null,null,null,null,null,null,null,null,null,null,null,null,null,null,null,null,null,null,null,null,null,null,null,null,null,null,null,null,null,null,null,null,null,null,null,null,null,null,null,null,null,null,null,null,null,null,null,null,null,"C:\\Users\\Usuario\\Downloads\\XML\\VINI\\RECIBIDOS\\5F17A035-2611-43DB-A590-8FDC5767595F.xml"]
[]
[]
[]
[null,null,null,null,null,null,null,null,null,null,null,null,null,null,null,null,null,null,null,null,null,null,null,null,null,null,null,null,null,null,null,null,null,null,null,null,null,null,null,null,null,null,null,null,null,null,null,null,null,null,null,null,null,"C:\\Users\\Usuario\\Downloads\\XML\\VINI\\RECIBIDOS\\5F452DD8-A766-4DC6-AEAD-4F414AAAE33B.xml"]
[null,null,null,null,null,null,null,null,null,null,null,null,null,null,null,null,null,null,null,null,null,null,null,null,null,null,null,null,null,null,null,null,null,null,null,null,null,null,null,null,null,null,null,null,null,null,null,null,null,null,null,null,null,"C:\\Users\\Usuario\\Downloads\\XML\\VINI\\RECIBIDOS\\64A1DE58-A371-49D7-99BC-253890C611A9.xml"]
[]
[]
[]
[]
[]
[null,null,null,null,null,null,null,null,null,null,null,null,null,null,null,null,null,null,null,null,null,null,null,null,null,null,null,null,null,null,null,null,null,null,null,null,null,null,null,null,null,null,null,null,null,null,null,null,null,null,null,null,null,"C:\\Users\\Usuario\\Downloads\\XML\\VINI\\RECIBIDOS\\65152B97-B34B-4112-A1D0-3F80B0A1B85A.xml"]
[null,null,null,null,null,null,null,null,null,null,null,null,null,null,null,null,null,null,null,null,null,null,null,null,null,null,null,null,null,null,null,null,null,null,null,null,null,null,null,null,null,null,null,null,null,null,null,null,null,null,null,null,null,"C:\\Users\\Usuario\\Downloads\\XML\\VINI\\RECIBIDOS\\653329D8-9C02-4492-82D2-9F4622A5A7ED.xml"]
[null,null,null,null,null,null,null,null,null,null,null,null,null,null,null,null,null,null,null,null,null,null,null,null,null,null,null,null,null,null,null,null,null,null,null,null,null,null,null,null,null,null,null,null,null,null,null,null,null,null,null,null,null,"C:\\Users\\Usuario\\Downloads\\XML\\VINI\\RECIBIDOS\\65BD5602-EBC8-45C0-9B77-575D64A0A617.xml"]
[null,null,null,null,null,null,null,null,null,null,null,null,null,null,null,null,null,null,null,null,null,null,null,null,null,null,null,null,null,null,null,null,null,null,null,null,null,null,null,null,null,null,null,null,null,null,null,null,null,null,null,null,null,"C:\\Users\\Usuario\\Downloads\\XML\\VINI\\RECIBIDOS\\65EA80CA-F502-4BF2-8339-2A2A1D99EAF4.xml"]
[null,null,null,null,null,null,null,null,null,null,null,null,null,null,null,null,null,null,null,null,null,null,null,null,null,null,null,null,null,null,null,null,null,null,null,null,null,null,null,null,null,null,null,null,null,null,null,null,null,null,null,null,null,"C:\\Users\\Usuario\\Downloads\\XML\\VINI\\RECIBIDOS\\660FB05F-F7F1-4606-B1B0-79E03D688FB8.xml"]
[null,null,null,null,null,null,null,null,null,null,null,null,null,null,null,null,null,null,null,null,null,null,null,null,null,null,null,null,null,null,null,null,null,null,null,null,null,null,null,null,null,null,null,null,null,null,null,null,null,null,null,null,null,"C:\\Users\\Usuario\\Downloads\\XML\\VINI\\RECIBIDOS\\670834BE-DB24-4D70-9E16-4C953B5047AB.xml"]
[]
[null,null,null,null,null,null,null,null,null,null,null,null,null,null,null,null,null,null,null,null,null,null,null,null,null,null,null,null,null,null,null,null,null,null,null,null,null,null,null,null,null,null,null,null,null,null,null,null,null,null,null,null,null,"C:\\Users\\Usuario\\Downloads\\XML\\VINI\\RECIBIDOS\\682E660B-796B-416B-9217-25133D6A6129.xml"]
[null,null,null,null,null,null,null,null,null,null,null,null,null,null,null,null,null,null,null,null,null,null,null,null,null,null,null,null,null,null,null,null,null,null,null,null,null,null,null,null,null,null,null,null,null,null,null,null,null,null,null,null,null,"C:\\Users\\Usuario\\Downloads\\XML\\VINI\\RECIBIDOS\\69CFD1A3-BA75-4C82-ACBC-B119F5900B3B.xml"]
[null,null,null,null,null,null,null,null,null,null,null,null,null,null,null,null,null,null,null,null,null,null,null,null,null,null,null,null,null,null,null,null,null,null,null,null,null,null,null,null,null,null,null,null,null,null,null,null,null,null,null,null,null,"C:\\Users\\Usuario\\Downloads\\XML\\VINI\\RECIBIDOS\\6A16E1DD-9C69-485B-A672-4EEFDC426347.xml"]
[null,null,null,null,null,null,null,null,null,null,null,null,null,null,null,null,null,null,null,null,null,null,null,null,null,null,null,null,null,null,null,null,null,null,null,null,null,null,null,null,null,null,null,null,null,null,null,null,null,null,null,null,null,"C:\\Users\\Usuario\\Downloads\\XML\\VINI\\RECIBIDOS\\6AA4EC72-7DEF-4765-8D0D-49221E9EAE04.xml"]
[null,null,null,null,null,null,null,null,null,null,null,null,null,null,null,null,null,null,null,null,null,null,null,null,null,null,null,null,null,null,null,null,null,null,null,null,null,null,null,null,null,null,null,null,null,null,null,null,null,null,null,null,null,"C:\\Users\\Usuario\\Downloads\\XML\\VINI\\RECIBIDOS\\6AA92B99-0FE1-4B8E-9E9F-9E01C6D8476F.xml"]
[null,null,null,null,null,null,null,null,null,null,null,null,null,null,null,null,null,null,null,null,null,null,null,null,null,null,null,null,null,null,null,null,null,null,null,null,null,null,null,null,null,null,null,null,null,null,null,null,null,null,null,null,null,"C:\\Users\\Usuario\\Downloads\\XML\\VINI\\RECIBIDOS\\6C177AD2-F204-4400-A904-1279C39136AA.xml"]
[null,null,null,null,null,null,null,null,null,null,null,null,null,null,null,null,null,null,null,null,null,null,null,null,null,null,null,null,null,null,null,null,null,null,null,null,null,null,null,null,null,null,null,null,null,null,null,null,null,null,null,null,null,"C:\\Users\\Usuario\\Downloads\\XML\\VINI\\RECIBIDOS\\6CC698EF-3B1A-47AA-BFBF-3F3043C0D044.xml"]
[null,null,null,null,null,null,null,null,null,null,null,null,null,null,null,null,null,null,null,null,null,null,null,null,null,null,null,null,null,null,null,null,null,null,null,null,null,null,null,null,null,null,null,null,null,null,null,null,null,null,null,null,null,"C:\\Users\\Usuario\\Downloads\\XML\\VINI\\RECIBIDOS\\6D55D1AA-80BE-4535-A0A1-FDDA8B7948F5.xml"]
[null,null,null,null,null,null,null,null,null,null,null,null,null,null,null,null,null,null,null,null,null,null,null,null,null,null,null,null,null,null,null,null,null,null,null,null,null,null,null,null,null,null,null,null,null,null,null,null,null,null,null,null,null,"C:\\Users\\Usuario\\Downloads\\XML\\VINI\\RECIBIDOS\\6D82E17B-6806-4D50-AD8A-DDCBB06169A0.xml"]
[null,null,null,null,null,null,null,null,null,null,null,null,null,null,null,null,null,null,null,null,null,null,null,null,null,null,null,null,null,null,null,null,null,null,null,null,null,null,null,null,null,null,null,null,null,null,null,null,null,null,null,null,null,"C:\\Users\\Usuario\\Downloads\\XML\\VINI\\RECIBIDOS\\6E442D77-ECDF-4F68-B218-9281D06BC79A.xml"]
[null,null,null,null,null,null,null,null,null,null,null,null,null,null,null,null,null,null,null,null,null,null,null,null,null,null,null,null,null,null,null,null,null,null,null,null,null,null,null,null,null,null,null,null,null,null,null,null,null,null,null,null,null,"C:\\Users\\Usuario\\Downloads\\XML\\VINI\\RECIBIDOS\\6F0C0C1B-6034-4D8B-B3CA-C53BD581610E.xml"]
[]
[null,null,null,null,null,null,null,null,null,null,null,null,null,null,null,null,null,null,null,null,null,null,null,null,null,null,null,null,null,null,null,null,null,null,null,null,null,null,null,null,null,null,null,null,null,null,null,null,null,null,null,null,null,"C:\\Users\\Usuario\\Downloads\\XML\\VINI\\RECIBIDOS\\704C7DCF-D0D2-4C4F-B206-59EC8A4467F6.xml"]
[null,null,null,null,null,null,null,null,null,null,null,null,null,null,null,null,null,null,null,null,null,null,null,null,null,null,null,null,null,null,null,null,null,null,null,null,null,null,null,null,null,null,null,null,null,null,null,null,null,null,null,null,null,"C:\\Users\\Usuario\\Downloads\\XML\\VINI\\RECIBIDOS\\716593F7-189F-4643-9938-22F7AABF28A4.xml"]
[null,null,null,null,null,null,null,null,null,null,null,null,null,null,null,null,null,null,null,null,null,null,null,null,null,null,null,null,null,null,null,null,null,null,null,null,null,null,null,null,null,null,null,null,null,null,null,null,null,null,null,null,null,"C:\\Users\\Usuario\\Downloads\\XML\\VINI\\RECIBIDOS\\7300E0BE-A790-4E29-B2CC-64BBE8CD3CB2.xml"]
[]
[]
[null,null,null,null,null,null,null,null,null,null,null,null,null,null,null,null,null,null,null,null,null,null,null,null,null,null,null,null,null,null,null,null,null,null,null,null,null,null,null,null,null,null,null,null,null,null,null,null,null,null,null,null,null,"C:\\Users\\Usuario\\Downloads\\XML\\VINI\\RECIBIDOS\\738D0420-EFFA-4D9D-810E-C1740D6CCADC.xml"]
[null,null,null,null,null,null,null,null,null,null,null,null,null,null,null,null,null,null,null,null,null,null,null,null,null,null,null,null,null,null,null,null,null,null,null,null,null,null,null,null,null,null,null,null,null,null,null,null,null,null,null,null,null,"C:\\Users\\Usuario\\Downloads\\XML\\VINI\\RECIBIDOS\\74B6C4FE-8C3A-40D5-980A-E6502933D86F.xml"]
[null,null,null,null,null,null,null,null,null,null,null,null,null,null,null,null,null,null,null,null,null,null,null,null,null,null,null,null,null,null,null,null,null,null,null,null,null,null,null,null,null,null,null,null,null,null,null,null,null,null,null,null,null,"C:\\Users\\Usuario\\Downloads\\XML\\VINI\\RECIBIDOS\\75457B50-8EF5-440F-874B-3DEDF71C139E.xml"]
[]
[]
[]
[]
[]
[null,null,null,null,null,null,null,null,null,null,null,null,null,null,null,null,null,null,null,null,null,null,null,null,null,null,null,null,null,null,null,null,null,null,null,null,null,null,null,null,null,null,null,null,null,null,null,null,null,null,null,null,null,"C:\\Users\\Usuario\\Downloads\\XML\\VINI\\RECIBIDOS\\7740C13A-E00E-9E46-B0C3-32BB65D2A2E7.xml"]
[null,null,null,null,null,null,null,null,null,null,null,null,null,null,null,null,null,null,null,null,null,null,null,null,null,null,null,null,null,null,null,null,null,null,null,null,null,null,null,null,null,null,null,null,null,null,null,null,null,null,null,null,null,"C:\\Users\\Usuario\\Downloads\\XML\\VINI\\RECIBIDOS\\782362AD-BC24-49AF-843E-52BC0C340715.xml"]
[]
[null,null,null,null,null,null,null,null,null,null,null,null,null,null,null,null,null,null,null,null,null,null,null,null,null,null,null,null,null,null,null,null,null,null,null,null,null,null,null,null,null,null,null,null,null,null,null,null,null,null,null,null,null,"C:\\Users\\Usuario\\Downloads\\XML\\VINI\\RECIBIDOS\\7A2C715A-5EAD-4233-9A1E-BDC2B627E856.xml"]
[]
[null,null,null,null,null,null,null,null,null,null,null,null,null,null,null,null,null,null,null,null,null,null,null,null,null,null,null,null,null,null,null,null,null,null,null,null,null,null,null,null,null,null,null,null,null,null,null,null,null,null,null,null,null,"C:\\Users\\Usuario\\Downloads\\XML\\VINI\\RECIBIDOS\\7AB9F634-623F-47FC-B605-CA3150D71871.xml"]
[null,null,null,null,null,null,null,null,null,null,null,null,null,null,null,null,null,null,null,null,null,null,null,null,null,null,null,null,null,null,null,null,null,null,null,null,null,null,null,null,null,null,null,null,null,null,null,null,null,null,null,null,null,"C:\\Users\\Usuario\\Downloads\\XML\\VINI\\RECIBIDOS\\7D868824-F2F4-43A6-A47E-58932EFB7EA1.xml"]
[null,null,null,null,null,null,null,null,null,null,null,null,null,null,null,null,null,null,null,null,null,null,null,null,null,null,null,null,null,null,null,null,null,null,null,null,null,null,null,null,null,null,null,null,null,null,null,null,null,null,null,null,null,"C:\\Users\\Usuario\\Downloads\\XML\\VINI\\RECIBIDOS\\7E84892E-033C-4CAA-B043-FD30907C6F6F.xml"]
[null,null,null,null,null,null,null,null,null,null,null,null,null,null,null,null,null,null,null,null,null,null,null,null,null,null,null,null,null,null,null,null,null,null,null,null,null,null,null,null,null,null,null,null,null,null,null,null,null,null,null,null,null,"C:\\Users\\Usuario\\Downloads\\XML\\VINI\\RECIBIDOS\\8107EFAC-6188-4E6E-82E3-7D8FA7C238EE.xml"]
[null,null,null,null,null,null,null,null,null,null,null,null,null,null,null,null,null,null,null,null,null,null,null,null,null,null,null,null,null,null,null,null,null,null,null,null,null,null,null,null,null,null,null,null,null,null,null,null,null,null,null,null,null,"C:\\Users\\Usuario\\Downloads\\XML\\VINI\\RECIBIDOS\\811C00B4-CB25-4DE0-A5BA-D4571AEB0FE0.xml"]
[null,null,null,null,null,null,null,null,null,null,null,null,null,null,null,null,null,null,null,null,null,null,null,null,null,null,null,null,null,null,null,null,null,null,null,null,null,null,null,null,null,null,null,null,null,null,null,null,null,null,null,null,null,"C:\\Users\\Usuario\\Downloads\\XML\\VINI\\RECIBIDOS\\821B6934-7A7B-4DA2-9A81-115DD8EBBD4F.xml"]
[null,null,null,null,null,null,null,null,null,null,null,null,null,null,null,null,null,null,null,null,null,null,null,null,null,null,null,null,null,null,null,null,null,null,null,null,null,null,null,null,null,null,null,null,null,null,null,null,null,null,null,null,null,"C:\\Users\\Usuario\\Downloads\\XML\\VINI\\RECIBIDOS\\89FE60AB-87A6-5348-8ED5-4F38D275EC70.xml"]
[]
[null,null,null,null,null,null,null,null,null,null,null,null,null,null,null,null,null,null,null,null,null,null,null,null,null,null,null,null,null,null,null,null,null,null,null,null,null,null,null,null,null,null,null,null,null,null,null,null,null,null,null,null,null,"C:\\Users\\Usuario\\Downloads\\XML\\VINI\\RECIBIDOS\\8ADEE10F-4D28-4AEA-8410-48336FDFE729.xml"]
[null,null,null,null,null,null,null,null,null,null,null,null,null,null,null,null,null,null,null,null,null,null,null,null,null,null,null,null,null,null,null,null,null,null,null,null,null,null,null,null,null,null,null,null,null,null,null,null,null,null,null,null,null,"C:\\Users\\Usuario\\Downloads\\XML\\VINI\\RECIBIDOS\\8C3B92C8-D9F0-4866-9C74-369828499792.xml"]
[null,null,null,null,null,null,null,null,null,null,null,null,null,null,null,null,null,null,null,null,null,null,null,null,null,null,null,null,null,null,null,null,null,null,null,null,null,null,null,null,null,null,null,null,null,null,null,null,null,null,null,null,null,"C:\\Users\\Usuario\\Downloads\\XML\\VINI\\RECIBIDOS\\8C5F8D00-03BA-4224-A4A9-0C56466D5F63.xml"]
[]
[null,null,null,null,null,null,null,null,null,null,null,null,null,null,null,null,null,null,null,null,null,null,null,null,null,null,null,null,null,null,null,null,null,null,null,null,null,null,null,null,null,null,null,null,null,null,null,null,null,null,null,null,null,"C:\\Users\\Usuario\\Downloads\\XML\\VINI\\RECIBIDOS\\8D4C2139-8A20-4B90-BACA-E5DDEC70F450.xml"]
[null,null,null,null,null,null,null,null,null,null,null,null,null,null,null,null,null,null,null,null,null,null,null,null,null,null,null,null,null,null,null,null,null,null,null,null,null,null,null,null,null,null,null,null,null,null,null,null,null,null,null,null,null,"C:\\Users\\Usuario\\Downloads\\XML\\VINI\\RECIBIDOS\\902B8EA6-32DC-4C4D-B73D-F3957C079F91.xml"]
[null,null,null,null,null,null,null,null,null,null,null,null,null,null,null,null,null,null,null,null,null,null,null,null,null,null,null,null,null,null,null,null,null,null,null,null,null,null,null,null,null,null,null,null,null,null,null,null,null,null,null,null,null,"C:\\Users\\Usuario\\Downloads\\XML\\VINI\\RECIBIDOS\\91EF4DBA-778E-4FD1-A042-258024D021E6.xml"]
[null,null,null,null,null,null,null,null,null,null,null,null,null,null,null,null,null,null,null,null,null,null,null,null,null,null,null,null,null,null,null,null,null,null,null,null,null,null,null,null,null,null,null,null,null,null,null,null,null,null,null,null,null,"C:\\Users\\Usuario\\Downloads\\XML\\VINI\\RECIBIDOS\\937E03C9-B0B8-4210-818C-C5EF83517972.xml"]
[null,null,null,null,null,null,null,null,null,null,null,null,null,null,null,null,null,null,null,null,null,null,null,null,null,null,null,null,null,null,null,null,null,null,null,null,null,null,null,null,null,null,null,null,null,null,null,null,null,null,null,null,null,"C:\\Users\\Usuario\\Downloads\\XML\\VINI\\RECIBIDOS\\9477BB35-CD4B-4EE2-A0BB-2BFC2EF5B438.xml"]
[null,null,null,null,null,null,null,null,null,null,null,null,null,null,null,null,null,null,null,null,null,null,null,null,null,null,null,null,null,null,null,null,null,null,null,null,null,null,null,null,null,null,null,null,null,null,null,null,null,null,null,null,null,"C:\\Users\\Usuario\\Downloads\\XML\\VINI\\RECIBIDOS\\948C5834-D15E-470F-B409-02DDE7E50B58.xml"]
[null,null,null,null,null,null,null,null,null,null,null,null,null,null,null,null,null,null,null,null,null,null,null,null,null,null,null,null,null,null,null,null,null,null,null,null,null,null,null,null,null,null,null,null,null,null,null,null,null,null,null,null,null,"C:\\Users\\Usuario\\Downloads\\XML\\VINI\\RECIBIDOS\\94E0267C-CA65-11EF-B2F1-656A8EB206E6.xml"]
[]
[]
[]
[null,null,null,null,null,null,null,null,null,null,null,null,null,null,null,null,null,null,null,null,null,null,null,null,null,null,null,null,null,null,null,null,null,null,null,null,null,null,null,null,null,null,null,null,null,null,null,null,null,null,null,null,null,"C:\\Users\\Usuario\\Downloads\\XML\\VINI\\RECIBIDOS\\95FDBE7B-5DAB-4AF7-896E-599F0E47284A.xml"]
[]
[null,null,null,null,null,null,null,null,null,null,null,null,null,null,null,null,null,null,null,null,null,null,null,null,null,null,null,null,null,null,null,null,null,null,null,null,null,null,null,null,null,null,null,null,null,null,null,null,null,null,null,null,null,"C:\\Users\\Usuario\\Downloads\\XML\\VINI\\RECIBIDOS\\9671426F-B939-4B3C-AF55-50170BC0C6E6.xml"]
[null,null,null,null,null,null,null,null,null,null,null,null,null,null,null,null,null,null,null,null,null,null,null,null,null,null,null,null,null,null,null,null,null,null,null,null,null,null,null,null,null,null,null,null,null,null,null,null,null,null,null,null,null,"C:\\Users\\Usuario\\Downloads\\XML\\VINI\\RECIBIDOS\\97CA15C4-291D-46C3-A648-576AB03A0DE8.xml"]
[null,null,null,null,null,null,null,null,null,null,null,null,null,null,null,null,null,null,null,null,null,null,null,null,null,null,null,null,null,null,null,null,null,null,null,null,null,null,null,null,null,null,null,null,null,null,null,null,null,null,null,null,null,"C:\\Users\\Usuario\\Downloads\\XML\\VINI\\RECIBIDOS\\98AD10F2-BA4D-4A4D-97BA-C06924A3BCDC.xml"]
[]
[]
[]
[]
[]
[]
[]
[]
[null,null,null,null,null,null,null,null,null,null,null,null,null,null,null,null,null,null,null,null,null,null,null,null,null,null,null,null,null,null,null,null,null,null,null,null,null,null,null,null,null,null,null,null,null,null,null,null,null,null,null,null,null,"C:\\Users\\Usuario\\Downloads\\XML\\VINI\\RECIBIDOS\\990B4F8B-037D-48A4-B703-83C31B3CB874.xml"]
[null,null,null,null,null,null,null,null,null,null,null,null,null,null,null,null,null,null,null,null,null,null,null,null,null,null,null,null,null,null,null,null,null,null,null,null,null,null,null,null,null,null,null,null,null,null,null,null,null,null,null,null,null,"C:\\Users\\Usuario\\Downloads\\XML\\VINI\\RECIBIDOS\\9955094B-AAA2-47B1-84CC-F489C9F2F636.xml"]
[null,null,null,null,null,null,null,null,null,null,null,null,null,null,null,null,null,null,null,null,null,null,null,null,null,null,null,null,null,null,null,null,null,null,null,null,null,null,null,null,null,null,null,null,null,null,null,null,null,null,null,null,null,"C:\\Users\\Usuario\\Downloads\\XML\\VINI\\RECIBIDOS\\9A0CBDD5-02E0-4143-870C-09A595A7CA40.xml"]
[null,null,null,null,null,null,null,null,null,null,null,null,null,null,null,null,null,null,null,null,null,null,null,null,null,null,null,null,null,null,null,null,null,null,null,null,null,null,null,null,null,null,null,null,null,null,null,null,null,null,null,null,null,"C:\\Users\\Usuario\\Downloads\\XML\\VINI\\RECIBIDOS\\9A70D062-CE96-4B6A-BEC9-74BF6CA4B744.xml"]
[null,null,null,null,null,null,null,null,null,null,null,null,null,null,null,null,null,null,null,null,null,null,null,null,null,null,null,null,null,null,null,null,null,null,null,null,null,null,null,null,null,null,null,null,null,null,null,null,null,null,null,null,null,"C:\\Users\\Usuario\\Downloads\\XML\\VINI\\RECIBIDOS\\9ABB59FB-87FE-4547-B841-3BD6C551735F.xml"]
[null,null,null,null,null,null,null,null,null,null,null,null,null,null,null,null,null,null,null,null,null,null,null,null,null,null,null,null,null,null,null,null,null,null,null,null,null,null,null,null,null,null,null,null,null,null,null,null,null,null,null,null,null,"C:\\Users\\Usuario\\Downloads\\XML\\VINI\\RECIBIDOS\\9B687325-35F7-CA42-A397-3834645F3DDF.xml"]
[]
[null,null,null,null,null,null,null,null,null,null,null,null,null,null,null,null,null,null,null,null,null,null,null,null,null,null,null,null,null,null,null,null,null,null,null,null,null,null,null,null,null,null,null,null,null,null,null,null,null,null,null,null,null,"C:\\Users\\Usuario\\Downloads\\XML\\VINI\\RECIBIDOS\\9BBB5D76-9EDA-44F1-B109-A2070F442626.xml"]
[null,null,null,null,null,null,null,null,null,null,null,null,null,null,null,null,null,null,null,null,null,null,null,null,null,null,null,null,null,null,null,null,null,null,null,null,null,null,null,null,null,null,null,null,null,null,null,null,null,null,null,null,null,"C:\\Users\\Usuario\\Downloads\\XML\\VINI\\RECIBIDOS\\9E4C6D79-58A0-4ADC-8498-BA023F81ABCF.xml"]
[null,null,null,null,null,null,null,null,null,null,null,null,null,null,null,null,null,null,null,null,null,null,null,null,null,null,null,null,null,null,null,null,null,null,null,null,null,null,null,null,null,null,null,null,null,null,null,null,null,null,null,null,null,"C:\\Users\\Usuario\\Downloads\\XML\\VINI\\RECIBIDOS\\A207E751-C682-498F-ABC5-3939EC809EA7.xml"]
[null,null,null,null,null,null,null,null,null,null,null,null,null,null,null,null,null,null,null,null,null,null,null,null,null,null,null,null,null,null,null,null,null,null,null,null,null,null,null,null,null,null,null,null,null,null,null,null,null,null,null,null,null,"C:\\Users\\Usuario\\Downloads\\XML\\VINI\\RECIBIDOS\\A2749A65-25AE-4DB7-A5EB-7E89EF014BF1.xml"]
[null,null,null,null,null,null,null,null,null,null,null,null,null,null,null,null,null,null,null,null,null,null,null,null,null,null,null,null,null,null,null,null,null,null,null,null,null,null,null,null,null,null,null,null,null,null,null,null,null,null,null,null,null,"C:\\Users\\Usuario\\Downloads\\XML\\VINI\\RECIBIDOS\\A2CAD4B4-1741-11F0-8987-858DF1AA1AAC.xml"]
[null,null,null,null,null,null,null,null,null,null,null,null,null,null,null,null,null,null,null,null,null,null,null,null,null,null,null,null,null,null,null,null,null,null,null,null,null,null,null,null,null,null,null,null,null,null,null,null,null,null,null,null,null,"C:\\Users\\Usuario\\Downloads\\XML\\VINI\\RECIBIDOS\\A3665F15-E194-4489-8F70-6B05495E131A.xml"]
[null,null,null,null,null,null,null,null,null,null,null,null,null,null,null,null,null,null,null,null,null,null,null,null,null,null,null,null,null,null,null,null,null,null,null,null,null,null,null,null,null,null,null,null,null,null,null,null,null,null,null,null,null,"C:\\Users\\Usuario\\Downloads\\XML\\VINI\\RECIBIDOS\\A827E048-3824-4B3F-8D07-ABD15BD0C65F.xml"]
[null,null,null,null,null,null,null,null,null,null,null,null,null,null,null,null,null,null,null,null,null,null,null,null,null,null,null,null,null,null,null,null,null,null,null,null,null,null,null,null,null,null,null,null,null,null,null,null,null,null,null,null,null,"C:\\Users\\Usuario\\Downloads\\XML\\VINI\\RECIBIDOS\\AC21A6F1-AD79-4AC8-B652-1B9125E24D31.xml"]
[]
[null,null,null,null,null,null,null,null,null,null,null,null,null,null,null,null,null,null,null,null,null,null,null,null,null,null,null,null,null,null,null,null,null,null,null,null,null,null,null,null,null,null,null,null,null,null,null,null,null,null,null,null,null,"C:\\Users\\Usuario\\Downloads\\XML\\VINI\\RECIBIDOS\\AD4047B4-666E-48C1-999E-0021E45E888D.xml"]
[null,null,null,null,null,null,null,null,null,null,null,null,null,null,null,null,null,null,null,null,null,null,null,null,null,null,null,null,null,null,null,null,null,null,null,null,null,null,null,null,null,null,null,null,null,null,null,null,null,null,null,null,null,"C:\\Users\\Usuario\\Downloads\\XML\\VINI\\RECIBIDOS\\B2201B4A-785B-4655-80DA-F4E36A2C1B55.xml"]
[null,null,null,null,null,null,null,null,null,null,null,null,null,null,null,null,null,null,null,null,null,null,null,null,null,null,null,null,null,null,null,null,null,null,null,null,null,null,null,null,null,null,null,null,null,null,null,null,null,null,null,null,null,"C:\\Users\\Usuario\\Downloads\\XML\\VINI\\RECIBIDOS\\B3AC4C8E-F92E-11EF-B741-754B2BB36B28.xml"]
[]
[null,null,null,null,null,null,null,null,null,null,null,null,null,null,null,null,null,null,null,null,null,null,null,null,null,null,null,null,null,null,null,null,null,null,null,null,null,null,null,null,null,null,null,null,null,null,null,null,null,null,null,null,null,"C:\\Users\\Usuario\\Downloads\\XML\\VINI\\RECIBIDOS\\B4950B3B-5AF3-4A2F-929A-DC3A285C5004.xml"]
[null,null,null,null,null,null,null,null,null,null,null,null,null,null,null,null,null,null,null,null,null,null,null,null,null,null,null,null,null,null,null,null,null,null,null,null,null,null,null,null,null,null,null,null,null,null,null,null,null,null,null,null,null,"C:\\Users\\Usuario\\Downloads\\XML\\VINI\\RECIBIDOS\\B4C065F3-71E1-459D-9B2B-731F149FC01F.xml"]
[null,null,null,null,null,null,null,null,null,null,null,null,null,null,null,null,null,null,null,null,null,null,null,null,null,null,null,null,null,null,null,null,null,null,null,null,null,null,null,null,null,null,null,null,null,null,null,null,null,null,null,null,null,"C:\\Users\\Usuario\\Downloads\\XML\\VINI\\RECIBIDOS\\B52226EB-B03F-499A-A379-76E8528F1E25.xml"]
[]
[null,null,null,null,null,null,null,null,null,null,null,null,null,null,null,null,null,null,null,null,null,null,null,null,null,null,null,null,null,null,null,null,null,null,null,null,null,null,null,null,null,null,null,null,null,null,null,null,null,null,null,null,null,"C:\\Users\\Usuario\\Downloads\\XML\\VINI\\RECIBIDOS\\B74B583A-135E-4408-997E-FA74AD76030E.xml"]
[]
[]
[]
[null,null,null,null,null,null,null,null,null,null,null,null,null,null,null,null,null,null,null,null,null,null,null,null,null,null,null,null,null,null,null,null,null,null,null,null,null,null,null,null,null,null,null,null,null,null,null,null,null,null,null,null,null,"C:\\Users\\Usuario\\Downloads\\XML\\VINI\\RECIBIDOS\\B7A221AD-432B-47E6-B732-BBAD9B2F02C2.xml"]
[null,null,null,null,null,null,null,null,null,null,null,null,null,null,null,null,null,null,null,null,null,null,null,null,null,null,null,null,null,null,null,null,null,null,null,null,null,null,null,null,null,null,null,null,null,null,null,null,null,null,null,null,null,"C:\\Users\\Usuario\\Downloads\\XML\\VINI\\RECIBIDOS\\B94E402E-594B-49B4-85CA-1CA14E5449C8.xml"]
[]
[null,null,null,null,null,null,null,null,null,null,null,null,null,null,null,null,null,null,null,null,null,null,null,null,null,null,null,null,null,null,null,null,null,null,null,null,null,null,null,null,null,null,null,null,null,null,null,null,null,null,null,null,null,"C:\\Users\\Usuario\\Downloads\\XML\\VINI\\RECIBIDOS\\BA1E2B6C-8295-4268-90AF-2545D3391B6A.xml"]
[null,null,null,null,null,null,null,null,null,null,null,null,null,null,null,null,null,null,null,null,null,null,null,null,null,null,null,null,null,null,null,null,null,null,null,null,null,null,null,null,null,null,null,null,null,null,null,null,null,null,null,null,null,"C:\\Users\\Usuario\\Downloads\\XML\\VINI\\RECIBIDOS\\BB7C4E65-847E-4412-826A-B4E07678E85A.xml"]
[null,null,null,null,null,null,null,null,null,null,null,null,null,null,null,null,null,null,null,null,null,null,null,null,null,null,null,null,null,null,null,null,null,null,null,null,null,null,null,null,null,null,null,null,null,null,null,null,null,null,null,null,null,"C:\\Users\\Usuario\\Downloads\\XML\\VINI\\RECIBIDOS\\BCCF08FF-B663-459E-A523-F3BE077636B6.xml"]
[null,null,null,null,null,null,null,null,null,null,null,null,null,null,null,null,null,null,null,null,null,null,null,null,null,null,null,null,null,null,null,null,null,null,null,null,null,null,null,null,null,null,null,null,null,null,null,null,null,null,null,null,null,"C:\\Users\\Usuario\\Downloads\\XML\\VINI\\RECIBIDOS\\BD8A551C-AB05-45D8-A71E-51EDA98D6B2F.xml"]
[]
[]
[]
[]
[]
[]
[]
[]
[]
[]
[null,null,null,null,null,null,null,null,null,null,null,null,null,null,null,null,null,null,null,null,null,null,null,null,null,null,null,null,null,null,null,null,null,null,null,null,null,null,null,null,null,null,null,null,null,null,null,null,null,null,null,null,null,"C:\\Users\\Usuario\\Downloads\\XML\\VINI\\RECIBIDOS\\BD90D3A0-AB57-4D5A-9EEC-9B36513EE886.xml"]
[null,null,null,null,null,null,null,null,null,null,null,null,null,null,null,null,null,null,null,null,null,null,null,null,null,null,null,null,null,null,null,null,null,null,null,null,null,null,null,null,null,null,null,null,null,null,null,null,null,null,null,null,null,"C:\\Users\\Usuario\\Downloads\\XML\\VINI\\RECIBIDOS\\BE9858A2-7C1C-4377-B5D1-050FB2ACA93A.xml"]
[null,null,null,null,null,null,null,null,null,null,null,null,null,null,null,null,null,null,null,null,null,null,null,null,null,null,null,null,null,null,null,null,null,null,null,null,null,null,null,null,null,null,null,null,null,null,null,null,null,null,null,null,null,"C:\\Users\\Usuario\\Downloads\\XML\\VINI\\RECIBIDOS\\BF3A5CE5-5A24-55D1-B265-ECBB60D81414.xml"]
[null,null,null,null,null,null,null,null,null,null,null,null,null,null,null,null,null,null,null,null,null,null,null,null,null,null,null,null,null,null,null,null,null,null,null,null,null,null,null,null,null,null,null,null,null,null,null,null,null,null,null,null,null,"C:\\Users\\Usuario\\Downloads\\XML\\VINI\\RECIBIDOS\\C4C8200E-CDD7-48B8-99C7-CC342009749A.xml"]
[null,null,null,null,null,null,null,null,null,null,null,null,null,null,null,null,null,null,null,null,null,null,null,null,null,null,null,null,null,null,null,null,null,null,null,null,null,null,null,null,null,null,null,null,null,null,null,null,null,null,null,null,null,"C:\\Users\\Usuario\\Downloads\\XML\\VINI\\RECIBIDOS\\C4D04A1F-4482-4884-B47E-259E08169134.xml"]
[]
[]
[null,null,null,null,null,null,null,null,null,null,null,null,null,null,null,null,null,null,null,null,null,null,null,null,null,null,null,null,null,null,null,null,null,null,null,null,null,null,null,null,null,null,null,null,null,null,null,null,null,null,null,null,null,"C:\\Users\\Usuario\\Downloads\\XML\\VINI\\RECIBIDOS\\C6C91244-3264-4A16-8674-90C25ED8FB2A.xml"]
[null,null,null,null,null,null,null,null,null,null,null,null,null,null,null,null,null,null,null,null,null,null,null,null,null,null,null,null,null,null,null,null,null,null,null,null,null,null,null,null,null,null,null,null,null,null,null,null,null,null,null,null,null,"C:\\Users\\Usuario\\Downloads\\XML\\VINI\\RECIBIDOS\\C7C86D4A-FDC5-494A-A359-FCAB862DAEBF.xml"]
[null,null,null,null,null,null,null,null,null,null,null,null,null,null,null,null,null,null,null,null,null,null,null,null,null,null,null,null,null,null,null,null,null,null,null,null,null,null,null,null,null,null,null,null,null,null,null,null,null,null,null,null,null,"C:\\Users\\Usuario\\Downloads\\XML\\VINI\\RECIBIDOS\\C8D843BF-37A3-1349-8AF1-D64223135C3A.xml"]
[null,null,null,null,null,null,null,null,null,null,null,null,null,null,null,null,null,null,null,null,null,null,null,null,null,null,null,null,null,null,null,null,null,null,null,null,null,null,null,null,null,null,null,null,null,null,null,null,null,null,null,null,null,"C:\\Users\\Usuario\\Downloads\\XML\\VINI\\RECIBIDOS\\CB30DA9F-4B46-43E8-85AA-DB5C8450689C.xml"]
[null,null,null,null,null,null,null,null,null,null,null,null,null,null,null,null,null,null,null,null,null,null,null,null,null,null,null,null,null,null,null,null,null,null,null,null,null,null,null,null,null,null,null,null,null,null,null,null,null,null,null,null,null,"C:\\Users\\Usuario\\Downloads\\XML\\VINI\\RECIBIDOS\\CCFD5B6E-AF13-4AEE-9510-5C53EE7B3036.xml"]
[null,null,null,null,null,null,null,null,null,null,null,null,null,null,null,null,null,null,null,null,null,null,null,null,null,null,null,null,null,null,null,null,null,null,null,null,null,null,null,null,null,null,null,null,null,null,null,null,null,null,null,null,null,"C:\\Users\\Usuario\\Downloads\\XML\\VINI\\RECIBIDOS\\CE64E185-51BD-4262-B52C-828577931608.xml"]
[null,null,null,null,null,null,null,null,null,null,null,null,null,null,null,null,null,null,null,null,null,null,null,null,null,null,null,null,null,null,null,null,null,null,null,null,null,null,null,null,null,null,null,null,null,null,null,null,null,null,null,null,null,"C:\\Users\\Usuario\\Downloads\\XML\\VINI\\RECIBIDOS\\CE935E91-CCF3-4D0A-8497-B06FF0198D97.xml"]
[null,null,null,null,null,null,null,null,null,null,null,null,null,null,null,null,null,null,null,null,null,null,null,null,null,null,null,null,null,null,null,null,null,null,null,null,null,null,null,null,null,null,null,null,null,null,null,null,null,null,null,null,null,"C:\\Users\\Usuario\\Downloads\\XML\\VINI\\RECIBIDOS\\D2FA1915-C2D3-4E28-8FED-F4454BB04C22.xml"]
[null,null,null,null,null,null,null,null,null,null,null,null,null,null,null,null,null,null,null,null,null,null,null,null,null,null,null,null,null,null,null,null,null,null,null,null,null,null,null,null,null,null,null,null,null,null,null,null,null,null,null,null,null,"C:\\Users\\Usuario\\Downloads\\XML\\VINI\\RECIBIDOS\\DC6BD7F4-C48E-4A57-AC5B-E8E4AFE34AC8.xml"]
[null,null,null,null,null,null,null,null,null,null,null,null,null,null,null,null,null,null,null,null,null,null,null,null,null,null,null,null,null,null,null,null,null,null,null,null,null,null,null,null,null,null,null,null,null,null,null,null,null,null,null,null,null,"C:\\Users\\Usuario\\Downloads\\XML\\VINI\\RECIBIDOS\\DDCE7325-3EAA-4109-9969-193E471E2652.xml"]
[null,null,null,null,null,null,null,null,null,null,null,null,null,null,null,null,null,null,null,null,null,null,null,null,null,null,null,null,null,null,null,null,null,null,null,null,null,null,null,null,null,null,null,null,null,null,null,null,null,null,null,null,null,"C:\\Users\\Usuario\\Downloads\\XML\\VINI\\RECIBIDOS\\DDD2DEF6-5A74-4395-9C75-BE35A42CD42A.xml"]
[null,null,null,null,null,null,null,null,null,null,null,null,null,null,null,null,null,null,null,null,null,null,null,null,null,null,null,null,null,null,null,null,null,null,null,null,null,null,null,null,null,null,null,null,null,null,null,null,null,null,null,null,null,"C:\\Users\\Usuario\\Downloads\\XML\\VINI\\RECIBIDOS\\DF7D5CE8-DA26-49FF-BF96-6D05B1ABBCDA.xml"]
[]
[]
[]
[]
[]
[]
[]
[]
[]
[]
[]
[]
[]
[]
[]
[]
[]
[]
[]
[]
[]
[]
[]
[null,null,null,null,null,null,null,null,null,null,null,null,null,null,null,null,null,null,null,null,null,null,null,null,null,null,null,null,null,null,null,null,null,null,null,null,null,null,null,null,null,null,null,null,null,null,null,null,null,null,null,null,null,"C:\\Users\\Usuario\\Downloads\\XML\\VINI\\RECIBIDOS\\DFE22455-9B4C-4500-9CA9-DFF51E8B3686.xml"]
[]
[null,null,null,null,null,null,null,null,null,null,null,null,null,null,null,null,null,null,null,null,null,null,null,null,null,null,null,null,null,null,null,null,null,null,null,null,null,null,null,null,null,null,null,null,null,null,null,null,null,null,null,null,null,"C:\\Users\\Usuario\\Downloads\\XML\\VINI\\RECIBIDOS\\E02058A9-61D1-4596-B2E8-AF9AA6E84E0A.xml"]
[null,null,null,null,null,null,null,null,null,null,null,null,null,null,null,null,null,null,null,null,null,null,null,null,null,null,null,null,null,null,null,null,null,null,null,null,null,null,null,null,null,null,null,null,null,null,null,null,null,null,null,null,null,"C:\\Users\\Usuario\\Downloads\\XML\\VINI\\RECIBIDOS\\E2E81E81-5192-455E-83FA-238A0FD7C7E0.xml"]
[]
[]
[null,null,null,null,null,null,null,null,null,null,null,null,null,null,null,null,null,null,null,null,null,null,null,null,null,null,null,null,null,null,null,null,null,null,null,null,null,null,null,null,null,null,null,null,null,null,null,null,null,null,null,null,null,"C:\\Users\\Usuario\\Downloads\\XML\\VINI\\RECIBIDOS\\E3118121-897D-4706-A44B-A13C99FCEC44.xml"]
[null,null,null,null,null,null,null,null,null,null,null,null,null,null,null,null,null,null,null,null,null,null,null,null,null,null,null,null,null,null,null,null,null,null,null,null,null,null,null,null,null,null,null,null,null,null,null,null,null,null,null,null,null,"C:\\Users\\Usuario\\Downloads\\XML\\VINI\\RECIBIDOS\\E3BF55A3-3FDD-4566-B5A0-AFBBCF2A55C0.xml"]
[null,null,null,null,null,null,null,null,null,null,null,null,null,null,null,null,null,null,null,null,null,null,null,null,null,null,null,null,null,null,null,null,null,null,null,null,null,null,null,null,null,null,null,null,null,null,null,null,null,null,null,null,null,"C:\\Users\\Usuario\\Downloads\\XML\\VINI\\RECIBIDOS\\E525CBBF-1A35-4D8E-8883-F97B42F9E16B.xml"]
[]
[]
[]
[]
[]
[]
[]
[]
[]
[]
[]
[]
[]
[]
[]
[]
[null,null,null,null,null,null,null,null,null,null,null,null,null,null,null,null,null,null,null,null,null,null,null,null,null,null,null,null,null,null,null,null,null,null,null,null,null,null,null,null,null,null,null,null,null,null,null,null,null,null,null,null,null,"C:\\Users\\Usuario\\Downloads\\XML\\VINI\\RECIBIDOS\\E66530E9-B9BE-46F5-81E2-7D246E39B856.xml"]
[null,null,null,null,null,null,null,null,null,null,null,null,null,null,null,null,null,null,null,null,null,null,null,null,null,null,null,null,null,null,null,null,null,null,null,null,null,null,null,null,null,null,null,null,null,null,null,null,null,null,null,null,null,"C:\\Users\\Usuario\\Downloads\\XML\\VINI\\RECIBIDOS\\E68104C9-AA03-4ECD-ABA0-F610D017C042.xml"]
[null,null,null,null,null,null,null,null,null,null,null,null,null,null,null,null,null,null,null,null,null,null,null,null,null,null,null,null,null,null,null,null,null,null,null,null,null,null,null,null,null,null,null,null,null,null,null,null,null,null,null,null,null,"C:\\Users\\Usuario\\Downloads\\XML\\VINI\\RECIBIDOS\\E9E6CEE4-B8F4-49CF-9A89-5CFADDA4C997.xml"]
[null,null,null,null,null,null,null,null,null,null,null,null,null,null,null,null,null,null,null,null,null,null,null,null,null,null,null,null,null,null,null,null,null,null,null,null,null,null,null,null,null,null,null,null,null,null,null,null,null,null,null,null,null,"C:\\Users\\Usuario\\Downloads\\XML\\VINI\\RECIBIDOS\\EDB8D6F8-F254-4423-9E4C-691EB3464976.xml"]
[]
[]
[]
[null,null,null,null,null,null,null,null,null,null,null,null,null,null,null,null,null,null,null,null,null,null,null,null,null,null,null,null,null,null,null,null,null,null,null,null,null,null,null,null,null,null,null,null,null,null,null,null,null,null,null,null,null,"C:\\Users\\Usuario\\Downloads\\XML\\VINI\\RECIBIDOS\\EDF5EF54-E36E-11EF-B5E6-B76C0D4E045D.xml"]
[]
[]
[null,null,null,null,null,null,null,null,null,null,null,null,null,null,null,null,null,null,null,null,null,null,null,null,null,null,null,null,null,null,null,null,null,null,null,null,null,null,null,null,null,null,null,null,null,null,null,null,null,null,null,null,null,"C:\\Users\\Usuario\\Downloads\\XML\\VINI\\RECIBIDOS\\EFC1E09E-F9FE-430E-AF7F-81369E0E8526.xml"]
[null,null,null,null,null,null,null,null,null,null,null,null,null,null,null,null,null,null,null,null,null,null,null,null,null,null,null,null,null,null,null,null,null,null,null,null,null,null,null,null,null,null,null,null,null,null,null,null,null,null,null,null,null,"C:\\Users\\Usuario\\Downloads\\XML\\VINI\\RECIBIDOS\\F0A4DB85-8C9A-441D-8F52-6E6A3CA40CE8.xml"]
[]
[null,null,null,null,null,null,null,null,null,null,null,null,null,null,null,null,null,null,null,null,null,null,null,null,null,null,null,null,null,null,null,null,null,null,null,null,null,null,null,null,null,null,null,null,null,null,null,null,null,null,null,null,null,"C:\\Users\\Usuario\\Downloads\\XML\\VINI\\RECIBIDOS\\F109CA32-A6D2-4944-BA7B-25202EAA3000.xml"]
[null,null,null,null,null,null,null,null,null,null,null,null,null,null,null,null,null,null,null,null,null,null,null,null,null,null,null,null,null,null,null,null,null,null,null,null,null,null,null,null,null,null,null,null,null,null,null,null,null,null,null,null,null,"C:\\Users\\Usuario\\Downloads\\XML\\VINI\\RECIBIDOS\\F187BD13-1E39-394E-9C95-C77E280AE142.xml"]
[]
[]
[]
[]
[]
[]
[]
[]
[]
[]
[]
[]
[]
[null,null,null,null,null,null,null,null,null,null,null,null,null,null,null,null,null,null,null,null,null,null,null,null,null,null,null,null,null,null,null,null,null,null,null,null,null,null,null,null,null,null,null,null,null,null,null,null,null,null,null,null,null,"C:\\Users\\Usuario\\Downloads\\XML\\VINI\\RECIBIDOS\\F4B33FF6-4A08-4988-981D-E582C580CF11.xml"]
[]
[null,null,null,null,null,null,null,null,null,null,null,null,null,null,null,null,null,null,null,null,null,null,null,null,null,null,null,null,null,null,null,null,null,null,null,null,null,null,null,null,null,null,null,null,null,null,null,null,null,null,null,null,null,"C:\\Users\\Usuario\\Downloads\\XML\\VINI\\RECIBIDOS\\F966C461-E8A3-4879-877F-971FF9B82F17.xml"]
[null,null,null,null,null,null,null,null,null,null,null,null,null,null,null,null,null,null,null,null,null,null,null,null,null,null,null,null,null,null,null,null,null,null,null,null,null,null,null,null,null,null,null,null,null,null,null,null,null,null,null,null,null,"C:\\Users\\Usuario\\Downloads\\XML\\VINI\\RECIBIDOS\\F9B2B0A4-D8BB-4D66-8FA3-93EC5286843D.xml"]
[null,null,null,null,null,null,null,null,null,null,null,null,null,null,null,null,null,null,null,null,null,null,null,null,null,null,null,null,null,null,null,null,null,null,null,null,null,null,null,null,null,null,null,null,null,null,null,null,null,null,null,null,null,"C:\\Users\\Usuario\\Downloads\\XML\\VINI\\RECIBIDOS\\FAA28A21-26C2-45F2-98DD-68D49F25EF19.xml"]
[null,null,null,null,null,null,null,null,null,null,null,null,null,null,null,null,null,null,null,null,null,null,null,null,null,null,null,null,null,null,null,null,null,null,null,null,null,null,null,null,null,null,null,null,null,null,null,null,null,null,null,null,null,"C:\\Users\\Usuario\\Downloads\\XML\\VINI\\RECIBIDOS\\FB88E9B5-F39F-4043-B12D-F71AA5C56E7E.xml"]

{"sheet":"RPAGOSR","index":5,"n_rows":7,"n_cols":57,"rows_kept":7,"cut":false,"hidden":false,"merged":[[5,45,5,48],[4,11,4,35],[5,5,5,6],[5,8,5,10],[5,22,5,25],[5,26,5,35],[5,37,5,44]]}
[]
[null,"Hoja para importar los XML emitidos con el complemento de recepción de pagos",null,null,null,null,null,null,null,null,null,null,null,null,null,null,null,null,null,null,null,null,null,null,null,null,null,null,null,null,null,null,null,null,null,null,null,null,null,null,null,null,null,null,null,null,null,null,null,null,null,""]
[null,null,null,null,null,null,null,null,"IR AL MENÚ",null,null,null,null,null,null,null,null,null,null,null,null,null,null,null,null,null,null,null,null,null,null,null,null,null,null,null,null,null,null,null,null,null,null,null,null,null,null,null,null,null,null,""]
[null,null,null,null,null,null,null,null,null,null,null,null,null,null,null,null,null,null,null,null,null,null,null,null,null,null,null,null,null,null,null,null,null,null,null,null,null,null,null,null,null,null,null,null,null,null,null,null,null,null,null,""]
[null,null,null,null,null,null,null,null,null,null,null,"Complemento de recepción de pagos",null,null,null,null,null,null,null,null,null,null,null,null,null,null,null,null,null,null,null,null,null,null,null,null,null,null,null,null,null,null,null,null,null,null,null,null,null,null,null,""]
[null,null,null,null,null,"Emisor",null,null,"Receptor",null,null,null,null,null,null,null,null,null,null,null,null,null,"Solo que el pago se reciba en SPEI",null,null,null,"Documentos que se cobran",null,null,null,null,null,null,null,null,null,null,"Impuestos trasladados",null,null,null,null,null,null,null,null,null,null,null,null,null,""]
[null,"Fecha de emisión","Serie y folio","Tipo de comprobante","Lugar Expedicion","Rfc","Nombre","Régimen fiscal","RFC receptor","Nombre","Régimen fiscal","Fecha de pago","Forma de pago","MonedaP","TipoCambioP","Monto","NumOperacion","RfcEmisorCtaOrd ","NomBancoOrdExt ","CtaOrdenante","RfcEmisorCtaBen ","CtaBeneficiario","TipoCadPago ","CertPago","CadPago","SelloPago","IdDocumento ","Serie","Folio","MonedaDR ","Equivalencia","MetodoDePagoDR","NumParcialidad ","ImpSaldoAnt ","ImpPagado ","ImpSaldoInsoluto","Objeto de impuestos DR","Base para IEPS","Tipo factor","Tasa o cuota","Total IEPS trasladado del comprobante","Base para IVA","Tipo  factor","Tasa o cuota","Total IVA trasladado del comprobante","Tasa o cuota","Retención de ISR","Tasa o cuota","Retención IVA","Tasa o cuota","Retención IEPS","USO DEL CFDI","BASE DE ISR (VERIFIQUE LOS DATOS)","IVA del CFDI de la hoja CFDIR","Ruta del archivo","Fecha de cancelación","Folio fiscal"]

{"sheet":"IVAC","index":6,"n_rows":277,"n_cols":10,"rows_kept":277,"cut":false,"hidden":false,"merged":[[227,1,227,6],[236,1,236,6],[254,1,254,6],[272,1,272,6],[173,1,173,6],[182,1,182,6],[202,1,202,6],[204,1,204,6],[222,1,222,6],[118,1,118,6],[127,1,127,6],[147,1,147,6],[149,1,149,6],[167,1,167,6],[3,1,3,2],[7,1,7,6],[16,1,16,6],[36,1,36,6],[38,1,38,6],[56,1,56,6],[62,1,62,6],[71,1,71,6],[89,1,89,6],[107,1,107,6],[80,1,80,6],[98,1,98,6],[48,2,48,8],[52,2,52,6],[28,2,28,8],[32,2,32,6],[39,2,39,8],[43,2,43,6]]}
[]
[]
[]
[null,"IVA a cargo",null,null,"Año de cálculo",2025,null,"Mes de cálculo","Febrero"]
[]
[null,"Persona moral régimen general de Ley",null,null,null,null,"Régimen fiscal",601]
[]
[null,"Valor de los actos o actividades gravados a la tasa del 8%"]
[null,null,"Suma de facturas emitidas de tipo ingreso del mes con método de pago \"Pago en una sola exhibición\" (PUE)."]
[null,null,"Mes","Número de facturas Canceladas","Número de facturas Vigentes","Subtotal","Descuento","Subtotal – Descuento","Impuestos trasladados Base IVA 8%","Impuestos trasladados IVA 8%"]
[]
[]
[null,null,"Suma de facturas emitidas de tipo pago donde la fecha de pago corresponde al mes."]
[null,null,"Mes","Número de facturas Canceladas","Número de facturas Vigentes","Ingresos cobrados sin impuestos","Impuestos trasladados Base IVA 8%","Impuestos trasladados IVA 8%"]
[]
[]
[null,"Valor de los actos o actividades gravados a la tasa del 16%"]
[null,null,"Suma de facturas emitidas de tipo ingreso del mes con método de pago \"Pago en una sola exhibición\" (PUE)."]
[null,null,"Mes","Número de facturas Canceladas","Número de facturas Vigentes","Subtotal","Descuento","Subtotal – Descuento","Impuestos trasladados Base IVA 16%","Impuestos trasladados IVA 16%"]
[]
[]
[null,null,"Suma de facturas emitidas de tipo pago donde la fecha de pago corresponde al mes."]
[null,null,"Mes","Número de facturas Canceladas","Número de facturas Vigentes","Ingresos cobrados sin impuestos","Impuestos trasladados Base IVA 16%","Impuestos trasladados IVA 16%"]
[]
[]
[null,"Valor de los actos o actividades gravados a la tasa del 0% exportación"]
[]
[null,"Valor de los actos o actividades gravados a la tasa del 0% otros"]
[null,null,"Suma de facturas emitidas de tipo ingreso del mes con método de pago \"Pago en una sola exhibición\" (PUE)."]
[null,null,"Mes","Número de facturas Canceladas","Número de facturas Vigentes","Subtotal","Descuento","Subtotal – Descuento","Impuestos trasladados Base IVA 0%"]
[]
[]
[null,null,"Suma de facturas emitidas de tipo pago donde la fecha de pago corresponde al mes."]
[null,null,"Mes","Número de facturas Canceladas","Número de facturas Vigentes","Ingresos cobrados sin impuestos","Impuestos trasladados Base IVA 0%"]
[]
[]
[null,"Suma de los actos o actividades gravados"]
[]
[null,"Valor de los actos o actividades por los que no se deba pagar el impuesto (exentos)"]
[null,null,"Suma de facturas emitidas de tipo ingreso del mes con método de pago \"Pago en una sola exhibición\" (PUE)."]
[null,null,"Mes","Número de facturas Canceladas","Número de facturas Vigentes","Subtotal","Descuento","Subtotal – Descuento","Impuestos trasladados Base IVA Exento"]
[]
[]
[null,null,"Suma de facturas emitidas de tipo pago donde la fecha de pago corresponde al mes."]
[null,null,"Mes","Número de facturas Canceladas","Número de facturas Vigentes","Ingresos cobrados sin impuestos","Impuestos trasladados Base IVA Exento"]
[]
[]
[null,"Valor de los actos o actividades no objeto del impuesto"]
[null,null,"Suma de facturas emitidas de tipo ingreso del mes con método de pago \"Pago en una sola exhibición\" (PUE)."]
[null,null,"Mes","Número de facturas Canceladas","Número de facturas Vigentes","Subtotal","Descuento","Subtotal – Descuento","Impuestos trasladados Base no objeto"]
[]
[]
[null,null,"Suma de facturas emitidas de tipo pago donde la fecha de pago corresponde al mes."]
[null,null,"Mes","Número de facturas Canceladas","Número de facturas Vigentes","Ingresos cobrados sin impuestos","Impuestos trasladados Base IVA no objeto"]
[]
[null,null,null,null,null,null,null,null,null,"Con base en el CFDI emitido"]
[null,"IVA a cargo a la tasa del 8% o 16%"]
[]
[]
[]
[null,"Persona moral RESICO",null,null,null,"Régimen fiscal",626]
[]
[null,"Actividades gravadas a la tasa del 8%"]
[null,null,"Suma de facturas emitidas de tipo ingreso del mes con método de pago \"Pago en una sola exhibición\" (PUE)."]
[null,null,"Mes","Número de facturas Canceladas","Número de facturas Vigentes","Subtotal","Descuento","Subtotal – Descuento","Impuestos trasladados Base IVA 8%","Impuestos trasladados IVA 8%"]
[]
[]
[null,null,"Suma de facturas emitidas de tipo pago donde la fecha de pago corresponde al mes."]
[null,null,"Mes","Número de facturas Canceladas","Número de facturas Vigentes","Ingresos cobrados sin impuestos","Impuestos trasladados Base IVA 8%","Impuestos trasladados IVA 8%"]
[]
[]
[null,"Actividades gravadas a la tasa del 16%"]
[null,null,"Suma de facturas emitidas de tipo ingreso del mes con método de pago \"Pago en una sola exhibición\" (PUE)."]
[null,null,"Mes","Número de facturas Canceladas","Número de facturas Vigentes","Subtotal","Descuento","Subtotal – Descuento","Impuestos trasladados Base IVA 16%","Impuestos trasladados IVA 16%"]
[]
[]
[null,null,"Suma de facturas emitidas de tipo pago donde la fecha de pago corresponde al mes."]
[null,null,"Mes","Número de facturas Canceladas","Número de facturas Vigentes","Ingresos cobrados sin impuestos","Impuestos trasladados Base IVA 16%","Impuestos trasladados IVA 16%"]
[]
[]
[null,"Actividades gravadas a la tasa del 0%"]
[null,null,"Suma de facturas emitidas de tipo ingreso del mes con método de pago \"Pago en una sola exhibición\" (PUE)."]
[null,null,"Mes","Número de facturas Canceladas","Número de facturas Vigentes","Subtotal","Descuento","Subtotal – Descuento","Impuestos trasladados Base IVA 0%"]
[]
[]
[null,null,"Suma de facturas emitidas de tipo pago donde la fecha de pago corresponde al mes."]
[null,null,"Mes","Número de facturas Canceladas","Número de facturas Vigentes","Ingresos cobrados sin impuestos","Impuestos trasladados Base IVA 0%","Impuestos trasladados IVA 0%"]
[]
[]
[null,"Actividades exentas"]
[null,null,"Suma de facturas emitidas de tipo ingreso del mes con método de pago \"Pago en una sola exhibición\" (PUE)."]
[null,null,"Mes","Número de facturas Canceladas","Número de facturas Vigentes","Subtotal","Descuento","Subtotal – Descuento","Impuestos trasladados Base IVA Exento"]
[]
[]
[null,null,"Suma de facturas emitidas de tipo pago donde la fecha de pago corresponde al mes."]
[null,null,"Mes","Número de facturas Canceladas","Número de facturas Vigentes","Ingresos cobrados sin impuestos","Impuestos trasladados Base IVA Exento","Impuestos trasladados IVA Exento"]
[]
[]
[null,"Actividades no objeto del impuesto"]
[null,null,"Suma de facturas emitidas de tipo ingreso del mes con método de pago \"Pago en una sola exhibición\" (PUE)."]
[null,null,"Mes","Número de facturas Canceladas","Número de facturas Vigentes","Subtotal","Descuento","Subtotal – Descuento","Impuestos trasladados Base no objeto"]
[]
[]
[null,null,"Suma de facturas emitidas de tipo pago donde la fecha de pago corresponde al mes."]
[null,null,"Mes","Número de facturas Canceladas","Número de facturas Vigentes","Ingresos cobrados sin impuestos","Impuestos trasladados Base IVA 16%","Impuestos trasladados IVA 16%"]
[]
[null,null,null,null,null,null,null,null,null,"Con base en el CFDI emitido"]
[null,"IVA a cargo a la tasa del 8% o 16%"]
[]
[null,"IVA no cobrado por devoluciones, descuentos y bonificaciones de ventas"]
[null,null,"Suma de facturas emitidas de tipo egreso del mes con método de pago \"Pago en una sola exhibición\" (PUE)."]
[null,null,"Mes","Número de facturas Canceladas","Número de facturas Vigentes","Subtotal","Descuento","Subtotal - Descuento","Impuestos Trasladados IVA 8%","Impuestos Trasladados IVA 16%"]
[]
[]
[]
[]
[null,"Persona física arrendamiento de inmuebles",null,null,null,null,"Régimen fiscal",606]
[]
[null,"Valor de los actos o actividades gravados a la tasa del 8%"]
[null,null,"Suma de facturas emitidas de tipo ingreso del mes con método de pago \"Pago en una sola exhibición\" (PUE)."]
[null,null,"Mes","Número de facturas Canceladas","Número de facturas Vigentes","Subtotal","Descuento","Subtotal – Descuento","Impuestos trasladados Base IVA 8%","Impuestos trasladados IVA 8%"]
[]
[]
[null,null,"Suma de facturas emitidas de tipo pago donde la fecha de pago corresponde al mes."]
[null,null,"Mes","Número de facturas Canceladas","Número de facturas Vigentes","Ingresos cobrados sin impuestos","Impuestos trasladados Base IVA 8%","Impuestos trasladados IVA 8%"]
[]
[]
[null,"Valor de los actos o actividades gravados a la tasa del 16%"]
[null,null,"Suma de facturas emitidas de tipo ingreso del mes con método de pago \"Pago en una sola exhibición\" (PUE)."]
[null,null,"Mes","Número de facturas Canceladas","Número de facturas Vigentes","Subtotal","Descuento","Subtotal – Descuento","Impuestos trasladados Base IVA 16%","Impuestos trasladados IVA 16%"]
[]
[]
[null,null,"Suma de facturas emitidas de tipo pago donde la fecha de pago corresponde al mes."]
[null,null,"Mes","Número de facturas Canceladas","Número de facturas Vigentes","Ingresos cobrados sin impuestos","Impuestos trasladados Base IVA 16%","Impuestos trasladados IVA 16%"]
[]
[]
[null,"Valor de los actos o actividades gravados a la tasa del 0% exportación"]
[]
[null,"Valor de los actos o actividades gravados a la tasa del 0% otros"]
[null,null,"Suma de facturas emitidas de tipo ingreso del mes con método de pago \"Pago en una sola exhibición\" (PUE)."]
[null,null,"Mes","Número de facturas Canceladas","Número de facturas Vigentes","Subtotal","Descuento","Subtotal – Descuento","Impuestos trasladados Base IVA 0%"]
[]
[]
[null,null,"Suma de facturas emitidas de tipo pago donde la fecha de pago corresponde al mes."]
[null,null,"Mes","Número de facturas Canceladas","Número de facturas Vigentes","Ingresos cobrados sin impuestos","Impuestos trasladados Base IVA 0%","Impuestos trasladados IVA 0%"]
[]
[]
[null,"Suma de los actos o actividades gravados"]
[]
[null,"Valor de los actos o actividades por los que no se deba pagar el impuesto (exentos)"]
[null,null,"Suma de facturas emitidas de tipo ingreso del mes con método de pago \"Pago en una sola exhibición\" (PUE)."]
[null,null,"Mes","Número de facturas Canceladas","Número de facturas Vigentes","Subtotal","Descuento","Subtotal – Descuento","Impuestos trasladados Base IVA Exento"]
[]
[]
[null,null,"Suma de facturas emitidas de tipo pago donde la fecha de pago corresponde al mes."]
[null,null,"Mes","Número de facturas Canceladas","Número de facturas Vigentes","Ingresos cobrados sin impuestos","Impuestos trasladados Base IVA Exento","Impuestos trasladados IVA Exento"]
[]
[]
[null,"Valor de los actos o actividades no objeto del impuesto"]
[null,null,"Suma de facturas emitidas de tipo ingreso del mes con método de pago \"Pago en una sola exhibición\" (PUE)."]
[null,null,"Mes","Número de facturas Canceladas","Número de facturas Vigentes","Subtotal","Descuento","Subtotal – Descuento","Impuestos trasladados Base no objeto"]
[]
[]
[null,null,"Suma de facturas emitidas de tipo pago donde la fecha de pago corresponde al mes."]
[null,null,"Mes","Número de facturas Canceladas","Número de facturas Vigentes","Ingresos cobrados sin impuestos","Impuestos trasladados Base IVA 16%","Impuestos trasladados IVA 16%"]
[]
[null,null,null,null,null,null,null,null,null,"Con base en el CFDI emitido"]
[null,"IVA a cargo a la tasa del 8% o 16%"]
[]
[]
[]
[null,"Persona física actividad empresarial y profesional",null,null,null,null,"Régimen fiscal",612]
[]
[null,"Valor de los actos o actividades gravados a la tasa del 8%"]
[null,null,"Suma de facturas emitidas de tipo ingreso del mes con método de pago \"Pago en una sola exhibición\" (PUE)."]
[null,null,"Mes","Número de facturas Canceladas","Número de facturas Vigentes","Subtotal","Descuento","Subtotal – Descuento","Impuestos trasladados Base IVA 8%","Impuestos trasladados IVA 8%"]
[]
[]
[null,null,"Suma de facturas emitidas de tipo pago donde la fecha de pago corresponde al mes."]
[null,null,"Mes","Número de facturas Canceladas","Número de facturas Vigentes","Ingresos cobrados sin impuestos","Impuestos trasladados Base IVA 8%","Impuestos trasladados IVA 8%"]
[]
[]
[null,"Valor de los actos o actividades gravados a la tasa del 16%"]
[null,null,"Suma de facturas emitidas de tipo ingreso del mes con método de pago \"Pago en una sola exhibición\" (PUE)."]
[null,null,"Mes","Número de facturas Canceladas","Número de facturas Vigentes","Subtotal","Descuento","Subtotal – Descuento","Impuestos trasladados Base IVA 16%","Impuestos trasladados IVA 16%"]
[]
[]
[null,null,"Suma de facturas emitidas de tipo pago donde la fecha de pago corresponde al mes."]
[null,null,"Mes","Número de facturas Canceladas","Número de facturas Vigentes","Ingresos cobrados sin impuestos","Impuestos trasladados Base IVA 16%","Impuestos trasladados IVA 16%"]
[]
[]
[null,"Valor de los actos o actividades gravados a la tasa del 0% exportación"]
[]
[null,"Valor de los actos o actividades gravados a la tasa del 0% otros"]
[null,null,"Suma de facturas emitidas de tipo ingreso del mes con método de pago \"Pago en una sola exhibición\" (PUE)."]
[null,null,"Mes","Número de facturas Canceladas","Número de facturas Vigentes","Subtotal","Descuento","Subtotal – Descuento","Impuestos trasladados Base IVA 0%"]
[]
[]
[null,null,"Suma de facturas emitidas de tipo pago donde la fecha de pago corresponde al mes."]
[null,null,"Mes","Número de facturas Canceladas","Número de facturas Vigentes","Ingresos cobrados sin impuestos","Impuestos trasladados Base IVA 0%","Impuestos trasladados IVA 0%"]
[]
[]
[null,"Suma de los actos o actividades gravados"]
[]
[null,"Valor de los actos o actividades por los que no se deba pagar el impuesto (exentos)"]
[null,null,"Suma de facturas emitidas de tipo ingreso del mes con método de pago \"Pago en una sola exhibición\" (PUE)."]
[null,null,"Mes","Número de facturas Canceladas","Número de facturas Vigentes","Subtotal","Descuento","Subtotal – Descuento","Impuestos trasladados Base IVA Exento"]
[]
[]
[null,null,"Suma de facturas emitidas de tipo pago donde la fecha de pago corresponde al mes."]
[null,null,"Mes","Número de facturas Canceladas","Número de facturas Vigentes","Ingresos cobrados sin impuestos","Impuestos trasladados Base IVA Exento","Impuestos trasladados IVA Exento"]
[]
[]
[null,"Valor de los actos o actividades no objeto del impuesto"]
[null,null,"Suma de facturas emitidas de tipo ingreso del mes con método de pago \"Pago en una sola exhibición\" (PUE)."]
[null,null,"Mes","Número de facturas Canceladas","Número de facturas Vigentes","Subtotal","Descuento","Subtotal – Descuento","Impuestos trasladados Base no objeto"]
[]
[]
[null,null,"Suma de facturas emitidas de tipo pago donde la fecha de pago corresponde al mes."]
[null,null,"Mes","Número de facturas Canceladas","Número de facturas Vigentes","Ingresos cobrados sin impuestos","Impuestos trasladados Base IVA 16%","Impuestos trasladados IVA 16%"]
[]
[null,null,null,null,null,null,null,null,null,"Con base en el CFDI emitido"]
[null,"IVA a cargo a la tasa del 8% o 16%"]
[]
[]
[null,"Persona física RESICO",null,null,null,"Régimen fiscal",626]
[]
[null,"Actividades gravadas a la tasa del 8%"]
[null,null,"Suma de facturas emitidas de tipo ingreso del mes con método de pago \"Pago en una sola exhibición\" (PUE)."]
[null,null,"Mes","Número de facturas Canceladas","Número de facturas Vigentes","Subtotal","Descuento","Subtotal – Descuento","Impuestos trasladados Base IVA 8%","Impuestos trasladados IVA 8%"]
[]
[]
[null,null,"Suma de facturas emitidas de tipo pago donde la fecha de pago corresponde al mes."]
[null,null,"Mes","Número de facturas Canceladas","Número de facturas Vigentes","Ingresos cobrados sin impuestos","Impuestos trasladados Base IVA 8%","Impuestos trasladados IVA 8%"]
[]
[]
[null,"Actividades gravadas a la tasa del 16%"]
[null,null,"Suma de facturas emitidas de tipo ingreso del mes con método de pago \"Pago en una sola exhibición\" (PUE)."]
[null,null,"Mes","Número de facturas Canceladas","Número de facturas Vigentes","Subtotal","Descuento","Subtotal – Descuento","Impuestos trasladados Base IVA 16%","Impuestos trasladados IVA 16%"]
[]
[]
[null,null,"Suma de facturas emitidas de tipo pago donde la fecha de pago corresponde al mes."]
[null,null,"Mes","Número de facturas Canceladas","Número de facturas Vigentes","Ingresos cobrados sin impuestos","Impuestos trasladados Base IVA 16%","Impuestos trasladados IVA 16%"]
[]
[]
[null,"Actividades gravadas a la tasa del 0%"]
[null,null,"Suma de facturas emitidas de tipo ingreso del mes con método de pago \"Pago en una sola exhibición\" (PUE)."]
[null,null,"Mes","Número de facturas Canceladas","Número de facturas Vigentes","Subtotal","Descuento","Subtotal – Descuento","Impuestos trasladados Base IVA 0%"]
[]
[]
[null,null,"Suma de facturas emitidas de tipo pago donde la fecha de pago corresponde al mes."]
[null,null,"Mes","Número de facturas Canceladas","Número de facturas Vigentes","Ingresos cobrados sin impuestos","Impuestos trasladados Base IVA 0%","Impuestos trasladados IVA 0%"]
[]
[]
[null,"Actividades exentas"]
[null,null,"Suma de facturas emitidas de tipo ingreso del mes con método de pago \"Pago en una sola exhibición\" (PUE)."]
[null,null,"Mes","Número de facturas Canceladas","Número de facturas Vigentes","Subtotal","Descuento","Subtotal – Descuento","Impuestos trasladados Base IVA Exento"]
[]
[]
[null,null,"Suma de facturas emitidas de tipo pago donde la fecha de pago corresponde al mes."]
[null,null,"Mes","Número de facturas Canceladas","Número de facturas Vigentes","Ingresos cobrados sin impuestos","Impuestos trasladados Base IVA Exento","Impuestos trasladados IVA Exento"]
[]
[]
[null,"Actividades no objeto del impuesto"]
[null,null,"Suma de facturas emitidas de tipo ingreso del mes con método de pago \"Pago en una sola exhibición\" (PUE)."]
[null,null,"Mes","Número de facturas Canceladas","Número de facturas Vigentes","Subtotal","Descuento","Subtotal – Descuento","Impuestos trasladados Base no objeto"]
[]
[]
[null,null,"Suma de facturas emitidas de tipo pago donde la fecha de pago corresponde al mes."]
[null,null,"Mes","Número de facturas Canceladas","Número de facturas Vigentes","Ingresos cobrados sin impuestos","Impuestos trasladados Base IVA 16%","Impuestos trasladados IVA 16%"]
[]
[]
[null,"IVA a cargo a la tasa del 8% o 16%"]
[]
[null,"IVA no cobrado por devoluciones, descuentos y bonificaciones de ventas"]
[null,null,"Suma de facturas emitidas de tipo egreso del mes con método de pago \"Pago en una sola exhibición\" (PUE)."]
[null,null,"Mes","Número de facturas Canceladas","Número de facturas Vigentes","Subtotal","Descuento","Subtotal - Descuento","Impuestos Trasladados IVA 8%","Impuestos Trasladados IVA 16%"]

{"sheet":"IVAA","index":7,"n_rows":530,"n_cols":11,"rows_kept":530,"cut":false,"hidden":false,"merged":[[522,10,528,10],[523,3,523,5],[524,3,524,5],[525,3,525,5],[526,3,526,5],[527,3,527,5],[528,3,528,5],[516,3,516,5],[517,3,517,5],[518,3,518,5],[519,3,519,5],[520,3,520,5],[521,3,521,5],[522,3,522,5],[522,8,528,8],[522,9,528,9],[507,3,507,5],[508,3,508,5],[509,3,509,5],[510,3,510,5],[511,3,511,5],[512,3,512,5],[513,3,513,5],[514,3,514,5],[515,3,515,5],[498,9,504,9],[498,10,504,10],[499,3,499,5],[500,3,500,5],[501,3,501,5],[502,3,502,5],[503,3,503,5],[504,3,504,5],[506,2,506,10],[491,3,491,5],[492,3,492,5],[493,3,493,5],[494,3,494,5],[495,3,495,5],[496,3,496,5],[497,3,497,5],[498,3,498,5],[498,8,504,8],[482,2,482,10],[483,3,483,5],[484,3,484,5],[485,3,485,5],[486,3,486,5],[487,3,487,5],[488,3,488,5],[489,3,489,5],[490,3,490,5],[423,2,423,9],[429,2,429,7],[436,2,436,9],[442,2,442,7],[448,1,448,7],[451,2,451,9],[457,2,457,7],[464,2,464,9],[470,2,470,7],[88,3,88,5],[89,3,89,5],[83,8,89,8],[83,9,89,9],[83,3,83,5],[84,3,84,5],[85,3,85,5],[86,3,86,5],[87,3,87,5],[8,2,8,9],[14,2,14,7],[21,2,21,9],[27,2,27,7],[33,1,33,7],[36,2,36,9],[42,2,42,7],[49,2,49,9],[55,2,55,7],[94,3,94,5],[95,3,95,5],[96,3,96,5],[97,3,97,5],[98,3,98,5],[83,10,89,10],[67,2,67,10],[92,2,92,10],[93,3,93,5],[68,3,68,5],[82,3,82,5],[79,3,79,5],[80,3,80,5],[81,3,81,5],[74,3,74,5],[75,3,75,5],[76,3,76,5],[77,3,77,5],[78,3,78,5],[70,3,70,5],[71,3,71,5],[72,3,72,5],[73,3,73,5],[69,3,69,5],[104,3,104,5],[105,3,105,5],[106,3,106,5],[107,3,107,5],[108,3,108,5],[99,3,99,5],[100,3,100,5],[101,3,101,5],[102,3,102,5],[103,3,103,5],[108,8,114,8],[108,9,114,9],[108,10,114,10],[109,3,109,5],[110,3,110,5],[111,3,111,5],[112,3,112,5],[113,3,113,5],[114,3,114,5],[122,2,122,9],[141,2,141,9],[128,2,128,7],[199,2,199,9],[205,2,205,7],[134,2,134,6],[135,2,135,6],[136,2,136,6],[137,2,137,6],[138,2,138,6],[146,2,146,10],[147,3,147,5],[148,3,148,5],[149,3,149,5],[150,3,150,5],[151,3,151,5],[157,3,157,5],[158,3,158,5],[159,3,159,5],[160,3,160,5],[161,3,161,5],[152,3,152,5],[153,3,153,5],[154,3,154,5],[240,2,240,9],[246,2,246,7],[258,2,258,10],[259,3,259,5],[260,3,260,5],[212,2,212,9],[218,2,218,7],[224,1,224,7],[227,2,227,9],[233,2,233,7],[266,3,266,5],[267,3,267,5],[268,3,268,5],[269,3,269,5],[270,3,270,5],[261,3,261,5],[262,3,262,5],[263,3,263,5],[264,3,264,5],[265,3,265,5],[274,10,280,10],[275,3,275,5],[276,3,276,5],[277,3,277,5],[278,3,278,5],[279,3,279,5],[280,3,280,5],[271,3,271,5],[272,3,272,5],[273,3,273,5],[274,3,274,5],[274,8,280,8],[298,10,304,10],[299,3,299,5],[300,3,300,5],[301,3,301,5],[302,3,302,5],[303,3,303,5],[304,3,304,5],[292,3,292,5],[293,3,293,5],[294,3,294,5],[295,3,295,5],[296,3,296,5],[155,3,155,5],[156,3,156,5],[162,3,162,5],[162,8,168,8],[162,9,168,9],[162,10,168,10],[163,3,163,5],[164,3,164,5],[165,3,165,5],[166,3,166,5],[167,3,167,5],[168,3,168,5],[175,3,175,5],[176,3,176,5],[177,3,177,5],[178,3,178,5],[179,3,179,5],[170,2,170,10],[171,3,171,5],[172,3,172,5],[173,3,173,5],[174,3,174,5],[186,10,192,10],[187,3,187,5],[188,3,188,5],[189,3,189,5],[190,3,190,5],[191,3,191,5],[192,3,192,5],[180,3,180,5],[181,3,181,5],[182,3,182,5],[183,3,183,5],[184,3,184,5],[311,2,311,9],[317,2,317,7],[324,2,324,9],[330,2,330,7],[336,1,336,7],[185,3,185,5],[186,3,186,5],[186,8,192,8],[186,9,192,9],[297,3,297,5],[298,3,298,5],[298,8,304,8],[298,9,304,9],[287,3,287,5],[288,3,288,5],[289,3,289,5],[290,3,290,5],[291,3,291,5],[282,2,282,10],[283,3,283,5],[284,3,284,5],[285,3,285,5],[286,3,286,5],[274,9,280,9],[371,3,371,5],[372,3,372,5],[373,3,373,5],[374,3,374,5],[375,3,375,5],[339,2,339,9],[345,2,345,7],[352,2,352,9],[358,2,358,7],[370,2,370,10],[381,3,381,5],[382,3,382,5],[383,3,383,5],[384,3,384,5],[385,3,385,5],[376,3,376,5],[377,3,377,5],[378,3,378,5],[379,3,379,5],[380,3,380,5],[394,2,394,10],[395,3,395,5],[396,3,396,5],[397,3,397,5],[398,3,398,5],[386,3,386,5],[386,8,392,8],[386,9,392,9],[386,10,392,10],[387,3,387,5],[388,3,388,5],[389,3,389,5],[390,3,390,5],[391,3,391,5],[392,3,392,5],[404,3,404,5],[405,3,405,5],[406,3,406,5],[407,3,407,5],[408,3,408,5],[399,3,399,5],[400,3,400,5],[401,3,401,5],[402,3,402,5],[403,3,403,5],[409,3,409,5],[410,3,410,5],[410,8,416,8],[410,9,416,9],[410,10,416,10],[411,3,411,5],[412,3,412,5],[413,3,413,5],[414,3,414,5],[415,3,415,5],[416,3,416,5]]}
[]
[]
[]
[null,"IVA ACREDITABLE",null,null,"Año de cálculo",2025,null,"Mes de cálculo","Febrero"]
[]
[null,"Persona moral régimen general de Ley",null,null,null,null,"Régimen fiscal",601]
[]
[null,"Total de los actos o actividades pagados a la tasa del 16% de IVA"]
[null,null,"Suma de facturas recibidas de tipo ingreso con método de pago \"Pago en una sola exhibición\" (PUE), forma de pago bancarizada y uso del CFDI \"Adquisición de mercancias\" y \"Gastos en general\""]
[null,null,"Mes","Número de facturas Canceladas","Número de facturas Vigentes","Subtotal","Descuento","Subtotal – Descuento","Impuestos Trasladados Base IVA 16%","Impuestos Trasladados IVA 16%"]
[null,"G01","Enero"]
[null,"G03","Enero"]
[null,null,"Total"]
[]
[null,null,"Suma de facturas recibidas de tipo pago donde la fecha de pago corresponde al mes, forma de pago bancarizada y uso del CFDI \"Adquisición de mercancias\" y \"Gastos en general\"."]
[null,null,"Mes","Número de facturas Canceladas","Número de facturas Vigentes","Ingresos cobrados sin impuestos","Impuestos trasladados Base IVA 16%","Impuestos trasladados IVA 16%"]
[null,"G01","Enero"]
[null,"G03","Enero"]
[null,null,"Total"]
[]
[null,"Total de los actos o actividades pagados sujetos al estímulo de la región fronteriza"]
[null,null,"Suma de facturas recibidas de tipo ingreso con método de pago \"Pago en una sola exhibición\" (PUE), forma de pago bancarizada y uso del CFDI \"Adquisición de mercancias\" y \"Gastos en general\""]
[null,null,"Mes","Número de facturas Canceladas","Número de facturas Vigentes","Subtotal","Descuento","Subtotal – Descuento","Impuestos Trasladados Base IVA 8%","Impuestos Trasladados IVA 8%"]
[null,"G01","Enero"]
[null,"G03","Enero"]
[null,null,"Total"]
[]
[null,null,"Suma de facturas recibidas de tipo pago donde la fecha de pago corresponde al mes, forma de pago bancarizada y uso del CFDI \"Adquisición de mercancias\" y \"Gastos en general\"."]
[null,null,"Mes","Número de facturas Canceladas","Número de facturas Vigentes","Ingresos cobrados sin impuestos","Impuestos trasladados Base IVA 8%","Impuestos trasladados IVA 8%"]
[null,"G01","Enero"]
[null,"G03","Enero"]
[null,null,"Total"]
[]
[null,"Total de los actos o actividades pagados en la importación de bienes y servicios a la tasa del 16% de IVA"]
[]
[null,"Total de los demás actos o actividades pagados a la tasa del 0% de IVA"]
[null,null,"Suma de facturas recibidas de tipo ingreso con método de pago \"Pago en una sola exhibición\" (PUE), forma de pago bancarizada y uso del CFDI \"Adquisición de mercancias\" y \"Gastos en general\""]
[null,null,"Mes","Número de facturas Canceladas","Número de facturas Vigentes","Subtotal","Descuento","Subtotal – Descuento","Impuestos Trasladados Base IVA 0%"]
[null,"G01","Enero"]
[null,"G03","Enero",null,null,null,null,null,null,null,"Con base en el CFDI recibidos"]
[null,null,"Total",null,null,null,null,null,null,null,0]
[]
[null,null,"Suma de facturas recibidas de tipo pago donde la fecha de pago corresponde al mes, forma de pago bancarizada y uso del CFDI \"Adquisición de mercancias\" y \"Gastos en general\"."]
[null,null,"Mes","Número de facturas Canceladas","Número de facturas Vigentes","Ingresos cobrados sin impuestos","Impuestos trasladados Base IVA 0%"]
[null,"G01","Enero"]
[null,"G03","Enero"]
[null,null,"Total"]
[]
[null,"Total de los actos o actividades pagados por los que no se pagará el IVA (exentos)"]
[null,null,"Suma de facturas recibidas de tipo ingreso con método de pago \"Pago en una sola exhibición\" (PUE), forma de pago bancarizada y uso del CFDI \"Adquisición de mercancias\" y \"Gastos en general\""]
[null,null,"Mes","Número de facturas Canceladas","Número de facturas Vigentes","Subtotal","Descuento","Subtotal – Descuento","Impuestos Trasladados Base Exento"]
[null,"G01","Enero"]
[null,"G03","Enero",null,null,null,null,null,null,null,"Con base en el CFDI recibidos"]
[null,null,"Total",null,null,null,null,null,null,null,0]
[]
[null,null,"Suma de facturas recibidas de tipo pago donde la fecha de pago corresponde al mes, forma de pago bancarizada y uso del CFDI \"Adquisición de mercancias\" y \"Gastos en general\"."]
[null,null,"Mes","Número de facturas Canceladas","Número de facturas Vigentes","Ingresos cobrados sin impuestos","Impuestos trasladados Base IVA Exento"]
[null,"G01","Enero"]
[null,"G03","Enero"]
[null,null,"Total"]
[]
[null,"Determinación del Impuesto al Valor Agregado acreditable"]
[]
[null,"IVA de actos o actividades pagados a la tasa del 16%"]
[null,"IVA pagado sujeto al estímulo de la región fronteriza"]
[null,"Total de IVA trasladado al contribuyente (Efectivamente pagado)"]
[]
[null,null,"IVA al 8%"]
[null,null,"c_FormaPago","Descripción",null,null,"CFDI recibidos con método de pago PUE","CFDI recibidos con complemento de pago","Subtotal","(-) Bancarizado y clave de uso G01 y G03","(=) Total"]
[null,null,1,"Efectivo"]
[null,null,8,"Vales de despensa"]
[null,null,12,"Dación en pago"]
[null,null,13,"Pago por subrogación"]
[null,null,14,"Pago por consignación"]
[null,null,15,"Condonación"]
[null,null,17,"Compensación"]
[null,null,23,"Novación"]
[null,null,24,"Confusión"]
[null,null,25,"Remisión de deuda"]
[null,null,26,"Prescripción o caducidad"]
[null,null,27,"A satisfacción del acreedor"]
[null,null,30,"Aplicación de anticipos"]
[null,null,31,"Intermediario pagos"]
[null,null,2,"Cheque nominativo"]
[null,null,3,"Transferencia electrónica de fondos"]
[null,null,4,"Tarjeta de crédito"]
[null,null,5,"Monedero electrónico"]
[null,null,6,"Dinero electrónico"]
[null,null,28,"Tarjeta de débito"]
[null,null,29,"Tarjeta de servicios"]
[null,null,null,null,null,null,null,"Total"]
[]
[null,null,"IVA al 16%"]
[null,null,"c_FormaPago","Descripción",null,null,"CFDI recibidos con método de pago PUE","CFDI recibidos con complemento de pago","Subtotal","(-) Bancarizado y clave de uso G01 y G03","(=) Total"]
[null,null,1,"Efectivo"]
[null,null,8,"Vales de despensa"]
[null,null,12,"Dación en pago"]
[null,null,13,"Pago por subrogación"]
[null,null,14,"Pago por consignación"]
[null,null,15,"Condonación"]
[null,null,17,"Compensación"]
[null,null,23,"Novación"]
[null,null,24,"Confusión"]
[null,null,25,"Remisión de deuda"]
[null,null,26,"Prescripción o caducidad"]
[null,null,27,"A satisfacción del acreedor"]
[null,null,30,"Aplicación de anticipos"]
[null,null,31,"Intermediario pagos"]
[null,null,2,"Cheque nominativo"]
[null,null,3,"Transferencia electrónica de fondos"]
[null,null,4,"Tarjeta de crédito"]
[null,null,5,"Monedero electrónico"]
[null,null,6,"Dinero electrónico"]
[null,null,28,"Tarjeta de débito"]
[null,null,29,"Tarjeta de servicios"]
[null,null,null,null,null,null,null,"Total"]
[]
[]
[]
[null,"Persona moral RESICO",null,null,null,null,"Régimen fiscal",626]
[]
[null,"IVA acreditable del periodo"]
[null,null,"Suma de facturas recibidas de tipo ingreso del mes con método de pago \"Pago en una sola exhibición\" (PUE), forma de pago bancarizada y uso del CFDI \"Adquisición de mercancías\" y \"Gastos en general\"."]
[null,null,"Mes","Número de facturas Canceladas","Número de facturas Vigentes","Subtotal","Descuento","Subtotal – Descuento","Impuestos Trasladados IVA 8%","Impuestos Trasladados IVA 16%"]
[null,"G01","Enero"]
[null,"G03"]
[null,null,"Total"]
[]
[null,null,"Suma de facturas recibidas de tipo pago donde la fecha de pago corresponde al mes, forma de pago bancarizada y uso del CFDI \"Adquisición de mercancias\" y \"Gastos en general\"."]
[null,null,"Mes","Número de facturas Canceladas","Número de facturas Vigentes","Importe pagado sin impuestos","Impuestos trasladados IVA 8%","Impuestos trasladados IVA 16%"]
[null,"G01","Enero"]
[null,"G03","Enero"]
[null,null,"Total"]
[]
[null,null,"IVA pagado en gastos y adquisiciones"]
[null,null,"IVA acreditable por actividades gravadas a tasa 16% u 8% y tasa 0%"]
[null,null,"IVA acreditable por actividades mixtas (+)"]
[null,null,"IVA acreditable del periodo (=)"]
[null,null,"IVA no acreditable"]
[]
[null,"IVA por devoluciones, descuentos y bonificaciones en gastos"]
[null,null,"Suma de facturas recibidas de tipo egreso del mes con método de pago \"Pago en una sola exhibición\" (PUE)."]
[null,null,"Mes","Número de facturas Canceladas","Número de facturas Vigentes","Subtotal","Descuento","Subtotal - Descuento","Impuestos trasladados IVA 8%","Impuestos trasladados IVA 16%"]
[null,null,"Enero"]
[]
[]
[null,null,"IVA al 8%"]
[null,null,"c_FormaPago","Descripción",null,null,"CFDI recibidos con método de pago PUE","CFDI recibidos con complemento de pago","Subtotal","(-) Bancarizado y clave de uso G01 y G03","(=) Total"]
[null,null,1,"Efectivo"]
[null,null,8,"Vales de despensa"]
[null,null,12,"Dación en pago"]
[null,null,13,"Pago por subrogación"]
[null,null,14,"Pago por consignación"]
[null,null,15,"Condonación"]
[null,null,17,"Compensación"]
[null,null,23,"Novación"]
[null,null,24,"Confusión"]
[null,null,25,"Remisión de deuda"]
[null,null,26,"Prescripción o caducidad"]
[null,null,27,"A satisfacción del acreedor"]
[null,null,30,"Aplicación de anticipos"]
[null,null,31,"Intermediario pagos"]
[null,null,2,"Cheque nominativo"]
[null,null,3,"Transferencia electrónica de fondos"]
[null,null,4,"Tarjeta de crédito"]
[null,null,5,"Monedero electrónico"]
[null,null,6,"Dinero electrónico"]
[null,null,28,"Tarjeta de débito"]
[null,null,29,"Tarjeta de servicios"]
[null,null,null,null,null,null,null,"Total"]
[null,null,"IVA al 16%"]
[null,null,"c_FormaPago","Descripción",null,null,"CFDI recibidos con método de pago PUE","CFDI recibidos con complemento de pago","Subtotal","(-) Bancarizado y clave de uso G01 y G03","(=) Total"]
[null,null,1,"Efectivo"]
[null,null,8,"Vales de despensa"]
[null,null,12,"Dación en pago"]
[null,null,13,"Pago por subrogación"]
[null,null,14,"Pago por consignación"]
[null,null,15,"Condonación"]
[null,null,17,"Compensación"]
[null,null,23,"Novación"]
[null,null,24,"Confusión"]
[null,null,25,"Remisión de deuda"]
[null,null,26,"Prescripción o caducidad"]
[null,null,27,"A satisfacción del acreedor"]
[null,null,30,"Aplicación de anticipos"]
[null,null,31,"Intermediario pagos"]
[null,null,2,"Cheque nominativo"]
[null,null,3,"Transferencia electrónica de fondos"]
[null,null,4,"Tarjeta de crédito"]
[null,null,5,"Monedero electrónico"]
[null,null,6,"Dinero electrónico"]
[null,null,28,"Tarjeta de débito"]
[null,null,29,"Tarjeta de servicios"]
[null,null,null,null,null,null,null,"Total"]
[]
[]
[null,"Persona física arrendamiento de inmuebles",null,null,null,null,"Régimen fiscal",606]
[]
[null,"Total de los actos o actividades pagados a la tasa del 16% de IVA"]
[null,null,"Suma de facturas recibidas de tipo ingreso con método de pago \"Pago en una sola exhibición\" (PUE), forma de pago bancarizada y uso del CFDI \"Adquisición de mercancias\" y \"Gastos en general\""]
[null,null,"Mes","Número de facturas Canceladas","Número de facturas Vigentes","Subtotal","Descuento","Subtotal – Descuento","Impuestos Trasladados Base IVA 16%","Impuestos Trasladados IVA 16%"]
[null,"G01","Enero"]
[null,"G03"]
[null,null,"Total"]
[]
[null,null,"Suma de facturas recibidas de tipo pago donde la fecha de pago corresponde al mes, forma de pago bancarizada y uso del CFDI \"Adquisición de mercancias\" y \"Gastos en general\"."]
[null,null,"Mes","Número de facturas Canceladas","Número de facturas Vigentes","Ingresos cobrados sin impuestos","Impuestos trasladados Base IVA 16%","Impuestos trasladados IVA 16%"]
[null,"G01","Enero"]
[null,"G03","Enero"]
[null,null,"Total"]
[]
[null,"Total de los actos o actividades pagados sujetos al estímulo de la región fronteriza"]
[null,null,"Suma de facturas recibidas de tipo ingreso con método de pago \"Pago en una sola exhibición\" (PUE), forma de pago bancarizada y uso del CFDI \"Adquisición de mercancias\" y \"Gastos en general\""]
[null,null,"Mes","Número de facturas Canceladas","Número de facturas Vigentes","Subtotal","Descuento","Subtotal – Descuento","Impuestos Trasladados Base IVA 8%","Impuestos Trasladados IVA 8%"]
[null,"G01","Enero"]
[null,"G03","Enero"]
[null,null,"Total"]
[]
[null,null,"Suma de facturas recibidas de tipo pago donde la fecha de pago corresponde al mes, forma de pago bancarizada y uso del CFDI \"Adquisición de mercancias\" y \"Gastos en general\"."]
[null,null,"Mes","Número de facturas Canceladas","Número de facturas Vigentes","Ingresos cobrados sin impuestos","Impuestos trasladados Base IVA 8%","Impuestos trasladados IVA 8%"]
[null,"G01","Enero"]
[null,"G03","Enero"]
[null,null,"Total"]
[]
[null,"Total de los actos o actividades pagados en la importación de bienes y servicios a la tasa del 16% de IVA"]
[]
[null,"Total de los demás actos o actividades pagados a la tasa del 0% de IVA"]
[null,null,"Suma de facturas recibidas de tipo ingreso con método de pago \"Pago en una sola exhibición\" (PUE), forma de pago bancarizada y uso del CFDI \"Adquisición de mercancias\" y \"Gastos en general\""]
[null,null,"Mes","Número de facturas Canceladas","Número de facturas Vigentes","Subtotal","Descuento","Subtotal – Descuento","Impuestos Trasladados Base IVA 0%"]
[null,"G01","Enero"]
[null,"G03","Enero",null,null,null,null,null,null,null,"Con base en el CFDI recibidos"]
[null,null,"Total"]
[]
[null,null,"Suma de facturas recibidas de tipo pago donde la fecha de pago corresponde al mes, forma de pago bancarizada y uso del CFDI \"Adquisición de mercancias\" y \"Gastos en general\"."]
[null,null,"Mes","Número de facturas Canceladas","Número de facturas Vigentes","Ingresos cobrados sin impuestos","Impuestos trasladados Base IVA 0%"]
[null,"G01","Enero"]
[null,"G03","Enero"]
[null,null,"Total"]
[]
[null,"Total de los actos o actividades pagados por los que no se pagará el IVA (exentos)"]
[null,null,"Suma de facturas recibidas de tipo ingreso con método de pago \"Pago en una sola exhibición\" (PUE), forma de pago bancarizada y uso del CFDI \"Adquisición de mercancias\" y \"Gastos en general\""]
[null,null,"Mes","Número de facturas Canceladas","Número de facturas Vigentes","Subtotal","Descuento","Subtotal – Descuento","Impuestos Trasladados Base Exento"]
[null,"G01","Enero"]
[null,"G03","Enero",null,null,null,null,null,null,null,"Con base en el CFDI recibidos"]
[null,null,"Total"]
[]
[null,null,"Suma de facturas recibidas de tipo pago donde la fecha de pago corresponde al mes, forma de pago bancarizada y uso del CFDI \"Adquisición de mercancias\" y \"Gastos en general\"."]
[null,null,"Mes","Número de facturas Canceladas","Número de facturas Vigentes","Ingresos cobrados sin impuestos","Impuestos trasladados Base IVA Exento"]
[null,"G01","Enero"]
[null,"G03","Enero"]
[null,null,"Total"]
[]
[null,"Determinación del Impuesto al Valor Agregado acreditable"]
[]
[null,"IVA de actos o actividades pagados a la tasa del 16%"]
[null,"IVA pagado sujeto al estímulo de la región fronteriza"]
[null,"Total de IVA trasladado al contribuyente (Efectivamente pagado)"]
[]
[null,null,"IVA al 8%"]
[null,null,"c_FormaPago","Descripción",null,null,"CFDI recibidos con método de pago PUE","CFDI recibidos con complemento de pago","Subtotal","(-) Bancarizado y clave de uso G01 y G03","(=) Total"]
[null,null,1,"Efectivo"]
[null,null,8,"Vales de despensa"]
[null,null,12,"Dación en pago"]
[null,null,13,"Pago por subrogación"]
[null,null,14,"Pago por consignación"]
[null,null,15,"Condonación"]
[null,null,17,"Compensación"]
[null,null,23,"Novación"]
[null,null,24,"Confusión"]
[null,null,25,"Remisión de deuda"]
[null,null,26,"Prescripción o caducidad"]
[null,null,27,"A satisfacción del acreedor"]
[null,null,30,"Aplicación de anticipos"]
[null,null,31,"Intermediario pagos"]
[null,null,2,"Cheque nominativo"]
[null,null,3,"Transferencia electrónica de fondos"]
[null,null,4,"Tarjeta de crédito"]
[null,null,5,"Monedero electrónico"]
[null,null,6,"Dinero electrónico"]
[null,null,28,"Tarjeta de débito"]
[null,null,29,"Tarjeta de servicios"]
[null,null,null,null,null,null,null,"Total"]
[null,null,"IVA al 16%"]
[null,null,"c_FormaPago","Descripción",null,null,"CFDI recibidos con método de pago PUE","CFDI recibidos con complemento de pago","Subtotal","(-) Bancarizado y clave de uso G01 y G03","(=) Total"]
[null,null,1,"Efectivo"]
[null,null,8,"Vales de despensa"]
[null,null,12,"Dación en pago"]
[null,null,13,"Pago por subrogación"]
[null,null,14,"Pago por consignación"]
[null,null,15,"Condonación"]
[null,null,17,"Compensación"]
[null,null,23,"Novación"]
[null,null,24,"Confusión"]
[null,null,25,"Remisión de deuda"]
[null,null,26,"Prescripción o caducidad"]
[null,null,27,"A satisfacción del acreedor"]
[null,null,30,"Aplicación de anticipos"]
[null,null,31,"Intermediario pagos"]
[null,null,2,"Cheque nominativo"]
[null,null,3,"Transferencia electrónica de fondos"]
[null,null,4,"Tarjeta de crédito"]
[null,null,5,"Monedero electrónico"]
[null,null,6,"Dinero electrónico"]
[null,null,28,"Tarjeta de débito"]
[null,null,29,"Tarjeta de servicios"]
[null,null,null,null,null,null,null,"Total"]
[]
[]
[null,"Persona física actividad empresarial y profesional",null,null,null,null,"Régimen fiscal",612]
[]
[null,"Total de los actos o actividades pagados a la tasa del 16% de IVA"]
[null,null,"Suma de facturas recibidas de tipo ingreso con método de pago \"Pago en una sola exhibición\" (PUE), forma de pago bancarizada y uso del CFDI \"Adquisición de mercancias\" y \"Gastos en general\""]
[null,null,"Mes","Número de facturas Canceladas","Número de facturas Vigentes","Subtotal","Descuento","Subtotal – Descuento","Impuestos Trasladados Base IVA 16%","Impuestos Trasladados IVA 16%"]
[null,"G01","Enero"]
[null,"G03","Enero"]
[null,null,"Total"]
[]
[null,null,"Suma de facturas recibidas de tipo pago donde la fecha de pago corresponde al mes, forma de pago bancarizada y uso del CFDI \"Adquisición de mercancias\" y \"Gastos en general\"."]
[null,null,"Mes","Número de facturas Canceladas","Número de facturas Vigentes","Ingresos cobrados sin impuestos","Impuestos trasladados Base IVA 16%","Impuestos trasladados IVA 16%"]
[null,"G01","Enero"]
[null,"G03","Enero"]
[null,null,"Total"]
[]
[null,"Total de los actos o actividades pagados sujetos al estímulo de la región fronteriza"]
[null,null,"Suma de facturas recibidas de tipo ingreso con método de pago \"Pago en una sola exhibición\" (PUE), forma de pago bancarizada y uso del CFDI \"Adquisición de mercancias\" y \"Gastos en general\""]
[null,null,"Mes","Número de facturas Canceladas","Número de facturas Vigentes","Subtotal","Descuento","Subtotal – Descuento","Impuestos Trasladados Base IVA 8%","Impuestos Trasladados IVA 8%"]
[null,"G01","Enero"]
[null,"G03","Enero"]
[null,null,"Total"]
[]
[null,null,"Suma de facturas recibidas de tipo pago donde la fecha de pago corresponde al mes, forma de pago bancarizada y uso del CFDI \"Adquisición de mercancias\" y \"Gastos en general\"."]
[null,null,"Mes","Número de facturas Canceladas","Número de facturas Vigentes","Ingresos cobrados sin impuestos","Impuestos trasladados Base IVA 8%","Impuestos trasladados IVA 8%"]
[null,"G01","Enero"]
[null,"G03","Enero"]
[null,null,"Total"]
[]
[null,"Total de los actos o actividades pagados en la importación de bienes y servicios a la tasa del 16% de IVA"]
[]
[null,"Total de los demás actos o actividades pagados a la tasa del 0% de IVA",null,null,null,null,null,null,368.4]
[null,null,"Suma de facturas recibidas de tipo ingreso con método de pago \"Pago en una sola exhibición\" (PUE), forma de pago bancarizada y uso del CFDI \"Adquisición de mercancias\" y \"Gastos en general\""]
[null,null,"Mes","Número de facturas Canceladas","Número de facturas Vigentes","Subtotal","Descuento","Subtotal – Descuento","Impuestos Trasladados Base IVA 0%"]
[null,"G01","Enero"]
[null,"G03","Enero",null,null,null,null,null,null,null,"Con base en el CFDI recibidos"]
[null,null,"Total"]
[]
[null,null,"Suma de facturas recibidas de tipo pago donde la fecha de pago corresponde al mes, forma de pago bancarizada y uso del CFDI \"Adquisición de mercancias\" y \"Gastos en general\"."]
[null,null,"Mes","Número de facturas Canceladas","Número de facturas Vigentes","Ingresos cobrados sin impuestos","Impuestos trasladados Base IVA 0%"]
[null,"G01","Enero"]
[null,"G03","Enero"]
[null,null,"Total"]
[]
[null,"Total de los actos o actividades pagados por los que no se pagará el IVA (exentos)"]
[null,null,"Suma de facturas recibidas de tipo ingreso con método de pago \"Pago en una sola exhibición\" (PUE), forma de pago bancarizada y uso del CFDI \"Adquisición de mercancias\" y \"Gastos en general\""]
[null,null,"Mes","Número de facturas Canceladas","Número de facturas Vigentes","Subtotal","Descuento","Subtotal – Descuento","Impuestos Trasladados Base Exento"]
[null,"G01","Enero"]
[null,"G03","Enero",null,null,null,null,null,null,null,"Con base en el CFDI recibidos"]
[null,null,"Total"]
[]
[null,null,"Suma de facturas recibidas de tipo pago donde la fecha de pago corresponde al mes, forma de pago bancarizada y uso del CFDI \"Adquisición de mercancias\" y \"Gastos en general\"."]
[null,null,"Mes","Número de facturas Canceladas","Número de facturas Vigentes","Ingresos cobrados sin impuestos","Impuestos trasladados Base IVA Exento"]
[null,"G01","Enero"]
[null,"G03","Enero"]
[null,null,"Total"]
[]
[null,"Determinación del Impuesto al Valor Agregado acreditable"]
[]
[null,"IVA de actos o actividades pagados a la tasa del 16%"]
[null,"IVA pagado sujeto al estímulo de la región fronteriza"]
[null,"Total de IVA trasladado al contribuyente (Efectivamente pagado)"]
[]
[null,null,"IVA al 8%"]
[null,null,"c_FormaPago","Descripción",null,null,"CFDI recibidos con método de pago PUE","CFDI recibidos con complemento de pago","Subtotal","(-) Bancarizado y clave de uso G01 y G03","(=) Total"]
[null,null,1,"Efectivo"]
[null,null,8,"Vales de despensa"]
[null,null,12,"Dación en pago"]
[null,null,13,"Pago por subrogación"]
[null,null,14,"Pago por consignación"]
[null,null,15,"Condonación"]
[null,null,17,"Compensación"]
[null,null,23,"Novación"]
[null,null,24,"Confusión"]
[null,null,25,"Remisión de deuda"]
[null,null,26,"Prescripción o caducidad"]
[null,null,27,"A satisfacción del acreedor"]
[null,null,30,"Aplicación de anticipos"]
[null,null,31,"Intermediario pagos"]
[null,null,2,"Cheque nominativo"]
[null,null,3,"Transferencia electrónica de fondos"]
[null,null,4,"Tarjeta de crédito"]
[null,null,5,"Monedero electrónico"]
[null,null,6,"Dinero electrónico"]
[null,null,28,"Tarjeta de débito"]
[null,null,29,"Tarjeta de servicios"]
[null,null,null,null,null,null,null,"Total"]
[null,null,"IVA al 16%"]
[null,null,"c_FormaPago","Descripción",null,null,"CFDI recibidos con método de pago PUE","CFDI recibidos con complemento de pago","Subtotal","(-) Bancarizado y clave de uso G01 y G03","(=) Total"]
[null,null,1,"Efectivo"]
[null,null,8,"Vales de despensa"]
[null,null,12,"Dación en pago"]
[null,null,13,"Pago por subrogación"]
[null,null,14,"Pago por consignación"]
[null,null,15,"Condonación"]
[null,null,17,"Compensación"]
[null,null,23,"Novación"]
[null,null,24,"Confusión"]
[null,null,25,"Remisión de deuda"]
[null,null,26,"Prescripción o caducidad"]
[null,null,27,"A satisfacción del acreedor"]
[null,null,30,"Aplicación de anticipos"]
[null,null,31,"Intermediario pagos"]
[null,null,2,"Cheque nominativo"]
[null,null,3,"Transferencia electrónica de fondos"]
[null,null,4,"Tarjeta de crédito"]
[null,null,5,"Monedero electrónico"]
[null,null,6,"Dinero electrónico"]
[null,null,28,"Tarjeta de débito"]
[null,null,29,"Tarjeta de servicios"]
[null,null,null,null,null,null,null,"Total"]
[]
[]
[null,"Persona física RESICO",null,null,null,null,"Régimen fiscal",626]
[]
[null,"Total de los actos o actividades pagados a la tasa del 16% de IVA"]
[null,null,"Suma de facturas recibidas de tipo ingreso con método de pago \"Pago en una sola exhibición\" (PUE), forma de pago bancarizada y uso del CFDI \"Adquisición de mercancias\" y \"Gastos en general\""]
[null,null,"Mes","Número de facturas Canceladas","Número de facturas Vigentes","Subtotal","Descuento","Subtotal – Descuento","Impuestos Trasladados Base IVA 16%","Impuestos Trasladados IVA 16%"]
[null,"G01",{"$f":"IF($I$4<>\"\",$I$4,\"\")","v":"Febrero"}]
[null,"G03",{"$f":"IF($I$4<>\"\",$I$4,\"\")","v":"Febrero"}]
[null,null,"Total"]
[]
[null,null,"Suma de facturas recibidas de tipo pago donde la fecha de pago corresponde al mes, forma de pago bancarizada y uso del CFDI \"Adquisición de mercancias\" y \"Gastos en general\"."]
[null,null,"Mes","Número de facturas Canceladas","Número de facturas Vigentes","Ingresos cobrados sin impuestos","Impuestos trasladados Base IVA 16%","Impuestos trasladados IVA 16%"]
[null,"G01",{"$f":"IF($I$4<>\"\",$I$4,\"\")","v":"Febrero"}]
[null,"G03",{"$f":"IF($I$4<>\"\",$I$4,\"\")","v":"Febrero"}]
[null,null,"Total"]
[]
[null,"Total de los actos o actividades pagados sujetos al estímulo de la región fronteriza"]
[null,null,"Suma de facturas recibidas de tipo ingreso con método de pago \"Pago en una sola exhibición\" (PUE), forma de pago bancarizada y uso del CFDI \"Adquisición de mercancias\" y \"Gastos en general\""]
[null,null,"Mes","Número de facturas Canceladas","Número de facturas Vigentes","Subtotal","Descuento","Subtotal – Descuento","Impuestos Trasladados Base IVA 8%","Impuestos Trasladados IVA 8%"]
[null,"G01",{"$f":"IF($I$4<>\"\",$I$4,\"\")","v":"Febrero"}]
[null,"G03",{"$f":"IF($I$4<>\"\",$I$4,\"\")","v":"Febrero"}]
[null,null,"Total"]
[]
[null,null,"Suma de facturas recibidas de tipo pago donde la fecha de pago corresponde al mes, forma de pago bancarizada y uso del CFDI \"Adquisición de mercancias\" y \"Gastos en general\"."]
[null,null,"Mes","Número de facturas Canceladas","Número de facturas Vigentes","Ingresos cobrados sin impuestos","Impuestos trasladados Base IVA 8%","Impuestos trasladados IVA 8%"]
[null,"G01",{"$f":"IF($I$4<>\"\",$I$4,\"\")","v":"Febrero"}]
[null,"G03",{"$f":"IF($I$4<>\"\",$I$4,\"\")","v":"Febrero"}]
[null,null,"Total"]
[]
[null,"Total de los actos o actividades pagados en la importación de bienes y servicios a la tasa del 16% de IVA"]
[]
[null,"Total de los demás actos o actividades pagados a la tasa del 0% de IVA"]
[null,null,"Suma de facturas recibidas de tipo ingreso con método de pago \"Pago en una sola exhibición\" (PUE), forma de pago bancarizada y uso del CFDI \"Adquisición de mercancias\" y \"Gastos en general\""]
[null,null,"Mes","Número de facturas Canceladas","Número de facturas Vigentes","Subtotal","Descuento","Subtotal – Descuento","Impuestos Trasladados Base IVA 0%"]
[null,"G01",{"$f":"IF($I$4<>\"\",$I$4,\"\")","v":"Febrero"}]
[null,"G03",{"$f":"IF($I$4<>\"\",$I$4,\"\")","v":"Febrero"},null,null,null,null,null,null,null,"Con base en el CFDI recibidos"]
[null,null,"Total"]
[]
[null,null,"Suma de facturas recibidas de tipo pago donde la fecha de pago corresponde al mes, forma de pago bancarizada y uso del CFDI \"Adquisición de mercancias\" y \"Gastos en general\"."]
[null,null,"Mes","Número de facturas Canceladas","Número de facturas Vigentes","Ingresos cobrados sin impuestos","Impuestos trasladados Base IVA 0%"]
[null,"G01",{"$f":"IF($I$4<>\"\",$I$4,\"\")","v":"Febrero"}]
[null,"G03",{"$f":"IF($I$4<>\"\",$I$4,\"\")","v":"Febrero"}]
[null,null,"Total"]
[]
[null,"Total de los actos o actividades pagados por los que no se pagará el IVA (exentos)"]
[null,null,"Suma de facturas recibidas de tipo ingreso con método de pago \"Pago en una sola exhibición\" (PUE), forma de pago bancarizada y uso del CFDI \"Adquisición de mercancias\" y \"Gastos en general\""]
[null,null,"Mes","Número de facturas Canceladas","Número de facturas Vigentes","Subtotal","Descuento","Subtotal – Descuento","Impuestos Trasladados Base Exento"]
[null,"G01",{"$f":"IF($I$4<>\"\",$I$4,\"\")","v":"Febrero"}]
[null,"G03",{"$f":"IF($I$4<>\"\",$I$4,\"\")","v":"Febrero"},null,null,null,null,null,null,null,"Con base en el CFDI recibidos"]
[null,null,"Total"]
[]
[null,null,"Suma de facturas recibidas de tipo pago donde la fecha de pago corresponde al mes, forma de pago bancarizada y uso del CFDI \"Adquisición de mercancias\" y \"Gastos en general\"."]
[null,null,"Mes","Número de facturas Canceladas","Número de facturas Vigentes","Ingresos cobrados sin impuestos","Impuestos trasladados Base IVA Exento"]
[null,"G01",{"$f":"IF($I$4<>\"\",$I$4,\"\")","v":"Febrero"}]
[null,"G03",{"$f":"IF($I$4<>\"\",$I$4,\"\")","v":"Febrero"}]
[null,null,"Total"]
[]
[null,"Determinación del Impuesto al Valor Agregado acreditable"]
[]
[null,"IVA de actos o actividades pagados a la tasa del 16%"]
[null,"IVA pagado sujeto al estímulo de la región fronteriza"]
[null,"Total de IVA trasladado al contribuyente (Efectivamente pagado)"]
[]
[null,null,"IVA al 8%"]
[null,null,"c_FormaPago","Descripción",null,null,"CFDI recibidos con método de pago PUE","CFDI recibidos con complemento de pago","Subtotal","(-) Bancarizado y clave de uso G01 y G03","(=) Total"]
[null,null,1,"Efectivo"]
[null,null,8,"Vales de despensa"]
[null,null,12,"Dación en pago"]
[null,null,13,"Pago por subrogación"]
[null,null,14,"Pago por consignación"]
[null,null,15,"Condonación"]
[null,null,17,"Compensación"]
[null,null,23,"Novación"]
[null,null,24,"Confusión"]
[null,null,25,"Remisión de deuda"]
[null,null,26,"Prescripción o caducidad"]
[null,null,27,"A satisfacción del acreedor"]
[null,null,30,"Aplicación de anticipos"]
[null,null,31,"Intermediario pagos"]
[null,null,2,"Cheque nominativo"]
[null,null,3,"Transferencia electrónica de fondos"]
[null,null,4,"Tarjeta de crédito"]
[null,null,5,"Monedero electrónico"]
[null,null,6,"Dinero electrónico"]
[null,null,28,"Tarjeta de débito"]
[null,null,29,"Tarjeta de servicios"]
[null,null,null,null,null,null,null,"Total"]
[null,null,"IVA al 16%"]
[null,null,"c_FormaPago","Descripción",null,null,"CFDI recibidos con método de pago PUE","CFDI recibidos con complemento de pago","Subtotal","(-) Bancarizado y clave de uso G01 y G03","(=) Total"]
[null,null,1,"Efectivo"]
[null,null,8,"Vales de despensa"]
[null,null,12,"Dación en pago"]
[null,null,13,"Pago por subrogación"]
[null,null,14,"Pago por consignación"]
[null,null,15,"Condonación"]
[null,null,17,"Compensación"]
[null,null,23,"Novación"]
[null,null,24,"Confusión"]
[null,null,25,"Remisión de deuda"]
[null,null,26,"Prescripción o caducidad"]
[null,null,27,"A satisfacción del acreedor"]
[null,null,30,"Aplicación de anticipos"]
[null,null,31,"Intermediario pagos"]
[null,null,2,"Cheque nominativo"]
[null,null,3,"Transferencia electrónica de fondos"]
[null,null,4,"Tarjeta de crédito"]
[null,null,5,"Monedero electrónico"]
[null,null,6,"Dinero electrónico"]
[null,null,28,"Tarjeta de débito"]
[null,null,29,"Tarjeta de servicios"]
[null,null,null,null,null,null,null,"Total"]

{"sheet":"DIVA","index":8,"n_rows":157,"n_cols":10,"rows_kept":157,"cut":false,"hidden":false,"merged":[[6,4,7,4],[29,1,29,2],[30,1,30,2],[29,4,30,4],[31,1,31,2],[17,1,17,2],[18,1,18,2],[11,1,11,2],[20,1,20,2],[6,1,6,2],[7,1,7,2],[8,1,8,2],[9,1,9,2],[12,1,12,2],[10,1,10,2],[14,1,14,2],[15,1,15,2],[16,1,16,2],[53,1,53,2],[48,1,48,2],[49,1,49,2],[50,1,50,2],[51,1,51,2],[52,1,52,2],[43,1,43,2],[34,1,34,2],[36,1,36,2],[38,1,38,2],[41,1,41,2],[42,1,42,2],[81,1,81,2],[89,1,89,2],[90,1,90,2],[91,1,91,2],[92,1,92,2],[89,8,90,8],[94,8,95,8],[105,1,105,2],[105,4,106,4],[106,1,106,2],[99,1,99,2],[100,1,100,2],[101,1,101,2],[94,4,95,4],[89,4,90,4],[93,1,93,2],[94,1,94,2],[95,1,95,2],[97,1,97,2],[98,1,98,2],[127,1,127,2],[128,1,128,2],[129,1,129,2],[105,8,106,8],[118,1,118,2],[119,1,119,2],[124,1,124,2],[125,1,125,2],[126,1,126,2],[107,1,107,2],[110,1,110,2],[112,1,112,2],[114,1,114,2],[117,1,117,2],[137,1,137,2],[138,1,138,2],[139,1,139,2],[140,1,140,2],[141,1,141,2]]}
[]
[null,"Persona moral régimen general de Ley",null,null,"Régimen fiscal"]
[null,null,null,null,601]
[]
[null,"IVA a cargo",null,"Pre cargado",null,"Manual"]
[]
[null,"*Valor de los actos o actividades gravados a la tasa del 8%"]
[null,"*Valor de los actos o actividades gravados a la tasa del 16%"]
[null,"*Valor de los actos o actividades gravados a la tasa del 0% exportación"]
[null,"*Valor de los actos o actividades gravados a la tasa del 0% otros"]
[null,"*Suma de los actos o actividades gravados"]
[null,"*Valor de los actos o actividades por los que no se deba pagar el impuesto (exentos)"]
[null,"*Valor de los actos o actividades no objeto del impuesto"]
[]
[null,"*IVA a cargo a la tasa del 8%"]
[null,"*IVA a cargo a la tasa del 16%"]
[null,"*IVA a cargo"]
[null,"*Cantidad actualizada a reintegrarse derivada del ajuste"]
[null,"*Total de IVA a cargo"]
[]
[null,"Total IVA restituido en notas de crédito emitidas  (no forma parte del formato)"]
[null,null,"IVA al 8%"]
[null,null,"IVA al 16%"]
[]
[]
[]
[]
[null,"IVA acreditable"]
[null,"Monto de los actos o actividades pagadas"]
[null,"*Total de los actos o actividades pagados a la tasa del 16% de IVA"]
[null,"*Total de los actos o actividades pagados sujetos al estímulo de la región fronteriza"]
[null,"Total de actos o actividades no considerados en el prellenado (no forma parte del formato)"]
[null,null,"A la tasa del 16%"]
[null,null,"A la tasa del 8%"]
[null,"*Total de los actos o actividades pagados en la importación de bienes y servicios a la tasa del 16% de IVA"]
[null,"Total de los demás actos o actividades pagados a la tasa del 0% de IVA"]
[null,"Total de actos o actividades no considerados en el prellenado (no forma parte del formato)"]
[null,null,"A la tasa del 0%"]
[null,"*Total de los actos o actividades pagados por los que no se pagará el IVA (exentos)"]
[null,null,"A la tasa exento"]
[]
[null,"*Total de IVA trasladado al contribuyente (Efectivamente pagado)"]
[null,"*IVA acreditable"]
[null,"*Monto acreditable actualizado a incrementar derivado del ajuste"]
[null,"*Total de IVA acreditable"]
[]
[]
[null,"Determinación"]
[null,"*Total de IVA a cargo"]
[null,"*IVA retenido"]
[null,"*Total de IVA acreditable"]
[null,"*Otras cantidades a cargo del contribuyente"]
[null,"*Otras cantidades a favor del contribuyente"]
[null,{"$f":"IFERROR(IF((D49+D52)>=(D50+D51+D53),\"*Cantidad a cargo\",\"*Saldo a favor\"),\"\")","v":"*Cantidad a cargo"}]
[]
[]
[]
[null,"Persona moral RESICO",null,null,"Régimen fiscal"]
[null,null,null,null,601]
[]
[null,"IVA a cargo",null,"Pre cargado",null,"Manual"]
[]
[null,"Actividades gravadas a la tasa del 8%"]
[null,"Actividades gravadas a la tasa del 16%"]
[null,"Actividades gravadas a la tasa del 0%"]
[null,"Actividades exentas"]
[null,"Actividades no objeto del impuesto"]
[]
[null,"IVA a cargo a la tasa del 8%"]
[null,"IVA a cargo a la tasa del 16%"]
[null,"Total de IVA a cargo"]
[null,"IVA no cobrado por devoluciones, descuentos y bonificaciones de ventas"]
[null,"IVA retenido"]
[null,"*IVA acreditable del periodo"]
[null,"IVA pagado en gastos y adquisiciones"]
[null,"IVA acreditable por actividades gravadas a tasa 16% u 8% y tasa 0%"]
[null,"IVA acreditable por actividades mixtas (+)"]
[null,"IVA acreditable del periodo (=)"]
[null,"IVA no acreditable"]
[null,"IVA por devoluciones, descuentos y bonificaciones en gastos"]
[]
[null,{"$f":"IFERROR(IF((D71+D80)>=(D72+D73+D74),\"*Cantidad a cargo\",\"*Saldo a favor\"),\"\")","v":"*Cantidad a cargo"}]
[]
[]
[]
[null,"Persona física arrendamiento de inmuebles y actividad empresarial y profesional",null,null,"Régimen fiscal",null,null,null,"Régimen fiscal"]
[null,null,null,null,606,null,null,null,612]
[null,"IVA a cargo"]
[null,null,null,"Pre cargado",null,"Manual",null,"Pre cargado",null,"Manual"]
[null,"*Valor de los actos o actividades gravados a la tasa del 8%"]
[null,"*Valor de los actos o actividades gravados a la tasa del 16%"]
[null,"*Valor de los actos o actividades gravados a la tasa del 0% exportación"]
[null,"*Valor de los actos o actividades gravados a la tasa del 0% otros"]
[null,"*Suma de los actos o actividades gravados"]
[null,"*Valor de los actos o actividades por los que no se deba pagar el impuesto (exentos)"]
[null,"*Valor de los actos o actividades no objeto del impuesto"]
[]
[null,"*IVA a cargo a la tasa del 8%"]
[null,"*IVA a cargo a la tasa del 16%"]
[null,"*IVA a cargo"]
[null,"*Cantidad actualizada a reintegrarse derivada del ajuste"]
[null,"*Total de IVA a cargo"]
[]
[null,"IVA acreditable"]
[null,"Monto de los actos o actividades pagadas"]
[null,"*Total de los actos o actividades pagados a la tasa del 16% de IVA"]
[null,"*Total de los actos o actividades pagados sujetos al estímulo de la región fronteriza"]
[null,"Total de actos o actividades no considerados en el prellenado (no forma parte del formato)"]
[null,null,"A la tasa del 16%"]
[null,null,"A la tasa del 8%"]
[null,"*Total de los actos o actividades pagados en la importación de bienes y servicios a la tasa del 16% de IVA"]
[null,"Total de los demás actos o actividades pagados a la tasa del 0% de IVA"]
[null,"Total de actos o actividades no considerados en el prellenado (no forma parte del formato)"]
[null,null,"A la tasa del 0%"]
[null,"*Total de los actos o actividades pagados por los que no se pagará el IVA (exentos)"]
[null,null,"A la tasa exento"]
[]
[null,"*Total de IVA trasladado al contribuyente (Efectivamente pagado)"]
[null,"*IVA acreditable"]
[null,"*Monto acreditable actualizado a incrementar derivado del ajuste"]
[null,"*Total de IVA acreditable"]
[]
[]
[null,"Determinación"]
[null,"*Total de IVA a cargo"]
[null,"*IVA retenido"]
[null,"*Total de IVA acreditable"]
[null,"*Otras cantidades a cargo del contribuyente"]
[null,"*Otras cantidades a favor del contribuyente"]
[null,{"$f":"IFERROR(IF((D125+D128)>=(D126+D127+D129),\"*Cantidad a cargo\",\"*Saldo a favor\"),\"\")","v":"*Cantidad a cargo"}]
[]
[]
[]
[null,"Persona física RESICO",null,null,"Régimen fiscal"]
[null,null,null,null,626]
[null,"Determinación"]
[null,null,null,"Pre cargado",null,"Manual"]
[null,"Actividades gravadas a la tasa del 8%"]
[null,"Actividades gravadas a la tasa del 16%"]
[null,"Actividades gravadas a la tasa del 0%"]
[null,"Actividades exentas"]
[null,"Actividades no objeto del impuesto"]
[]
[null,"IVA a cargo a la tasa del 8%"]
[null,"IVA a cargo a la tasa del 16%"]
[null,"Total de IVA a cargo"]
[]
[null,"IVA no cobrado por devoluciones, descuentos y bonificaciones de ventas"]
[null,"IVA retenido"]
[]
[null,"*IVA acreditable del periodo"]
[]
[null,"IVA por devoluciones, descuentos y bonificaciones en gastos"]
[]
[null,{"$f":"IFERROR(IF((D146+D153)>=(D148+D149+D151),\"Cantidad a cargo\",\"Impuesto a favor\"),\"\")","v":"Cantidad a cargo"}]
[null,"Acreditamiento del saldo a favor de periodos anteriores"]
[null,"Impuesto a cargo"]

{"sheet":"OBLIGACION","index":9,"n_rows":9,"n_cols":4,"rows_kept":9,"cut":false,"hidden":false,"merged":[[8,1,8,3]]}
[]
[]
[]
[null,null,"Infracción (artículo 81 CFF)","Multa"]
[null,"Obligación de presentar la DIOT\nArtículo 32 LIVA.- Los obligados al pago de este impuesto y las personas que realicen los actos o actividades a que se refiere el artículo 2o.-A tienen, además de las obligaciones señaladas en otros artículos de esta Ley, las siguientes:"]
[null,"V. Expedir comprobantes fiscales por las retenciones del impuesto que se efectúen en los casos previstos en el artículo 1o.-A, y proporcionar mensualmente a las autoridades fiscales, a través de los medios y formatos electrónicos que señale el Servicio de Administración Tributaria, la información sobre las personas a las que les hubieren retenido el impuesto establecido en esta Ley, a más tardar el día 17 del mes inmediato posterior al que corresponda dicha información.","XVI.  No proporcionar la información a que se refiere la fracción V del artículo 32 de la Ley del Impuesto al Valor Agregado a través de los medios, formatos electrónicos y plazos establecidos en dicha Ley, o presentarla incompleta o con errores.","XVI. De $15,650.00 a $31,290.00, a la establecida en la fracción XVI. En caso de reincidencia la multa aumentará al 100% por cada nuevo incumplimiento."]
[null,"VIII. Proporcionar mensualmente a las autoridades fiscales, a través de los medios y formatos electrónicos que señale el Servicio de Administración Tributaria, la información correspondiente sobre el pago, retención, acreditamiento y traslado del impuesto al valor agregado en las operaciones con sus proveedores, desglosando el valor de los actos o actividades por tasa a la cual trasladó o le fue trasladado el impuesto al valor agregado, incluyendo actividades por las que el contribuyente no está obligado al pago, dicha información se presentará, a más tardar el día 17 del mes inmediato posterior al que corresponda dicha información.","XXVI. \tNo proporcionar la información a que se refiere la fracción VIII del artículo 32 de la Ley del Impuesto al Valor Agregado a través de los medios, formatos electrónicos y plazos establecidos en dicha Ley, o presentarla incompleta o con errores.","XXVI. De $14,880.00 a $29,750.00, a la establecida en la fracción XXVI. En caso de reincidencia la multa aumentará al 100% por cada nuevo incumplimiento."]
[]
[null,"Declaración informativa de operaciones con terceros a cargo de personas físicas y morales, formato, periodo y medio de presentación\n4.5.1.\tPara los efectos del artículo 32, fracciones V y VIII de la Ley del IVA, los contribuyentes personas morales proporcionarán la información a que se refieren las citadas disposiciones, durante el mes inmediato posterior al que corresponda dicha información.\n\n\tTratándose de contribuyentes personas físicas, proporcionarán la información a que se refiere el párrafo anterior, durante el mes inmediato posterior al que corresponda dicha información, con excepción de los contribuyentes del RIF que, de conformidad con lo establecido en el Título IV, Capítulo II, Sección II de la Ley del ISR vigente hasta el 31 de diciembre de 2021, en relación con lo establecido en el artículo Segundo, fracción IX de las Disposiciones Transitorias de la Ley del ISR, publicada en el DOF el 12 de noviembre de 2021, continúen tributando en dicho régimen, y cumplan con lo señalado en el artículo 5o.-E de la Ley del IVA vigente hasta el 31 de diciembre de 2021.\n\nTercer párrafo\nLa información a que se refiere la presente regla, se deberá presentar a través del Portal del SAT mediante la DIOT, contenida en el Anexo 1, rubro A, numeral 5."]

{"sheet":"AYUDA DIOT 2025","index":10,"n_rows":11,"n_cols":56,"rows_kept":11,"cut":false,"hidden":false,"merged":[[7,9,7,10],[7,11,7,12],[7,13,7,14],[7,15,7,16],[7,17,7,18],[3,2,3,8],[3,9,3,18],[3,19,3,28],[3,29,3,48],[3,49,3,55],[7,33,7,36],[7,37,7,40],[7,41,7,44],[7,45,7,48],[7,19,7,20],[7,21,7,22],[7,23,7,24],[7,25,7,26],[7,27,7,28],[7,29,7,32]]}
[]
[]
[]
[null,null,"Datos del tercero declarado",null,null,null,null,null,null,"Valor de los actos o actividades",null,null,null,null,null,null,null,null,null,"IVA acreditable",null,null,null,null,null,null,null,null,null,"IVA no acreditable",null,null,null,null,null,null,null,null,null,null,null,null,null,null,null,null,null,null,null,"Datos adicionales"]
[null,null,"Campo 1","Campo 2","Campo 3","Campo 4","Campo 5","Campo 6","Campo 7","Campo 8","Campo 9","Campo 10","Campo 11","Campo 12","Campo 13","Campo 14","Campo 15","Campo 16","Campo 17","Campo 18","Campo 19","Campo 20","Campo 21","Campo 22","Campo 23","Campo 24","Campo 25","Campo 26","Campo 27","Campo 28","Campo 29","Campo 30","Campo 31","Campo 32","Campo 33","Campo 34","Campo 35","Campo 36","Campo 37","Campo 38","Campo 39","Campo 40","Campo 41","Campo 42","Campo 43","Campo 44","Campo 45","Campo 46","Campo 47","Campo 48","Campo 49","Campo 50","Campo 51","Campo 52","Campo 53","Campo 54"]
[null,null,"Tipo de Tercero","Tipo de Operación","RFC"," Número de ID Fiscal","Nombre del Extranjero","País o jurisdicción de residencia fiscal","Especificar lugar de jurisdicción fiscal","Valor total de actos o actividades pagadas / Actos o actividades pagados en la región fronteriza norte","Devoluciones, descuentos y bonificaciones / Actos o actividades pagados en la región fronteriza norte","Valor total de actos o actividades pagadas / Actos o actividades pagados en la región fronteriza sur","Devoluciones, descuentos y bonificaciones / Actos o actividades pagados en la región fronteriza sur","Valor total de actos o actividades pagadas / Actos o actividades totales pagados a la tasa del 16% de IVA","Devoluciones, descuentos y bonificaciones / Actos o actividades totales pagados a la tasa del 16% de\nIVA","Valor total de actos o actividades pagadas / Actos o actividades pagados en la importación por aduana de bienestangiblesa la tasa del16% de IVA","Devoluciones, descuentos y bonificaciones / Actos\no actividades pagados en la importación por aduana de bienestangiblesa la tasa del16% de IVA","Valor total de actos o actividades pagadas / Actos o actividades pagados en la importación de bienes\nintangibles y servicios a la tasa del 16% de IVA","Devoluciones, descuentos y bonificaciones / Actos o actividades pagados en la importación de bienes\nintangibles y servicios a la tasa del 16% de IVA","Exclusivamente de actividades gravadas / Actos o actividades pagados en la región fronteriza norte","Asociado a actividades por las cuales se aplicó una proporción / Actos o actividades pagados en la región fronteriza norte","Exclusivamente de actividades gravadas / Actos o actividades pagados en la región fronteriza sur","Asociado a actividades por las cuales se aplicó una proporción / Actos o actividades pagados en la región fronteriza sur","Exclusivamente de actividades gravadas / Actos o actividades totales pagados a la tasa del 16% de IVA","Asociado a actividades por las cuales se aplicó una proporción / Actos o actividades totales pagados a la tasa del 16% de IVA","Exclusivamente de actividades gravadas / Actos o actividades pagados en la importación por aduana de bienes tangibles a la tasa del 16% de IVA","Asociado a actividades por las cuales se aplicó una proporción / Actos o actividades pagados en la importación por aduana de bienes tangibles a la tasa del 16% de IVA","Exclusivamente de actividades gravadas / Actos o actividades pagados en la importación de bienes intangibles y servicios a la tasa del 16% de IVA","Asociado a actividades por las cuales se aplicó una proporción / Actos o actividades pagados en la\nimportación de bienes intangibles y servicios a la tasa del 16% de IVA","Asociado a actividades por las cuales se aplicó una proporción / Actos o actividades pagados en la región\nfronteriza norte","Asociado a actividades que no cumple con requisitos / Actos o actividades pagados en la\nregión fronteriza norte","Asociado a actividades exentas / Actos o\nactividades pagados en la región fronteriza norte","Asociado a actividades no objeto / Actos o actividades pagados en la región fronteriza norte","Asociado a actividades por las cuales se aplicó una proporción / Actos o actividades pagados en la región fronteriza sur","Asociado a actividades que no cumple con requisitos / Actos o actividades pagados en la región fronteriza sur","Asociado a actividades exentas / Actos o\nactividades pagados en la región fronteriza sur","Asociado a actividades no objeto / Actos o actividades pagados en la región fronteriza sur","Asociado a actividades por las cuales se aplicó una proporción / Actos o actividades totales pagados a la tasa del 16% de IVA","Asociado a actividades que no cumple con requisitos / Actos o actividades totales pagados a la tasa del 16% de IVA","Asociado a actividades exentas / Actos o\nactividades totales pagados a la tasa del 16% de IVA","Asociado a actividades no objeto / Actos o actividades totales pagados a la tasa del 16% de IVA","Asociado a actividades por las cuales se aplicó una proporción / Actos o actividades pagados en la importación por aduana de bienes tangibles a la tasa del 16% de IVA","Asociado a actividades que no cumple con requisitos / Actos o actividades pagados en la importación por aduana de bienes tangibles a la tasa del 16% de IVA","Asociado a actividades exentas / Actos o\nactividades pagados en la importación por aduana de bienes tangibles a la tasa del 16% de IVA","Asociado a actividades no objeto / Actos o actividades pagados en la importación por aduana de bienes tangibles a la tasa del 16% de IVA","Asociado a actividades por las cuales se aplicó una proporción / Actos o actividades pagados en la importación de bienes intangibles y servicios a la tasa del 16% del IVA","Asociado a actividades que no cumple con requisitos / Actos o actividades pagados en laimportación de bienes intangibles y servicios a la tasa del 16% del IVA","Asociado a actividades exentas / Actos o\nactividades pagados en la importación de bienes intangibles y servicios a la tasa del 16% del IVA","Asociado a actividades no objeto / Actos o actividades pagados en la importación de bienesintangibles y servicios a la tasa del 16% del IVA","IVA retenido por el contribuyente","Actos o actividades pagados en la importación de bienes y servicios por los que no se pagara el IVA (Exentos)","Actos o actividades pagados por los que no se pagará el IVA (Exentos)","Demás actosoactividades pagados a la tasa del 0% de IVA","Actos o actividades no objeto del IVA realizados en territorio nacional","Actos o actividades no objeto del IVA por no contar con establecimiento en territorio nacional","Manifiesto que se dio efectos fiscales a los comprobantes que amparan las operaciones realizadas con el proveedor"]
[]
[null,null,null,null,null,null,null,null,null,"Si se captura información en estos campos, se debe de capturar información en los campos 18 y 19",null,"Si se captura información en estos campos, se debe de capturar información en los campos 20 y 21",null,"Si se captura información en estos campos, se debe de capturar información en los campos 22 y 23",null,"Si se captura información en estos campos, se debe de capturar información en los campos 24 y 25",null,"Si se captura información en estos campos, se debe de capturar información en los campos 26 y 27",null,"Corresponde al IVA acreditable de las columnas 8 y 9, en caso de llevar actividades gravadas y exentes, y determinar un factor de prorrateo, se captura el IVA acreditable aplicando el factor de prorrateo en el campo 19",null,"Corresponde al IVA acreditable de las columnas 10 y 11, en caso de llevar actividades gravadas y exentes, y determinar un factor de prorrateo, se captura el IVA acreditable aplicando el factor de prorrateo en el campo 21",null,"Corresponde al IVA acreditable de las columnas 12 y 13, en caso de llevar actividades gravadas y exentes, y determinar un factor de prorrateo, se captura el IVA acreditable aplicando el factor de prorrateo en el campo 23",null,"Corresponde al IVA acreditable de las columnas 14 y 15, en caso de llevar actividades gravadas y exentes, y determinar un factor de prorrateo, se captura el IVA acreditable aplicando el factor de prorrateo en el campo 25",null,"Corresponde al IVA acreditable de las columnas 16 y 17, en caso de llevar actividades gravadas y exentes, y determinar un factor de prorrateo, se captura el IVA acreditable aplicando el factor de prorrateo en el campo 26",null,"Aplica solamente que se capture información en el campo 19, corresponde al IVA no acreditable por tener un factor de prorrateo",null,null,null,"Aplica solamente que se capture información en el campo 21, corresponde al IVA no acreditable por tener un factor de prorrateo",null,null,null,"Aplica solamente que se capture información en el campo 23, corresponde al IVA no acreditable por tener un factor de prorrateo",null,null,null,"Aplica solamente que se capture información en el campo 25, corresponde al IVA no acreditable por tener un factor de prorrateo",null,null,null,"Aplica solamente que se capture información en el campo 27, corresponde al IVA no acreditable por tener un factor de prorrateo"]
[null,"Tipo de dato:","Numérico 2 posiciones","Numérico 2 posiciones","Alfanumérico a 12 o 13 posiciones, los caracteres alfabéticos deben ser mayúsculas ","Alfanumérico máximo 40 posiciones ","Alfanumérico máximo \n300 posiciones ","Alfabético 2 posiciones","Alfanumérico máximo \n300 posiciones ","Numérico máximo \n14 posiciones","Numérico máximo\n14 posiciones","Numérico máximo \n14 posiciones","Numérico máximo\n14 posiciones","Numérico máximo \n14 posiciones","Numérico máximo\n14 posiciones","Numérico máximo \n14 posiciones","Numérico máximo\n14 posiciones","Numérico máximo \n14 posiciones","Numérico máximo\n14 posiciones","Numérico máximo\n14 posiciones","Numérico máximo\n14 posiciones","Numérico máximo\n14 posiciones","Numérico máximo\n14 posiciones","Numérico máximo\n14 posiciones","Numérico máximo\n14 posiciones","Numérico máximo\n14 posiciones","Numérico máximo\n14 posiciones","Numérico máximo\n14 posiciones","Numérico máximo\n14 posiciones","Numérico máximo\n14 posiciones","Numérico máximo\n14 posiciones","Numérico máximo\n14 posiciones","Numérico máximo\n14 posiciones","Numérico máximo \n14 posiciones","Numérico máximo \n14 posiciones","Numérico máximo \n14 posiciones","Numérico máximo \n14 posiciones","Numérico máximo \n14 posiciones","Numérico máximo \n14 posiciones","Numérico máximo \n14 posiciones","Numérico máximo \n14 posiciones","Numérico máximo \n14 posiciones","Numérico máximo \n14 posiciones","Numérico máximo \n14 posiciones","Numérico máximo \n14 posiciones","Numérico máximo \n14 posiciones","Numérico máximo \n14 posiciones","Numérico máximo \n14 posiciones","Numérico máximo \n14 posiciones","Numérico máximo \n14 posiciones","Numérico máximo \n14 posiciones","Numérico máximo \n14 posiciones","Numérico máximo \n14 posiciones","Numérico máximo \n14 posiciones","Numérico máximo \n14 posiciones","Numérico 2\nposiciones"]
[null,"Obligatorio u Opcional:","Obligatorio","Obligatorio","Obligatorio para el tipo de tercero nacional y global Opcional para el tipo de tercero extranjero ","Obligatorio para el tipo de tercero extranjero ","Obligatorio para el tipo de  tercero extranjero ","Obligatorio para el tipo de  tercero extranjero ","Obligatorio condicionado \npara el tipo de tercero \nextranjero ","Opcional ","Opcional","Opcional ","Opcional","Opcional ","Opcional","Opcional ","Opcional","Opcional ","Opcional","Opcional","Opcional","Opcional","Opcional","Opcional","Opcional","Opcional","Opcional","Opcional","Opcional","Opcional","Opcional","Opcional","Opcional","Opcional ","Opcional ","Opcional ","Opcional ","Opcional ","Opcional ","Opcional ","Opcional ","Opcional ","Opcional ","Opcional ","Opcional ","Opcional ","Opcional ","Opcional ","Opcional ","Opcional ","Opcional ","Opcional ","Opcional ","Opcional ","Opcional ","Obligatorio"]
[null,"Especificaciones:","Es el tipo de proveedor o tercero a reportar: \n04 Proveedor Nacional \n05 Proveedor Extranjero \n15 Proveedor Global ","Las opciones de tipo de operación varían para cada tipo de tercero.\n\nProveedor Nacional\n02 Enajenación de bienes\n03 Prestación de Servicios Profesionales\n06 Uso o goce temporal de bienes\n08 Importación por transferencia virtual\n85 Otros\n\nProveedor Extranjero\n02 Enajenación de bienes\n03 Prestación de Servicios Profesionales\n07 Importación de bienes o servicios\n\nProveedor Global\n87 Operaciones globales","Debe corresponder a una clave del Registro Federal de Contribuyentes emitida por el SAT, ya que se valida su existencia en las bases institucionales. \n\nPara el tipo de proveedor global se coloca XAXX010101000.","Acepta caracteres especiales.  \n\nAcepta valores [a-z (incluso ñ) y &]. \n\nPara los tipos de tercero nacional y global el campo se queda vacío.","Acepta caracteres especiales.  \n\nAcepta valores [a-z (incluso ñ) y &].\n \nPara los tipos de tercero nacional y global el campo se queda vacío.","El valor se toma del catálogo Países, que se encuentra al final de este instructivo. \n\nPara los tipos de tercero nacional y global el campo se queda vacío. ","Obligatorio cuando el valor del campo País o jurisdicción de residencia fiscal sea ZZZ (Otro). \n\nSi el valor del campo País o jurisdicción de residencia fiscal es diferente a ZZZ (Otro), el campo se queda vacío. \n\nPara los tipos de tercero nacional y global el campo se queda vacío. ","No permite decimales. \nAcepta cero. ","No permite decimales.\nAcepta cero.\n\nEl valor del campo debe ser igual o menor que el valor del campo anterior, Valor total de actos o actividades pagadas / Actos o actividades pagados en la región fronteriza norte.","No permite decimales. \nAcepta cero. ","No permite decimales.\nAcepta cero.\n\nEl valor del campo debe ser igual o menor que el valor del campo anterior, Valor total de actos o actividades pagadas / Actos o actividades pagados en la región fronteriza sur.","No permite decimales. \nAcepta cero. ","No permite decimales.\nAcepta cero.\n\nEl valor del campo debe ser igual o menor que el valor del campo anterior, Valor total de actos o actividades pagadas / Actos o actividades pagados en la importación por aduana de bienes tangibles a la\ntasa del 16% de IVA.","No permite decimales. \nAcepta cero. ","No permite decimales.\nAcepta cero.\n\nEl valor del campo debe ser igual o menor que el valor\ndel campo anterior, Valor total de actos o actividades\npagadas / Actos o actividades pagados en la\nimportación por aduana de bienes tangibles a la\ntasa del 16% de IVA.","No permite decimales. \nAcepta cero. ","No permite decimales.\nAcepta cero.\n\nEl valor del campo debe ser igual o menor que el valor\ndel campo anterior, Valor total de actos o actividades\npagadas / Actos o actividades pagados en la\nimportación de bienes intangibles y servicios a la\ntasa del 16% de IVA.","No permite decimales.\nAcepta cero.\n\nSe ingresa monto cuando el valor del campo Valor\ntotal de actos o actividades pagadas / Actos o actividades pagados en la región fronteriza norte es mayor a cero.","No permite decimales.\nAcepta cero.\n\nSe ingresa monto cuando el valor del campo Valor\ntotal de actos o actividades pagadas / Actos o actividades pagados en la región fronteriza norte es mayor a cero.","No permite decimales.\nAcepta cero.\n\nSe ingresa monto cuando el valor del campo Valor total de actos o actividades pagadas / Actos o actividades pagados en la región fronteriza sur es mayor a cero.","No permite decimales.\nAcepta cero.\n\nSe ingresa monto cuando el valor del campo Valor total de actos o actividades pagadas / Actos o actividades pagados en la región fronteriza sur es mayor a cero.","No permite decimales.\nAcepta cero.\n\nSe ingresa monto cuando el valor del campo Valor total de actos o actividades pagadas / Actos o actividades pagados en la región fronteriza sur es\nmayor a cero.","No permite decimales.\nAcepta cero.\n\nSe ingresa monto cuando el valor del campo Valor total de actos o actividades pagadas / Actos o actividades pagados en la región fronteriza sur es\nmayor a cero.","No permite decimales.\nAcepta cero.\n\nSe ingresa monto cuando el valor del campo Valor\ntotal de actos o actividades pagadas / Actos o actividades pagados en la importación por aduana de bienes tangibles a la tasa del 16% de IVA es\nmayor a cero.","No permite decimales.\nAcepta cero.\n\nSe ingresa monto cuando el valor del campo Valor\ntotal de actos o actividades pagadas / Actos o actividades pagados en la importación por aduana de bienes tangibles a la tasa del 16% de IVA es\nmayor a cero.","No permite decimales.\nAcepta cero.\n\nSe ingresa monto cuando el valor del campo Valor\ntotal de actos o actividades pagadas / Actos o actividades pagados en la importación de bienes intangibles y servicios a la tasa del 16% de IVA es\nmayor a cero.","No permite decimales.\nAcepta cero.\n\nSe ingresa monto cuando el valor del campo Valor\ntotal de actos o actividades pagadas / Actos o actividades pagados en la importación de bienes intangibles y servicios a la tasa del 16% de IVA es\nmayor a cero.","No permite decimales.\nAcepta cero.\n\nSe ingresa monto cuando el valor del campo Asociado a actividades por las cuales se aplicó una proporción / Actos o actividades pagados en la\nregión fronteriza norte es mayor a cero.","No permite decimales.\nAcepta cero.\n\nSe ingresa monto cuando el valor del campo Asociado a actividades por las cuales se aplicó una proporción / Actos o actividades pagados en la\nregión fronteriza norte es mayor a cero.","No permite decimales. \nAcepta cero. ","No permite decimales. \nAcepta cero. ","No permite decimales. \nAcepta cero. ","No permite decimales. \nAcepta cero. ","No permite decimales. \nAcepta cero. ","No permite decimales. \nAcepta cero. ","No permite decimales. \nAcepta cero. ","No permite decimales. \nAcepta cero. ","No permite decimales. \nAcepta cero. ","No permite decimales. \nAcepta cero. ","No permite decimales. \nAcepta cero. ","No permite decimales. \nAcepta cero. ","No permite decimales. \nAcepta cero. ","No permite decimales. \nAcepta cero. ","No permite decimales. \nAcepta cero. ","No permite decimales. \nAcepta cero. ","No permite decimales. \nAcepta cero. ","No permite decimales. \nAcepta cero. ","No permite decimales. \nAcepta cero. ","No permite decimales. \nAcepta cero. ","No permite decimales. \nAcepta cero. ","No permite decimales. \nAcepta cero. ","No permite decimales. \nAcepta cero. ","No permite decimales. \nAcepta cero. ","Es el tipo de proveedor o tercero a reportar:\n01 Sí\n02 No"]

{"sheet":"ESTRUCTURA 2025","index":11,"n_rows":8,"n_cols":56,"rows_kept":8,"cut":false,"hidden":false,"merged":[[4,1,4,7],[4,8,4,17],[4,18,4,27],[4,28,4,47],[4,48,4,54]]}
[]
[]
[]
[]
[null,"Datos del tercero declarado",null,null,null,null,null,null,"Valor de los actos o actividades",null,null,null,null,null,null,null,null,null,"IVA acreditable",null,null,null,null,null,null,null,null,null,"IVA no acreditable",null,null,null,null,null,null,null,null,null,null,null,null,null,null,null,null,null,null,null,"Datos adicionales",null,null,null,null,null,null,"Instrucciones"]
[null,"Campo 1","Campo 2","Campo 3","Campo 4","Campo 5","Campo 6","Campo 7","Campo 8","Campo 9","Campo 10","Campo 11","Campo 12","Campo 13","Campo 14","Campo 15","Campo 16","Campo 17","Campo 18","Campo 19","Campo 20","Campo 21","Campo 22","Campo 23","Campo 24","Campo 25","Campo 26","Campo 27","Campo 28","Campo 29","Campo 30","Campo 31","Campo 32","Campo 33","Campo 34","Campo 35","Campo 36","Campo 37","Campo 38","Campo 39","Campo 40","Campo 41","Campo 42","Campo 43","Campo 44","Campo 45","Campo 46","Campo 47","Campo 48","Campo 49","Campo 50","Campo 51","Campo 52","Campo 53","Campo 54"]
[null,"Tipo de Tercero","Tipo de Operación","RFC"," Número de ID Fiscal","Nombre del Extranjero","País o jurisdicción de residencia fiscal","Especificar lugar de jurisdicción fiscal","Valor total de actos o actividades pagadas / Actos o actividades pagados en la región fronteriza norte","Devoluciones, descuentos y bonificaciones / Actos o actividades pagados en la región fronteriza norte","Valor total de actos o actividades pagadas / Actos o actividades pagados en la región fronteriza sur","Devoluciones, descuentos y bonificaciones / Actos o actividades pagados en la región fronteriza sur","Valor total de actos o actividades pagadas / Actos o actividades totales pagados a la tasa del 16% de IVA","Devoluciones, descuentos y bonificaciones / Actos o actividades totales pagados a la tasa del 16% de\nIVA","Valor total de actos o actividades pagadas / Actos o actividades pagados en la importación por aduana de bienestangiblesa la tasa del16% de IVA","Devoluciones, descuentos y bonificaciones / Actos\no actividades pagados en la importación por aduana de bienestangiblesa la tasa del16% de IVA","Valor total de actos o actividades pagadas / Actos o actividades pagados en la importación de bienes\nintangibles y servicios a la tasa del 16% de IVA","Devoluciones, descuentos y bonificaciones / Actos o actividades pagados en la importación de bienes\nintangibles y servicios a la tasa del 16% de IVA","Exclusivamente de actividades gravadas / Actos o actividades pagados en la región fronteriza norte","Asociado a actividades por las cuales se aplicó una proporción / Actos o actividades pagados en la región fronteriza norte","Exclusivamente de actividades gravadas / Actos o actividades pagados en la región fronteriza sur","Asociado a actividades por las cuales se aplicó una proporción / Actos o actividades pagados en la región fronteriza sur","Exclusivamente de actividades gravadas / Actos o actividades totales pagados a la tasa del 16% de IVA","Asociado a actividades por las cuales se aplicó una proporción / Actos o actividades totales pagados a la tasa del 16% de IVA","Exclusivamente de actividades gravadas / Actos o actividades pagados en la importación por aduana de bienes tangibles a la tasa del 16% de IVA","Asociado a actividades por las cuales se aplicó una proporción / Actos o actividades pagados en la importación por aduana de bienes tangibles a la tasa del 16% de IVA","Exclusivamente de actividades gravadas / Actos o actividades pagados en la importación de bienes intangibles y servicios a la tasa del 16% de IVA","Asociado a actividades por las cuales se aplicó una proporción / Actos o actividades pagados en la\nimportación de bienes intangibles y servicios a la tasa del 16% de IVA","Asociado a actividades por las cuales se aplicó una proporción / Actos o actividades pagados en la región\nfronteriza norte","Asociado a actividades que no cumple con requisitos / Actos o actividades pagados en la\nregión fronteriza norte","Asociado a actividades exentas / Actos o\nactividades pagados en la región fronteriza norte","Asociado a actividades no objeto / Actos o actividades pagados en la región fronteriza norte","Asociado a actividades por las cuales se aplicó una proporción / Actos o actividades pagados en la región fronteriza sur","Asociado a actividades que no cumple con requisitos / Actos o actividades pagados en la región fronteriza sur","Asociado a actividades exentas / Actos o\nactividades pagados en la región fronteriza sur","Asociado a actividades no objeto / Actos o actividades pagados en la región fronteriza sur","Asociado a actividades por las cuales se aplicó una proporción / Actos o actividades totales pagados a la tasa del 16% de IVA","Asociado a actividades que no cumple con requisitos / Actos o actividades totales pagados a la tasa del 16% de IVA","Asociado a actividades exentas / Actos o\nactividades totales pagados a la tasa del 16% de IVA","Asociado a actividades no objeto / Actos o actividades totales pagados a la tasa del 16% de IVA","Asociado a actividades por las cuales se aplicó una proporción / Actos o actividades pagados en la importación por aduana de bienes tangibles a la tasa del 16% de IVA","Asociado a actividades que no cumple con requisitos / Actos o actividades pagados en la importación por aduana de bienes tangibles a la tasa del 16% de IVA","Asociado a actividades exentas / Actos o\nactividades pagados en la importación por aduana de bienes tangibles a la tasa del 16% de IVA","Asociado a actividades no objeto / Actos o actividades pagados en la importación por aduana de bienes tangibles a la tasa del 16% de IVA","Asociado a actividades por las cuales se aplicó una proporción / Actos o actividades pagados en la importación de bienes intangibles y servicios a la tasa del 16% del IVA","Asociado a actividades que no cumple con requisitos / Actos o actividades pagados en laimportación de bienes intangibles y servicios a la tasa del 16% del IVA","Asociado a actividades exentas / Actos o\nactividades pagados en la importación de bienes intangibles y servicios a la tasa del 16% del IVA","Asociado a actividades no objeto / Actos o actividades pagados en la importación de bienesintangibles y servicios a la tasa del 16% del IVA","IVA retenido por el contribuyente","Actos o actividades pagados en la importación de bienes y servicios por los que no se pagara el IVA (Exentos)","Actos o actividades pagados por los que no se pagará el IVA (Exentos)","Demás actosoactividades pagados a la tasa del 0% de IVA","Actos o actividades no objeto del IVA realizados en territorio nacional","Actos o actividades no objeto del IVA por no contar con establecimiento en territorio nacional","Manifiesto que se dio efectos fiscales a los comprobantes que amparan las operaciones realizadas con el proveedor","1.-Copie la columna al bloc de notas para obtener el formato (.txt) a partir de la columna \"BD\"\n2.-Los datos están separados por el carácter pipe (|).\n3.-Al momento de guardar el archivo se debe cambiar el tipo de codificación UTF-8.\n"]
[null,null,null,null,null,null,null,null,null,null,null,null,null,null,null,null,null,null,null,null,null,null,null,null,null,null,null,null,null,null,null,null,null,null,null,null,null,null,null,null,null,null,null,null,null,null,null,null,null,null,null,null,null,null,null,{"$f":"+B8&\"|\"&C8&\"|\"&D8&\"|\"&E8&\"|\"&F8&\"|\"&G8&\"|\"&H8&\"|\"&I8&\"|\"&J8&\"|\"&K8&\"|\"&L8&\"|\"&M8&\"|\"&N8&\"|\"&O8&\"|\"&P8&\"|\"&Q8&\"|\"&R8&\"|\"&S8&\"|\"&T8&\"|\"&U8&\"|\"&V8&\"|\"&W8&\"|\"&X8&\"|\"&Y8&\"|\"&Z8&\"|\"&AA8&\"|\"&AB8&\"|\"&AC8&\"|\"&AD8&\"|\"&AE8&\"|\"&AF8&\"|\"&AG8&\"|\"&AH8&\"|\"&AI8&\"|\"&AJ8&\"|\"&AK8&\"|\"&AL8&\"|\"&AM8&\"|\"&AN8&\"|\"&AO8&\"|\"&AP8&\"|\"&AQ8&\"|\"&AR8&\"|\"&AS8&\"|\"&AT8&\"|\"&AU8&\"|\"&AV8&\"|\"&AW8&\"|\"&AX8&\"|\"&AY8&\"|\"&AZ8&\"|\"&BA8&\"|\"&BB8&\"|\"&BC8&\"\"","v":"|||||||||||||||||||||||||||||||||||||||||||||||||||||"}]

{"sheet":"AYUDA DIOT 2024","index":12,"n_rows":11,"n_cols":25,"rows_kept":11,"cut":false,"hidden":false,"merged":[]}
[]
[]
[]
[]
[null,null,"Campo 1","Campo 2","Campo 3","Campo 4","Campo 5","Campo 6","Campo 7","Campo 8","Campo 9","Campo 10","Campo 11","Campo 12","Campo 13","Campo 14","Campo 15","Campo 16","Campo 17","Campo 18","Campo 19","Campo 20","Campo 21","Campo 22","Campo 23"]
[null,null,"Tipo de tercero","Tipo de operación","Registro Federal de Contribuyentes","Número de identificación fiscal","Nombre del extranjero","País o jurisdicción de residencia fiscal","Especificar lugar de jurisdicción fiscal","Valor de los actos o actividades / Actos o actividades pagados a la tasa del 16% de IVA","Monto del IVA pagado no acreditable / Actos o actividades pagados a la tasa del 16% de IVA","Actos o actividades pagados a la tasa del 11% de IVA","Monto del IVA pagado no acreditable  11%","Valor de los actos o actividades / Actos o actividades pagados en la región fronteriza norte","Monto del IVA pagado no acreditable / Actos o actividades pagados en la región fronteriza norte","Valor de los actos o actividades / Actos o actividades pagados en la región fronteriza sur","Monto del IVA pagado no acreditable / Actos o actividades pagados en la región fronteriza sur","Valor de los actos o actividades / Actos o actividades pagados en la importación de bienes y servicios a la tasa del 16% de IVA","Monto del IVA pagado no acreditable / Actos o actividades pagados en la importación de bienes y servicios a la tasa del 16% de IVA","Valor de los actos o actividades / Actos o actividades pagados en la importación de bienes y servicios por los que no se pagará el IVA (Exentos)","Valor de los actos o actividades / Actos o actividades pagados por los que no se pagará el IVA (Exentos)","Valor de los actos o actividades / Demás actos o actividades pagados a la tasa del 0% de IVA","Valor de los actos o actividades / Actos o actividades no objeto del IVA","IVA pagado / IVA retenido por el contribuyente","IVA pagado / IVA por devoluciones, descuentos y bonificaciones sobre adquisición de mercancías y gastos en general"]
[]
[]
[null,"Tipo de dato","Numérico 2 posiciones","Numérico 2 posiciones","Alfanumérico a 12 o 13 posiciones, los caracteres alfabéticos deben ser mayúsculas ","Alfanumérico máximo 40 posiciones ","Alfanumérico máximo \n300 posiciones ","Alfabético 2 posiciones","Alfanumérico máximo \n300 posiciones ","Numérico máximo \n14 posiciones","Numérico máximo \n14 posiciones","Numérico máximo 14 posiciones","Numérico máximo 14 posiciones","Numérico máximo \n14 posiciones","Numérico máximo \n14 posiciones","Numérico máximo \n14 posiciones","Numérico máximo \n14 posiciones","Numérico máximo \n14 posiciones","Numérico máximo \n14 posiciones","Numérico máximo \n14 posiciones","Numérico máximo \n14 posiciones",null,"Numérico máximo \n14 posiciones","Numérico máximo \n14 posiciones","Numérico máximo \n14 posiciones"]
[null,"Obligatorio u Opcional","Obligatorio","Obligatorio","Obligatorio para el tipo de tercero nacional y global Opcional para el tipo de tercero extranjero ","Obligatorio para el tipo de tercero extranjero ","Obligatorio para el tipo de  tercero extranjero ","Obligatorio para el tipo de  tercero extranjero ","Obligatorio condicionado \npara el tipo de tercero \nextranjero ","Opcional ","Opcional ","Opcional","Opcional","Opcional ","Opcional ","Opcional ","Opcional ","Opcional ","Opcional ","Opcional ","Opcional ","Opcional ","Opcional ","Opcional ","Opcional "]
[null,"Especificaciones ","Es el tipo de proveedor o tercero a reportar: \n04 Proveedor Nacional \n05 Proveedor Extranjero \n15 Proveedor Global ","Las opciones de tipo de operación varían para cada tipo de tercero.\n\nProveedor Nacional\n03 Prestación de Servicios Profesionales\n06 Uso o goce temporal de bienes\n85 Otros\n\nProveedor Extranjero\n03 Prestación de Servicios Profesionales\n85 Otros\n\nProveedor Global\n87 Operaciones globales","Debe corresponder a una clave del Registro Federal de Contribuyentes emitida por el SAT, ya que se valida su existencia en las bases institucionales. \n\nPara el tipo de proveedor global se coloca XAXX010101000.","Acepta caracteres especiales.  \n\nAcepta valores [a-z (incluso ñ) y &]. \n\nPara los tipos de tercero nacional y global el campo se queda vacío.","Acepta caracteres especiales.  \n\nAcepta valores [a-z (incluso ñ) y &].\n \nPara los tipos de tercero nacional y global el campo se queda vacío.","El valor se toma del catálogo Países, que se encuentra al final de este instructivo. \n\nPara los tipos de tercero nacional y global el campo se queda vacío. ","Obligatorio cuando el valor del campo País o jurisdicción de residencia fiscal sea ZZZ (Otro). \n\nSi el valor del campo País o jurisdicción de residencia fiscal es diferente a ZZZ (Otro), el campo se queda vacío. \n\nPara los tipos de tercero nacional y global el campo se queda vacío. ","No permite decimales. \nAcepta cero. ","No permite decimales. \nAcepta cero. \nEl valor de este campo debe ser menor o igual, al valor resultante de multiplicar el valor del campo anterior (Valor de los actos o actividades / Actos o actividades pagados a la tasa del 16% de IVA) por 0.16","No permite decimales.\nAcepta cero.\n\nEl campo solo aplica para declaraciones:\n\nEjercicio 2014, Periodicidad 1-Mensual y Período enero\nEjercicio 2014, Periodicidad 5-Semestral (A) y Período\n1º Enero-Junio\n\nPara los demás casos se queda vacío.","No permite decimales.\nAcepta cero.\n\nEl campo solo aplica para declaraciones:\n\nEjercicio 2014, Periodicidad 1-Mensual y Período enero\nEjercicio 2014, Periodicidad 5-Semestral (A) y Período\n1º Enero-Junio\n\nPara los demás casos se queda vacío.","No permite decimales. \nAcepta cero. \n\nEl campo se queda vacío para ejercicios 2018 hacia atrás.","No permite decimales. \nAcepta cero. \n\nEl valor de este campo debe ser menor o igual, al valor resultante de multiplicar el valor del campo anterior (Valor de los actos o actividades / Actos o actividades pagados en la región fronteriza norte) por 0.08","No permite decimales. \nAcepta cero. \n\nEl campo se queda vacío para ejercicios 2020 hacia atrás.","No permite decimales. \nAcepta cero. \n\nEl campo se queda vacío para ejercicios 2020 hacia atrás.\n\nEl valor de este campo debe ser menor o igual, al valor resultante de multiplicar el valor del campo anterior (Valor de los actos o actividades / Actos o actividades pagados en la región fronteriza sur) por 0.08","No permite decimales. \nAcepta cero. \n\nPara el tipo de tercero nacional el campo se queda vacío.","No permite decimales. \nAcepta cero. \n\nPara el tipo de tercero nacional el campo se queda\nvacío.\n\nEl valor de este campo debe ser menor o igual, al valor resultante de multiplicar el valor del campo anterior (Valor de los actos o actividades / Actos o actividades pagados en la importación de bienes y servicios a la tasa del 16% de IVA) por 0.16","No permite decimales.\nAcepta cero.\n\nPara el tipo de tercero nacional el campo se queda vacío.","No permite decimales.\nAcepta cero.\n","No permite decimales.\nAcepta cero.\n","No permite decimales.\nAcepta cero.\n","No permite decimales.\nAcepta cero.\n","No permite decimales.\nAcepta cero.\n"]

{"sheet":"ESTRUCTURA 2024","index":13,"n_rows":7,"n_cols":25,"rows_kept":7,"cut":false,"hidden":false,"merged":[]}
[]
[]
[]
[]
[null,"Campo 1","Campo 2","Campo 3","Campo 4","Campo 5","Campo 6","Campo 7","Campo 8","Campo 9","Campo 10","Campo 11","Campo 12","Campo 13","Campo 14","Campo 15","Campo 16","Campo 17","Campo 18","Campo 19","Campo 20","Campo 21","Campo 22","Campo 23","Instrucciones"]
[null,"Tipo de tercero","Tipo de operación","Registro Federal de Contribuyentes","Número de identificación fiscal","Nombre del extranjero","País o jurisdicción de residencia fiscal","Especificar lugar de jurisdicción fiscal","Valor de los actos o actividades / Actos o actividades pagados a la tasa del 16% de IVA","Monto del IVA pagado no acreditable / Actos o actividades pagados a la tasa del 16% de IVA","Actos o actividades pagados a la tasa del 11% de IVA","Monto del IVA pagado no acreditable  11%","Valor de los actos o actividades / Actos o actividades pagados en la región fronteriza norte","Monto del IVA pagado no acreditable / Actos o actividades pagados en la región fronteriza norte","Valor de los actos o actividades / Actos o actividades pagados en la región fronteriza sur","Monto del IVA pagado no acreditable / Actos o actividades pagados en la región fronteriza sur","Valor de los actos o actividades / Actos o actividades pagados en la importación de bienes y servicios a la tasa del 16% de IVA","Monto del IVA pagado no acreditable / Actos o actividades pagados en la importación de bienes y servicios a la tasa del 16% de IVA","Valor de los actos o actividades / Actos o actividades pagados en la importación de bienes y servicios por los que no se pagará el IVA (Exentos)","Valor de los actos o actividades / Actos o actividades pagados por los que no se pagará el IVA (Exentos)","Valor de los actos o actividades / Demás actos o actividades pagados a la tasa del 0% de IVA","Valor de los actos o actividades / Actos o actividades no objeto del IVA","IVA pagado / IVA retenido por el contribuyente","IVA pagado / IVA por devoluciones, descuentos y bonificaciones sobre adquisición de mercancías y gastos en general","1.-Copie la columna al bloc de notas para obtener el formato (.txt) a partir de la columna \"BD\"\n2.-Los datos están separados por el carácter pipe (|).\n3.-Al momento de guardar el archivo se debe cambiar el tipo de codificación UTF-8.\n"]
[null,null,null,null,null,null,null,null,null,null,null,null,null,null,null,null,null,null,null,null,null,null,null,null,{"$f":"+B7&\"|\"&C7&\"|\"&D7&\"|\"&E7&\"|\"&F7&\"|\"&G7&\"|\"&H7&\"|\"&I7&\"|\"&J7&\"|\"&K7&\"|\"&L7&\"|\"&M7&\"|\"&N7&\"|\"&O7&\"|\"&P7&\"|\"&Q7&\"|\"&R7&\"|\"&S7&\"|\"&T7&\"|\"&U7&\"|\"&V7&\"|\"&W7&\"|\"&X7&\"\"","v":"||||||||||||||||||||||"}]

{"sheet":"PAIS","index":14,"n_rows":255,"n_cols":6,"rows_kept":255,"cut":false,"hidden":false,"merged":[]}
[]
[]
[null,"Catálogo país de residencia",null,null,"País DIOT DEM"]
[]
[null,"Clave","País",null,"Valor","Descripción"]
[null,"AFG","Afganistán",null,"AD","AD - Principado de Andorra"]
[null,"ALB","Albania",null,"AE","AE - Emiratos Arabes Unidos"]
[null,"DEU","Alemania",null,"AF","AF - Afganistán"]
[null,"AND","Andorra",null,"AG","AG - Antigua y Bermuda"]
[null,"AGO","Angola",null,"AI","AI - Isla Anguilla"]
[null,"AIA","Anguila",null,"AL","AL - República de Albania"]
[null,"ATA","Antártida",null,"AN","AN - Antillas Neerlandesas"]
[null,"ATG","Antigua y Barbuda",null,"AO","AO - República de Angola"]
[null,"SAU","Arabia Saudita",null,"AQ","AQ - Antártica"]
[null,"DZA","Argelia",null,"AR","AR - Argentina"]
[null,"ARG","Argentina",null,"AS","AS - Samoa Americana"]
[null,"ARM","Armenia",null,"AT","AT - Austria"]
[null,"ABW","Aruba",null,"AU","AU - Australia"]
[null,"AUS","Australia",null,"AW","AW - Aruba"]
[null,"AUT","Austria",null,"AX","AX - Ascensión"]
[null,"AZE","Azerbaiyán",null,"AZ","AZ - Islas Azores"]
[null,"BHS","Bahamas (las)",null,"BB","BB - Barbados"]
[null,"BGD","Bangladés",null,"BD","BD - Bangladesh"]
[null,"BRB","Barbados",null,"BE","BE - Bélgica"]
[null,"BHR","Baréin",null,"BF","BF - Burkina Faso"]
[null,"BEL","Bélgica",null,"BG","BG - Bulgaria"]
[null,"BLZ","Belice",null,"BH","BH - Estado de Bahrein"]
[null,"BEN","Benín",null,"BI","BI - Burundi"]
[null,"BMU","Bermudas",null,"BJ","BJ - Benin"]
[null,"BLR","Bielorrusia",null,"BL","BL - Belice"]
[null,"BOL","Bolivia, Estado Plurinacional de",null,"BM","BM - Bermudas"]
[null,"BES","Bonaire, San Eustaquio y Saba",null,"BN","BN - Brunei Darussalam"]
[null,"BIH","Bosnia y Herzegovina",null,"BO","BO - Bolivia"]
[null,"BWA","Botsuana",null,"BR","BR - Brasil"]
[null,"BRA","Brasil",null,"BS","BS - Commonwealth de las Bahamas"]
[null,"BRN","Brunéi Darussalam",null,"BT","BT - Buthan"]
[null,"BGR","Bulgaria",null,"BU","BU - Burma"]
[null,"BFA","Burkina Faso",null,"BV","BV - Isla Bouvet"]
[null,"BDI","Burundi",null,"BW","BW - Botswana"]
[null,"BTN","Bután",null,"BY","BY - Bielorrusia"]
[null,"CPV","Cabo Verde",null,"CA","CA - Canadá"]
[null,"KHM","Camboya",null,"CC","CC - Isla de Cocos o Kelling"]
[null,"CMR","Camerún",null,"CD","CD - Islas Canarias"]
[null,"CAN","Canadá",null,"CE","CE - Isla de Christmas"]
[null,"QAT","Catar",null,"CF","CF - República Centro Africana"]
[null,"TCD","Chad",null,"CG","CG - Congo"]
[null,"CHL","Chile",null,"CH","CH - Suiza"]
[null,"CHN","China",null,"CI","CI - Costa de Marfil"]
[null,"CYP","Chipre",null,"CK","CK - Islas Cook"]
[null,"COL","Colombia",null,"CL","CL - Chile"]
[null,"COM","Comoras",null,"CM","CM - Camerún"]
[null,"COG","Congo",null,"CN","CN - China"]
[null,"COD","Congo (la República Democrática del)",null,"CO","CO - Colombia"]
[null,"KOR","Corea (la República de)",null,"CP","CP - Campione D'Italia"]
[null,"PRK","Corea (la República Democrática Popular\nde)",null,"CR","CR - República de Costa Rica"]
[null,"CRI","Costa Rica",null,"CS","CS - República Checa y República Eslovaca"]
[null,"CIV","Côte d'Ivoire",null,"CU","CU - Cuba"]
[null,"HRV","Croacia",null,"CV","CV - República de Cabo Verde"]
[null,"CUB","Cuba",null,"CX","CX - Isla de Navidad"]
[null,"CUW","Curaçao",null,"CY","CY - República de Chipre"]
[null,"DNK","Dinamarca",null,"DD","DD - Alemania"]
[null,"DMA","Dominica",null,"DJ","DJ - República de Djibouti"]
[null,"ECU","Ecuador",null,"DK","DK - Dinamarca"]
[null,"EGY","Egipto",null,"DM","DM - República Dominicana"]
[null,"SLV","El Salvador",null,"DN","DN - Commonwealth de Dominica"]
[null,"ARE","Emiratos Árabes Unidos (Los)",null,"DZ","DZ - Argelia"]
[null,"ERI","Eritrea",null,"EC","EC - Ecuador"]
[null,"SVK","Eslovaquia",null,"EG","EG - Egipto"]
[null,"SVN","Eslovenia",null,"EH","EH - Sahara del Oeste"]
[null,"ESP","España",null,"EO","EO - Estado Independiente de Samoa Occidental"]
[null,"USA","Estados Unidos (los)",null,"ES","ES - España"]
[null,"EST","Estonia",null,"ET","ET - Etiopía"]
[null,"ETH","Etiopía",null,"FI","FI - Finlandia"]
[null,"PHL","Filipinas (las)",null,"FJ","FJ - Fiji"]
[null,"FIN","Finlandia",null,"FK","FK - Islas Malvinas"]
[null,"FJI","Fiyi",null,"FM","FM - Micronesia"]
[null,"FRA","Francia",null,"FO","FO - Islas Faroe"]
[null,"GAB","Gabón",null,"FR","FR - Francia"]
[null,"GMB","Gambia (La)",null,"GA","GA - Gabón"]
[null,"GEO","Georgia",null,"GB","GB - Gran Bretaña (Reino Unido)"]
[null,"SGS","Georgia del sur y las islas sandwich del\nsur",null,"GD","GD - Granada"]
[null,"GHA","Ghana",null,"GF","GF - Guyana Francesa"]
[null,"GIB","Gibraltar",null,"GH","GH - Ghana"]
[null,"GRD","Granada",null,"GI","GI - Gibraltar"]
[null,"GRC","Grecia",null,"GJ","GJ - Groenlandia"]
[null,"GRL","Groenlandia",null,"GM","GM - Gambia"]
[null,"GLP","Guadalupe",null,"GN","GN - Guinea"]
[null,"GUM","Guam",null,"GP","GP - Guadalupe"]
[null,"GTM","Guatemala",null,"GQ","GQ - Guinea Ecuatorial"]
[null,"GUF","Guayana Francesa",null,"GR","GR - Grecia"]
[null,"GGY","Guernsey",null,"GT","GT - Guatemala"]
[null,"GIN","Guinea",null,"GU","GU - Guam"]
[null,"GNQ","Guinea Ecuatorial",null,"GW","GW - Guinea Bissau"]
[null,"GNB","Guinea-Bisáu",null,"GY","GY - República de Guyana"]
[null,"GUY","Guyana",null,"GZ","GZ - Islas de Guernesey, Jersey, Alderney, Isla Great Sark, Herm, Little Sark, Berchou, Jethou, Lihou (Islas del Canal)"]
[null,"HTI","Haití",null,"HK","HK - Hong Kong"]
[null,"HND","Honduras",null,"HM","HM - Islas Heard and Mc Donald"]
[null,"HKG","Hong Kong",null,"HN","HN - República de Honduras"]
[null,"HUN","Hungría",null,"HT","HT - Haití"]
[null,"IND","India",null,"HU","HU - Hungría"]
[null,"IDN","Indonesia",null,"ID","ID - Indonesia"]
[null,"IRQ","Irak",null,"IE","IE - Irlanda"]
[null,"IRN","Irán (la República Islámica de)",null,"IH","IH - Isla del Hombre"]
[null,"IRL","Irlanda",null,"IL","IL - Israel"]
[null,"BVT","Isla Bouvet",null,"IN","IN - India"]
[null,"IMN","Isla de Man",null,"IO","IO - Territorio Británico en el Océano Indico"]
[null,"CXR","Isla de Navidad",null,"IP","IP - Islas Pacífico"]
[null,"HMD","Isla Heard e Islas McDonald",null,"IQ","IQ - Iraq"]
[null,"NFK","Isla Norfolk",null,"IR","IR - Irán"]
[null,"ISL","Islandia",null,"IS","IS - Islandia"]
[null,"ALA","Islas Aland",null,"IT","IT - Italia"]
[null,"CYM","Islas Caimán (las)",null,"JM","JM - Jamaica"]
[null,"CCK","Islas Cocos (Keeling)",null,"JO","JO - Reino Hachemita de Jordania"]
[null,"COK","Islas Cook (las)",null,"JP","JP - Japón"]
[null,"UMI","Islas de Ultramar Menores de Estados\nUnidos (las)",null,"KE","KE - Kenia"]
[null,"FRO","Islas Feroe (las)",null,"KH","KH - Campuchea Democrática"]
[null,"FLK","Islas Malvinas [Falkland] (las)",null,"KI","KI - Kiribati"]
[null,"MNP","Islas Marianas del Norte (las)",null,"KM","KM - Comoros"]
[null,"MHL","Islas Marshall (las)",null,"KN","KN - San Kitts"]
[null,"SLB","Islas Salomón (las)",null,"KP","KP - República Democrática de Corea"]
[null,"TCA","Islas Turcas y Caicos (las)",null,"KR","KR - República de Corea"]
[null,"VGB","Islas Vírgenes (Británicas)",null,"KW","KW - Estado de Kuwait"]
[null,"VIR","Islas Vírgenes (EE.UU.)",null,"KY","KY - Islas Caimán"]
[null,"ISR","Israel",null,"LA","LA - República Democrática de Laos"]
[null,"ITA","Italia",null,"LB","LB - Líbano"]
[null,"JAM","Jamaica",null,"LC","LC - Santa Lucía"]
[null,"JPN","Japón",null,"LI","LI - Principado de Liechtenstein"]
[null,"JEY","Jersey",null,"LK","LK - República Socialista Democrática de Sri Lanka"]
[null,"JOR","Jordania",null,"LN","LN - Labuán"]
[null,"KAZ","Kazajistán",null,"LR","LR - República de Liberia"]
[null,"KEN","Kenia",null,"LS","LS - Lesotho"]
[null,"KGZ","Kirguistán",null,"LU","LU - Gran Ducado de Luxemburgo"]
[null,"KIR","Kiribati",null,"LY","LY - Libia"]
[null,"KWT","Kuwait",null,"MA","MA - Marruecos"]
[null,"LAO","Lao, (la) República Democrática Popular",null,"MC","MC - Principado de Mónaco"]
[null,"LSO","Lesoto",null,"MD","MD - Madeira"]
[null,"LVA","Letonia",null,"MG","MG - Madagascar"]
[null,"LBN","Líbano",null,"MH","MH - República de las Islas Marshall"]
[null,"LBR","Liberia",null,"ML","ML - Malí"]
[null,"LBY","Libia",null,"MN","MN - Mongolia"]
[null,"LIE","Liechtenstein",null,"MO","MO - Macao"]
[null,"LTU","Lituania",null,"MP","MP - Islas Marianas del Noreste"]
[null,"LUX","Luxemburgo",null,"MQ","MQ - Martinica"]
[null,"MAC","Macao",null,"MR","MR - Mauritania"]
[null,"MKD","Macedonia (la antigua República\nYugoslava de)",null,"MS","MS - Monserrat"]
[null,"MDG","Madagascar",null,"MT","MT - Malta"]
[null,"MYS","Malasia",null,"MU","MU - República de Mauricio"]
[null,"MWI","Malaui",null,"MV","MV - República de Maldivas"]
[null,"MDV","Maldivas",null,"MW","MW - Malawi"]
[null,"MLI","Malí",null,"MY","MY - Malasia "]
[null,"MLT","Malta",null,"MZ","MZ - Mozambique"]
[null,"MAR","Marruecos",null,"NA","NA - República de Namibia"]
[null,"MTQ","Martinica",null,"NC","NC - Nueva Caledonia"]
[null,"MUS","Mauricio",null,"NE","NE - Níger"]
[null,"MRT","Mauritania",null,"NF","NF - Isla de Norfolk"]
[null,"MYT","Mayotte",null,"NG","NG - Nigeria"]
[null,"FSM","Micronesia (los Estados Federados de)",null,"NI","NI - Nicaragua"]
[null,"MDA","Moldavia (la República de)",null,"NL","NL - Holanda"]
[null,"MCO","Mónaco",null,"NO","NO - Noruega"]
[null,"MNG","Mongolia",null,"NP","NP - Nepal"]
[null,"MNE","Montenegro",null,"NR","NR - República de Nauru"]
[null,"MSR","Montserrat",null,"NT","NT - Zona Neutral"]
[null,"MOZ","Mozambique",null,"NU","NU - Niue"]
[null,"MMR","Myanmar",null,"NV","NV - Nevis"]
[null,"NAM","Namibia",null,"NZ","NZ - Nueva Zelandia"]
[null,"NRU","Nauru",null,"OM","OM - Sultanía de Omán"]
[null,"NPL","Nepal",null,"PA","PA - República de Panamá"]
[null,"NIC","Nicaragua",null,"PE","PE - Perú"]
[null,"NER","Níger (el)",null,"PF","PF - Polinesia Francesa"]
[null,"NGA","Nigeria",null,"PG","PG - Papúa Nueva Guinea"]
[null,"NIU","Niue",null,"PH","PH - Filipinas"]
[null,"NOR","Noruega",null,"PK","PK - Pakistán"]
[null,"NCL","Nueva Caledonia",null,"PL","PL - Polonia"]
[null,"NZL","Nueva Zelanda",null,"PM","PM - Isla de San Pedro y Miguelón"]
[null,"OMN","Omán",null,"PN","PN - Pitcairn"]
[null,"ZZZ","Otro",null,"PR","PR - Estado Libre Asociado de Puerto Rico"]
[null,"NLD","Países Bajos (los)",null,"PT","PT - Portugal"]
[null,"PAK","Pakistán",null,"PU","PU - Patau"]
[null,"PLW","Palaos",null,"PW","PW - Palau"]
[null,"PSE","Palestina, Estado de",null,"PY","PY - Paraguay"]
[null,"PAN","Panamá",null,"QA","QA - Estado de Quatar"]
[null,"PNG","Papúa Nueva Guinea",null,"QB","QB - Isla Qeshm"]
[null,"PRY","Paraguay",null,"RE","RE - Reunión"]
[null,"PER","Perú",null,"RO","RO - Rumania"]
[null,"PCN","Pitcairn",null,"RW","RW - Rhuanda"]
[null,"PYF","Polinesia Francesa",null,"SA","SA - Arabia Saudita"]
[null,"POL","Polonia",null,"SB","SB - Islas Salomón"]
[null,"PRT","Portugal",null,"SC","SC - Seychelles Islas"]
[null,"PRI","Puerto Rico",null,"SD","SD - Sudán"]
[null,"GBR","Reino Unido (el)",null,"SE","SE - Suecia"]
[null,"CAF","República Centroafricana (la)",null,"SG","SG - Singapur"]
[null,"CZE","República Checa (la)",null,"SH","SH - Santa Elena"]
[null,"DOM","República Dominicana (la)",null,"SI","SI - Archipiélago de Svalbard"]
[null,"REU","Reunión",null,"SJ","SJ - Islas Svalbard and Jan Mayen"]
[null,"RWA","Ruanda",null,"SK","SK - Sark"]
[null,"ROU","Rumania",null,"SL","SL - Sierra Leona"]
[null,"RUS","Rusia, (la) Federación de",null,"SM","SM - Serenísima República de San Marino"]
[null,"ESH","Sahara Occidental",null,"SN","SN - Senegal"]
[null,"WSM","Samoa",null,"SO","SO - Somalia"]
[null,"ASM","Samoa Americana",null,"SR","SR - Surinam"]
[null,"BLM","San Bartolomé",null,"ST","ST - Sao Tome and Príncipe"]
[null,"KNA","San Cristóbal y Nieves",null,"SU","SU - Países de la Ex-U.R.S.S., excepto Ucrania y Bielorusia"]
[null,"SMR","San Marino",null,"SV","SV - El Salvador"]
[null,"MAF","San Martín (parte francesa)",null,"SW","SW - República de Seychelles"]
[null,"SPM","San Pedro y Miquelón",null,"SY","SY - Siria"]
[null,"VCT","San Vicente y las Granadinas",null,"SZ","SZ - Reino de Swazilandia"]
[null,"SHN","Santa Helena, Ascensión y Tristán de\nAcuña",null,"TC","TC - Islas Turcas y Caicos"]
[null,"LCA","Santa Lucía",null,"TD","TD - Chad"]
[null,"VAT","Santa Sede[Estado de la Ciudad del\nVaticano] (la)",null,"TF","TF - Territorios Franceses del Sureste"]
[null,"STP","Santo Tomé y Príncipe",null,"TG","TG - Togo"]
[null,"SEN","Senegal",null,"TH","TH - Thailandia"]
[null,"SRB","Serbia",null,"TK","TK - Tokelau"]
[null,"SYC","Seychelles",null,"TN","TN - República de Túnez"]
[null,"SLE","Sierra leona",null,"TO","TO - Reino de Tonga"]
[null,"SGP","Singapur",null,"TP","TP - Timor Este"]
[null,"SXM","Sint Maarten (parte holandesa)",null,"TR","TR - Trieste"]
[null,"SYR","Siria, (la) República Árabe",null,"TS","TS - Tristán Da Cunha"]
[null,"SOM","Somalia",null,"TT","TT - República de Trinidad y Tobago"]
[null,"LKA","Sri Lanka",null,"TU","TU - Turquía"]
[null,"SWZ","Suazilandia",null,"TV","TV - Tuvalu"]
[null,"ZAF","Sudáfrica",null,"TW","TW - Taiwán"]
[null,"SDN","Sudán (el)",null,"TZ","TZ - Tanzania"]
[null,"SSD","Sudán del Sur",null,"UA","UA - Ucrania"]
[null,"SWE","Suecia",null,"UG","UG - Uganda"]
[null,"CHE","Suiza",null,"UM","UM - Islas menores alejadas de los Estados Unidos"]
[null,"SUR","Surinam",null,"US","US - Estados Unidos de América"]
[null,"SJM","Svalbard y Jan Mayen",null,"UY","UY - República Oriental del Uruguay"]
[null,"THA","Tailandia",null,"VA","VA - El Vaticano"]
[null,"TWN","Taiwán (Provincia de China)",null,"VC","VC - San Vicente y Las Granadinas"]
[null,"TZA","Tanzania, República Unida de",null,"VE","VE - Venezuela"]
[null,"TJK","Tayikistán",null,"VG","VG - Islas Vírgenes Británicas"]
[null,"IOT","Territorio Británico del Océano Índico (el)",null,"VI","VI - Islas Vírgenes de Estados Unidos de América"]
[null,"ATF","Territorios Australes Franceses (los)",null,"VN","VN - Vietnam"]
[null,"TLS","Timor-Leste",null,"VU","VU - República de Vanuatu"]
[null,"TGO","Togo",null,"WF","WF - Islas Wallis y Funtuna"]
[null,"TKL","Tokelau",null,"XX","XX - Otro"]
[null,"TON","Tonga",null,"YD","YD - Yemen Democrática"]
[null,"TTO","Trinidad y Tobago",null,"YE","YE - República del Yemen"]
[null,"TUN","Túnez",null,"YU","YU - Países de la Ex-Yugoslavia"]
[null,"TKM","Turkmenistán",null,"ZA","ZA - Sudáfrica"]
[null,"TUR","Turquía",null,"ZC","ZC - Zona Especial Canaria"]
[null,"TUV","Tuvalu",null,"ZM","ZM - Zambia"]
[null,"UKR","Ucrania",null,"ZO","ZO - Zona Libre Ostrava"]
[null,"UGA","Uganda",null,"ZR","ZR - Zaire"]
[null,"URY","Uruguay",null,"ZW","ZW - Zimbawe"]
[null,"UZB","Uzbekistán"]
[null,"VUT","Vanuatu"]
[null,"VEN","Venezuela, República Bolivariana de"]
[null,"VNM","Viet Nam"]
[null,"WLF","Wallis y Futuna"]
[null,"YEM","Yemen"]
[null,"DJI","Yibuti"]
[null,"ZMB","Zambia"]
[null,"ZWE","Zimbabue"]
[null,"ZZZ","Otro"]

{"sheet":"GENERAL","index":15,"n_rows":15,"n_cols":3,"rows_kept":15,"cut":false,"hidden":true,"merged":[]}
[]
[]
[]
[null,"Enero",1]
[null,"Febrero",2]
[null,"Marzo",3]
[null,"Abril",4]
[null,"Mayo",5]
[null,"Junio",6]
[null,"Julio",7]
[null,"Agosto",8]
[null,"Septiembre",9]
[null,"Octubre",10]
[null,"Noviembre",11]
[null,"Diciembre",12]